Service Area,Service Division,Expense Type,Expense Code,Detailed Expense Type,Payment Date,Transaction Number,Amount Exc VAT,Supplier Name
Adult and Health Services,Head of Adults,Third Party Payments 4THIRD,478151,Purchase of Care,01/05/2019,3583034-D720002155,"3,949.00",AUTISM CARE UK (4) LTD.
Adult and Health Services,Public Health CC0450,Premises,145009,Cleaning and Domestic Supplies,01/05/2019,3583043-0000030846,854.66,BETTAKLEEN LTD.
Adult and Health Services,Public Health CC0450,Supplies and Services,384155,Miscellaneous Expenses,01/05/2019,3583274-1000059795.,"71,913.12",NHS BUSINESS SERVICES AUTHORITY (NHSBSA).
Adult and Health Services,Head of Adults,Supplies and Services,328041,Clothing uniforms and laundry E328,01/05/2019,3583410-NSIN00010257,580.00,THOMAS OWEN & SONS (NEWCASTLE) LTD.
Children and Young Peoples Services,Head of Education and Skills,Construction work A908,908105,Construction work,01/05/2019,3583012-0134772,"1,329.20",ADDISONS CHARTERED SURVEYORS.
Children and Young Peoples Services,Head of Childrens Social Care,Supplies and Services,338066,Services,01/05/2019,3583048-SIN006658,"50,232.00",BLOOM PROCUREMENT SERVICES LTD (FORMERLY NEPRO LTD).
Children and Young Peoples Services,Head of Early Help Inclusion & Vulnerable Children.,Employees,080025,Agency Staff,01/05/2019,3583170-2428740,"114,704.41",GEOMETRIC RESULTS INTERNATIONAL.
Children and Young Peoples Services,Head of Early Help Inclusion & Vulnerable Children.,Construction work A908,908105,Construction work,01/05/2019,3583211-DEMINS-DEMOLITION,"40,162.37",JOHN WADE (HAULAGE) LTD.
Children and Young Peoples Services,Head of Education and Skills,Third Party Payments 4THIRD,440999,Other third party payments E440,01/05/2019,3583279-3881,"1,447.20",NORTH EAST DANCE CIC.
Children and Young Peoples Services,Head of Education and Skills,Transfer Payments,510026,School Children,01/05/2019,3583364-LOGANDONNELLY18/3-29/3/19,"1,147.50",SEAHAM HOUSE DAY NURSERY.
Children and Young Peoples Services,Head of Childrens Social Care,Third Party Payments 4THIRD,425021,Rendered by Voluntary Organisations,01/05/2019,3583446-INV-0482,"6,510.64",WE CARE RECRUITMENT SOLUTIONS LTD.
Children and Young Peoples Services,Head of Childrens Social Care,Third Party Payments 4THIRD,425021,Rendered by Voluntary Organisations,01/05/2019,3583446-INV-0487,"6,341.25",WE CARE RECRUITMENT SOLUTIONS LTD.
Children and Young Peoples Services,Head of Childrens Social Care,Third Party Payments 4THIRD,425021,Rendered by Voluntary Organisations,01/05/2019,3583446-INV-0488,"2,372.78",WE CARE RECRUITMENT SOLUTIONS LTD.
Children and Young Peoples Services,Head of Childrens Social Care,Third Party Payments 4THIRD,425021,Rendered by Voluntary Organisations,01/05/2019,3583446-INV-0622,"5,747.03",WE CARE RECRUITMENT SOLUTIONS LTD.
Dedicated Schools Grant BG0015,DSG Early Years Block,Transfer Payments,510030,School Children,01/05/2019,3583062-13817,676.50,BUDDIES CHILDCARE CENTRE.
Dedicated Schools Grant BG0015,DSG Early Years Block,Transfer Payments,510030,School Children,01/05/2019,3583078-13819,"1,127.50",CHILTON ACADEMY.
Dedicated Schools Grant BG0015,DSG Early Years Block,Transfer Payments,510032,School Children,01/05/2019,3583103-13811,841.50,DAWN TILL DUSK CHILDCARE.
Dedicated Schools Grant BG0015,DSG Early Years Block,Transfer Payments,510030,School Children,01/05/2019,3583105-13826,"4,158.00",DAYPARK LTD T/A YELLOW WELLIES.
Dedicated Schools Grant BG0015,DSG Early Years Block,Transfer Payments,510032,School Children,01/05/2019,3583131-13812,841.50,EDEN GARDEN NURSERY.
Dedicated Schools Grant BG0015,DSG Early Years Block,Transfer Payments,510032,School Children,01/05/2019,3583187-13813,673.20,HARTSIDE PRIMARY ACADEMY.
Dedicated Schools Grant BG0015,DSG Early Years Block,Transfer Payments,510030,School Children,01/05/2019,3583335-13824,"1,080.00",RAINBOW NURSERY DURHAM HIGH SCHOOL.
Dedicated Schools Grant BG0015,DSG High Needs Block,Supplies and Services,304259,Equipment and Materials,01/05/2019,3583363-1080,"1,980.00",SCHUCHMANN LLP.
Dedicated Schools Grant BG0015,DSG Early Years Block,Transfer Payments,510032,School Children,01/05/2019,3583457-13815,535.50,YORK HOUSE NURSERY.
Regeneration and Local Services,Technical Services CM0300,Supplies and Services,304221,Equipment and Materials,01/05/2019,3583008-008948,807.27,A HILL & SONS LTD.
Regeneration and Local Services,Technical Services CM0300,Supplies and Services,304221,Equipment and Materials,01/05/2019,3583014-28077812,"5,159.66",AGGREGATE INDUSTRIES UK LTD.
Regeneration and Local Services,Technical Services CM0300,Supplies and Services,304221,Equipment and Materials,01/05/2019,3583014-28077814,"1,293.36",AGGREGATE INDUSTRIES UK LTD.
Regeneration and Local Services,Technical Services CM0300,Supplies and Services,304221,Equipment and Materials,01/05/2019,3583014-28077816,"1,070.48",AGGREGATE INDUSTRIES UK LTD.
Regeneration and Local Services,Technical Services CM0300,Supplies and Services,304221,Equipment and Materials,01/05/2019,3583014-28077817,962.24,AGGREGATE INDUSTRIES UK LTD.
Regeneration and Local Services,Environmental Services,Third Party Payments 4THIRD,430100,Rendered by Private Contractors,01/05/2019,3583018-79867,"1,683.75",ALLAN FULLER LTD.
Regeneration and Local Services,Culture & Sport,Supplies and Services,312013,Newspapers books and periodicals E312,01/05/2019,3583033-6015042,576.29,ASKEWS & HOLTS LIBRARY SERVICES LTD.
Regeneration and Local Services,Culture & Sport,Supplies and Services,312013,Newspapers books and periodicals E312,01/05/2019,3583033-6015135,548.84,ASKEWS & HOLTS LIBRARY SERVICES LTD.
Regeneration and Local Services,Environmental Services,Transport,210057,Repair and Maintenance of Vehicles,01/05/2019,3583040-15147646,"1,347.97",BELL TRUCK SALES LTD T/A BELL TRUCK & VAN.
Regeneration and Local Services,Environmental Services,Transport,210057,Repair and Maintenance of Vehicles,01/05/2019,3583040-35163747,536.63,BELL TRUCK SALES LTD T/A BELL TRUCK & VAN.
Regeneration and Local Services,Environmental Services,Transport,210057,Repair and Maintenance of Vehicles,01/05/2019,3583040-35164002,717.08,BELL TRUCK SALES LTD T/A BELL TRUCK & VAN.
Regeneration and Local Services,Culture & Sport,Premises,145023,Cleaning and Domestic Supplies,01/05/2019,3583056-22SI2246818,"1,648.58",BRENNTAG UK LTD.
Regeneration and Local Services,Environmental Services,Transport,210057,Repair and Maintenance of Vehicles,01/05/2019,3583076-693689,667.46,CHATFIELDS T/A EVANS HALSHAW.
Regeneration and Local Services,Business Durham CL0850,Premises,108099,Service Repairs and Maintenance,01/05/2019,3583084-6326,"1,926.00",CM FLOORING LTD.
Regeneration and Local Services,Environmental Services,Cap Exp on Grants & Other Financial Assistance (REFCUS),918501,Exp assets not owned by authority,01/05/2019,3583087-CO515,"27,685.60",CONSERVEFOR.
Regeneration and Local Services,Environmental Services,Transport,210057,Repair and Maintenance of Vehicles,01/05/2019,3583109-96371445,671.77,DENNIS EAGLE LTD T/A TERBERG MATEC (UK) LTD.
Regeneration and Local Services,Environmental Services,Transport,210057,Repair and Maintenance of Vehicles,01/05/2019,3583109-96372058,514.81,DENNIS EAGLE LTD T/A TERBERG MATEC (UK) LTD.
Regeneration and Local Services,Corporate Property and Land,Supplies and Services,304245,Equipment and Materials,01/05/2019,3583118-815690,969.50,DONWOOD (DOUBLE GLAZING) LTD.
Regeneration and Local Services,Corporate Property and Land,Third Party Payments 4THIRD,430100,Rendered by Private Contractors,01/05/2019,3583120-86APR2019,"29,907.20",DPC SCREEDING LTD.
Regeneration and Local Services,Corporate Property and Land,Third Party Payments 4THIRD,430100,Rendered by Private Contractors,01/05/2019,3583130-1745,"25,000.00",ECO FACILITIES SOLUTIONS LTD.
Regeneration and Local Services,Environmental Services,Supplies and Services,384956,Miscellaneous Expenses,01/05/2019,3583143-Y00003059T,"2,731.25",ENVIRONMENT AGENCY.
Regeneration and Local Services,Environmental Services,Supplies and Services,338099,Services,01/05/2019,3583153-1901-DCC-03,"8,850.00",FIONA FYFE ASSOCIATES LTD.
Regeneration and Local Services,Technical Services CM0300,Supplies and Services,304357,Equipment and Materials,01/05/2019,3583162-DCC210419,"14,055.24",GAP GROUP LTD.
Regeneration and Local Services,Technical Services CM0300,Supplies and Services,304358,Equipment and Materials,01/05/2019,3583172-75050,950.64,GEORGE VARDY HAULAGE.
Regeneration and Local Services,Transport and Contracted Services,Third Party Payments 4THIRD,430100,Rendered by Private Contractors,01/05/2019,3583176-69369,643.50,GO GATESHEAD LTD.
Regeneration and Local Services,Technical Services CM0300,Supplies and Services,304221,Equipment and Materials,01/05/2019,3583178-1009236,533.97,GRAB & DELIVER LTD.
Regeneration and Local Services,Technical Services CM0300,Supplies and Services,304221,Equipment and Materials,01/05/2019,3583178-1009340,510.00,GRAB & DELIVER LTD.
Regeneration and Local Services,Culture & Sport,Premises,145023,Cleaning and Domestic Supplies,01/05/2019,3583180-06/794104,"1,008.03",GREENHAM TRADING LTD.
Regeneration and Local Services,Environmental Services,Supplies and Services,304221,Equipment and Materials,01/05/2019,3583182-112279,"1,545.00",GUSTHARTS LTD.
Regeneration and Local Services,Environmental Services,Supplies and Services,304221,Equipment and Materials,01/05/2019,3583182-112354,502.50,GUSTHARTS LTD.
Regeneration and Local Services,Technical Services CM0300,Third Party Payments 4THIRD,430127,Rendered by Private Contractors,01/05/2019,3583195-2616,"2,062.50",IAN C LIDDLE.
Regeneration and Local Services,Technical Services CM0300,Third Party Payments 4THIRD,430127,Rendered by Private Contractors,01/05/2019,3583195-2617,"2,062.50",IAN C LIDDLE.
Regeneration and Local Services,Technical Services CM0300,Third Party Payments 4THIRD,430127,Rendered by Private Contractors,01/05/2019,3583195-2631,975.00,IAN C LIDDLE.
Regeneration and Local Services,Technical Services CM0300,Supplies and Services,304358,Equipment and Materials,01/05/2019,3583210-28126,"1,054.00",JOHN R BUTTERFIELD LTD.
Regeneration and Local Services,Technical Services CM0300,Supplies and Services,304358,Equipment and Materials,01/05/2019,3583210-28141,"1,184.00",JOHN R BUTTERFIELD LTD.
Regeneration and Local Services,Technical Services CM0300,Supplies and Services,304358,Equipment and Materials,01/05/2019,3583210-28466,932.00,JOHN R BUTTERFIELD LTD.
Regeneration and Local Services,Environmental Services,Supplies and Services,304358,Equipment and Materials,01/05/2019,3583210-29415,905.00,JOHN R BUTTERFIELD LTD.
Regeneration and Local Services,Technical Services CM0300,Supplies and Services,304358,Equipment and Materials,01/05/2019,3583210-29433,"1,192.00",JOHN R BUTTERFIELD LTD.
Regeneration and Local Services,Environmental Services,Supplies and Services,304358,Equipment and Materials,01/05/2019,3583210-29437,905.00,JOHN R BUTTERFIELD LTD.
Regeneration and Local Services,Corporate Property and Land,Supplies and Services,304221,Equipment and Materials,01/05/2019,3583218-BII284778,"1,034.04",JT DOVE LTD.
Regeneration and Local Services,Environmental Services,Supplies and Services,304221,Equipment and Materials,01/05/2019,3583218-BII284781,507.60,JT DOVE LTD.
Regeneration and Local Services,Technical Services CM0300,Supplies and Services,304358,Equipment and Materials,01/05/2019,3583222-2716,"1,225.00",KEVIN SNOWDON GROUNDWORKS LTD.
Regeneration and Local Services,Technical Services CM0300,Supplies and Services,304358,Equipment and Materials,01/05/2019,3583222-2717,"1,736.00",KEVIN SNOWDON GROUNDWORKS LTD.
Regeneration and Local Services,Technical Services CM0300,Supplies and Services,304358,Equipment and Materials,01/05/2019,3583222-2720,"1,561.00",KEVIN SNOWDON GROUNDWORKS LTD.
Regeneration and Local Services,Technical Services CM0300,Supplies and Services,304358,Equipment and Materials,01/05/2019,3583222-2722,"1,254.00",KEVIN SNOWDON GROUNDWORKS LTD.
Regeneration and Local Services,Technical Services CM0300,Supplies and Services,304358,Equipment and Materials,01/05/2019,3583222-2723,"1,225.00",KEVIN SNOWDON GROUNDWORKS LTD.
Regeneration and Local Services,Technical Services CM0300,Supplies and Services,304358,Equipment and Materials,01/05/2019,3583222-2725,"1,461.00",KEVIN SNOWDON GROUNDWORKS LTD.
Regeneration and Local Services,Technical Services CM0300,Supplies and Services,304358,Equipment and Materials,01/05/2019,3583222-2727,795.50,KEVIN SNOWDON GROUNDWORKS LTD.
Regeneration and Local Services,Technical Services CM0300,Supplies and Services,304358,Equipment and Materials,01/05/2019,3583222-2732,"1,561.00",KEVIN SNOWDON GROUNDWORKS LTD.
Regeneration and Local Services,Technical Services CM0300,Supplies and Services,304358,Equipment and Materials,01/05/2019,3583222-2733,"1,254.00",KEVIN SNOWDON GROUNDWORKS LTD.
Regeneration and Local Services,Technical Services CM0300,Supplies and Services,304358,Equipment and Materials,01/05/2019,3583222-2739,884.00,KEVIN SNOWDON GROUNDWORKS LTD.
Regeneration and Local Services,Technical Services CM0300,Supplies and Services,304358,Equipment and Materials,01/05/2019,3583222-2740,902.00,KEVIN SNOWDON GROUNDWORKS LTD.
Regeneration and Local Services,Technical Services CM0300,Supplies and Services,304358,Equipment and Materials,01/05/2019,3583222-2742,"1,114.00",KEVIN SNOWDON GROUNDWORKS LTD.
Regeneration and Local Services,Technical Services CM0300,Supplies and Services,304358,Equipment and Materials,01/05/2019,3583222-2743,"1,137.00",KEVIN SNOWDON GROUNDWORKS LTD.
Regeneration and Local Services,Technical Services CM0300,Supplies and Services,304358,Equipment and Materials,01/05/2019,3583222-2746,"1,036.50",KEVIN SNOWDON GROUNDWORKS LTD.
Regeneration and Local Services,Technical Services CM0300,Supplies and Services,304358,Equipment and Materials,01/05/2019,3583222-2747,634.25,KEVIN SNOWDON GROUNDWORKS LTD.
Regeneration and Local Services,Technical Services CM0300,Supplies and Services,304358,Equipment and Materials,01/05/2019,3583222-2750,819.00,KEVIN SNOWDON GROUNDWORKS LTD.
Regeneration and Local Services,Technical Services CM0300,Supplies and Services,304358,Equipment and Materials,01/05/2019,3583222-2751,901.00,KEVIN SNOWDON GROUNDWORKS LTD.
Regeneration and Local Services,Technical Services CM0300,Supplies and Services,304358,Equipment and Materials,01/05/2019,3583222-2757,519.00,KEVIN SNOWDON GROUNDWORKS LTD.
Regeneration and Local Services,Technical Services CM0300,Supplies and Services,304358,Equipment and Materials,01/05/2019,3583222-2759,"5,220.00",KEVIN SNOWDON GROUNDWORKS LTD.
Regeneration and Local Services,Technical Services CM0300,Supplies and Services,304358,Equipment and Materials,01/05/2019,3583222-2760,776.00,KEVIN SNOWDON GROUNDWORKS LTD.
Regeneration and Local Services,Culture & Sport,Supplies and Services,312010,Newspapers books and periodicals E312,01/05/2019,3583237-79057,625.00,LIVING NORTH LTD.
Regeneration and Local Services,Environmental Services,Supplies and Services,304358,Equipment and Materials,01/05/2019,3583243-26BB,700.00,M & E & MR WALTON.
Regeneration and Local Services,Technical Services CM0300,Supplies and Services,304358,Equipment and Materials,01/05/2019,3583245-MS1506,"1,656.00",M SPENCE SURFACING LTD.
Regeneration and Local Services,Technical Services CM0300,Supplies and Services,304358,Equipment and Materials,01/05/2019,3583245-MS1539,"1,386.45",M SPENCE SURFACING LTD.
Regeneration and Local Services,Technical Services CM0300,Supplies and Services,304358,Equipment and Materials,01/05/2019,3583245-MS1540,994.28,M SPENCE SURFACING LTD.
Regeneration and Local Services,Environmental Services,Cap Exp on Grants & Other Financial Assistance (REFCUS),918501,Exp assets not owned by authority,01/05/2019,3583246-1102,"53,741.48",MARSDEN AES LTD.
Regeneration and Local Services,Environmental Services,Third Party Payments 4THIRD,430100,Rendered by Private Contractors,01/05/2019,3583264-10570,552.43,N1 JETTING SYSTEMS LTD.
Regeneration and Local Services,Culture & Sport,Supplies and Services,384237,Miscellaneous Expenses,01/05/2019,3583281-3610038663,"1,455.00",NORTH TEES & HARTLEPOOL NHS FOUNDATION TRUST.
Regeneration and Local Services,Environmental Services,Transport,230005,Contract Hire,01/05/2019,3583283-SL05445986INV,533.40,NORTHGATE VEHICLE HIRE LTD.
Regeneration and Local Services,Environmental Services,Transport,230005,Contract Hire,01/05/2019,3583283-SL05547418INV,551.18,NORTHGATE VEHICLE HIRE LTD.
Regeneration and Local Services,Culture & Sport,Supplies and Services,304259,Equipment and Materials,01/05/2019,3583284-57876,994.00,NORTHWEST RADIO COMMUNICATIONS LTD.
Regeneration and Local Services,Technical Services CM0300,Premises,120009,Energy Costs,01/05/2019,3583286-NNO77YZ2,"191,044.61",NPOWER.
Regeneration and Local Services,Environmental Services,Transport,215005,Running Costs of Vehicles,01/05/2019,3583290-416147,"13,435.50",OIL NRG LTD.
Regeneration and Local Services,Environmental Services,Transport,215005,Running Costs of Vehicles,01/05/2019,3583290-416225,"13,436.53",OIL NRG LTD.
Regeneration and Local Services,Environmental Services,Transport,215005,Running Costs of Vehicles,01/05/2019,3583290-416228,"5,189.58",OIL NRG LTD.
Regeneration and Local Services,Environmental Services,Transport,215022,Running Costs of Vehicles,01/05/2019,3583290-416226,"2,848.93",OIL NRG LTD.
Regeneration and Local Services,Corporate Property and Land,Third Party Payments 4THIRD,430100,Rendered by Private Contractors,01/05/2019,3583292-9722-30,"1,064.65",OPUS BUILDING SERVICES LTD.
Regeneration and Local Services,Corporate Property and Land,Third Party Payments 4THIRD,430100,Rendered by Private Contractors,01/05/2019,3583298-1991,"36,681.60",PARAMOUNT CEILINGS & PARTITIONS.
Regeneration and Local Services,Technical Services CM0300,Supplies and Services,338027,Services,01/05/2019,3583308-W190115,"4,824.11",PELL FRISCHMANN CONSULTANTS LTD.
Regeneration and Local Services,Environmental Services,Supplies and Services,338066,Services,01/05/2019,3583313-08042019,600.00,PHILIP NIXON (PHOTOGRAPHER).
Regeneration and Local Services,Technical Services CM0300,Third Party Payments 4THIRD,430100,Rendered by Private Contractors,01/05/2019,3583316-5475,"3,738.42",PINKNEY BUILDING CONTRACTORS LTD.
Regeneration and Local Services,Technical Services CM0300,Third Party Payments 4THIRD,430100,Rendered by Private Contractors,01/05/2019,3583316-5476,"3,738.42",PINKNEY BUILDING CONTRACTORS LTD.
Regeneration and Local Services,Technical Services CM0300,Third Party Payments 4THIRD,430100,Rendered by Private Contractors,01/05/2019,3583316-5477,"3,738.42",PINKNEY BUILDING CONTRACTORS LTD.
Regeneration and Local Services,Technical Services CM0300,Third Party Payments 4THIRD,430100,Rendered by Private Contractors,01/05/2019,3583316-5478,"3,738.42",PINKNEY BUILDING CONTRACTORS LTD.
Regeneration and Local Services,Technical Services CM0300,Third Party Payments 4THIRD,430100,Rendered by Private Contractors,01/05/2019,3583332-11754,802.70,QUANTUM POWER CONNECTIONS LTD.
Regeneration and Local Services,Technical Services CM0300,Third Party Payments 4THIRD,430100,Rendered by Private Contractors,01/05/2019,3583332-11763,"9,514.22",QUANTUM POWER CONNECTIONS LTD.
Regeneration and Local Services,Culture & Sport,Supplies and Services,338047,Services,01/05/2019,3583337-000005,"3,957.00",REACT YOUTH THEATRE GROUP.
Regeneration and Local Services,Environmental Services,Supplies and Services,304221,Equipment and Materials,01/05/2019,3583347-RSIN0295200,"4,949.40",RIGBY TAYLOR LTD.
Regeneration and Local Services,Environmental Services,Supplies and Services,304259,Equipment and Materials,01/05/2019,3583347-RSIN0295146,989.88,RIGBY TAYLOR LTD.
Regeneration and Local Services,Culture & Sport,Supplies and Services,384956,Miscellaneous Expenses,01/05/2019,3583349-SI603109-1,617.00,RLSS UK ENTERPRISES LTD T/A LIFESAVERS DIRECT.
Regeneration and Local Services,Technical Services CM0300,Supplies and Services,372009,Subscriptions E372,01/05/2019,3583351-02367118FTI,935.00,ROYAL INSTITUTION OF CHARTERED SURVEYORS (RICS).
Regeneration and Local Services,Business Support DM0110,Supplies and Services,340001,Postages E340,01/05/2019,3583352-9058570663,"2,006.85",ROYAL MAIL GROUP PLC.
Regeneration and Local Services,Environmental Services,Third Party Payments 4THIRD,430100,Rendered by Private Contractors,01/05/2019,3583354-1838,"5,320.00",S & R LANDSCAPES.
Regeneration and Local Services,Corporate Property and Land,Third Party Payments 4THIRD,430100,Rendered by Private Contractors,01/05/2019,3583357-30908,804.00,S&G ENGINEERING (NE) LTD.
Regeneration and Local Services,Culture & Sport,Supplies and Services,304259,Equipment and Materials,01/05/2019,3583378-00358757,"2,037.60",STAGE ELECTRICS PARTNERSHIP LTD.
Regeneration and Local Services,Technical Services CM0300,Supplies and Services,304221,Equipment and Materials,01/05/2019,3583390-9039604284,873.38,TARMAC TRADING LTD.
Regeneration and Local Services,Technical Services CM0300,Supplies and Services,304221,Equipment and Materials,01/05/2019,3583390-9039826921,694.80,TARMAC TRADING LTD.
Regeneration and Local Services,Technical Services CM0300,Supplies and Services,304221,Equipment and Materials,01/05/2019,3583390-9039924540,635.53,TARMAC TRADING LTD.
Regeneration and Local Services,Technical Services CM0300,Supplies and Services,304221,Equipment and Materials,01/05/2019,3583390-9039931780,581.10,TARMAC TRADING LTD.
Regeneration and Local Services,Technical Services CM0300,Supplies and Services,304221,Equipment and Materials,01/05/2019,3583390-9039933014,528.78,TARMAC TRADING LTD.
Regeneration and Local Services,Business Durham CL0850,Supplies and Services,344033,Telephones,01/05/2019,3583401-004299319,984.85,THE PHONE CO-OP.
Regeneration and Local Services,Environmental Services,Premises,108099,Service Repairs and Maintenance,01/05/2019,3583407-0230,"2,416.67",THE SKILL MILL LTD.
Regeneration and Local Services,Technical Services CM0300,Supplies and Services,304358,Equipment and Materials,01/05/2019,3583416-32737,536.00,TODDS HIGHWAY MAINTENANCE LTD.
Regeneration and Local Services,Technical Services CM0300,Stock A926,926900,Stock in hand-Inventory system,01/05/2019,3583418-101711,"2,200.00",TOTAL RENTAL SOLUTIONS.
Regeneration and Local Services,Environmental Services,Transport,230005,Contract Hire,01/05/2019,3583423-19580,975.00,TRASH UK LTD.
Regeneration and Local Services,Environmental Services,Transport,230005,Contract Hire,01/05/2019,3583423-19601,975.00,TRASH UK LTD.
Regeneration and Local Services,Environmental Services,Transport,230005,Contract Hire,01/05/2019,3583423-19634,975.00,TRASH UK LTD.
Regeneration and Local Services,Corporate Property and Land,Supplies and Services,304221,Equipment and Materials,01/05/2019,3583431-04015530,591.28,UK ELECTRIC LTD.
Regeneration and Local Services,Culture & Sport,Supplies and Services,304259,Equipment and Materials,01/05/2019,3583433-US2525,520.00,ULTIMATE SUPPLIES (NORTH) LTD.
Regeneration and Local Services,Corporate Property and Land,Supplies and Services,304358,Equipment and Materials,01/05/2019,3583444-46608,"1,887.00",W MARLEY AGRICULTURAL CONTRACTORS LTD.
Regeneration and Local Services,Environmental Services,Premises,120009,Energy Costs,01/05/2019,3583449-MI00133139,851.00,WESTERN POWER DISTRIBUTION.
Regeneration and Local Services,Development and Housing,Supplies and Services,384437,Miscellaneous Expenses,01/05/2019,3583450-UOTR4514878,"2,955.49",WESTERN UNION BUSINESS SOLUTIONS.
Regeneration and Local Services,Environmental Services,Transport,210057,Repair and Maintenance of Vehicles,01/05/2019,3583451-902179760,"2,214.23",WIRTGEN LTD.
Regeneration and Local Services,Environmental Services,Transport,210057,Repair and Maintenance of Vehicles,01/05/2019,3583461-121495,546.20,ZOELLER WASTE SYSTEMS LTD.
Resources BK0010,Legal & Democratic Services,Supplies and Services,384199,Miscellaneous Expenses,01/05/2019,3583097-RES-04-2019-194,750.00,CRYSTALLISED LTD.
Resources BK0010,Legal & Democratic Services,Supplies and Services,338042,Services,01/05/2019,3583111-339970/INVCMC251,700.00,DERE STREET BARRISTERS.
Resources BK0010,Legal & Democratic Services,Supplies and Services,338042,Services,01/05/2019,3583111-343270/INVAP148,"1,100.00",DERE STREET BARRISTERS.
Resources BK0010,Legal & Democratic Services,Supplies and Services,338042,Services,01/05/2019,3583111-347359/INVEL124,550.00,DERE STREET BARRISTERS.
Resources BK0010,Digital and Customer Services,Supplies and Services,304639,Equipment and Materials,01/05/2019,3583115-147209179,607.03,DIVERSEY LTD.
Resources BK0010,People & Talent Management,Supplies and Services,372009,Subscriptions E372,01/05/2019,3583167-105125109,"7,000.00",GATESHEAD COUNCIL.
Resources BK0010,Legal & Democratic Services,Supplies and Services,338025,Services,01/05/2019,3583185-19-088,540.00,HARDYS FUNERAL SERVICE.
Resources BK0010,Legal & Democratic Services,Supplies and Services,338025,Services,01/05/2019,3583185-19089,910.00,HARDYS FUNERAL SERVICE.
Resources BK0010,Legal & Democratic Services,Supplies and Services,384199,Miscellaneous Expenses,01/05/2019,3583242-NECP004,"1,164.11",LOOP.
Adult and Health Services,Head of Adults,Supplies and Services,304259,Equipment and Materials,02/05/2019,3583479-165135,"1,598.00",ALBANY OFFICE EQUIPMENT (WHOLESALE) LTD.
Adult and Health Services,Head of Adults,Third Party Payments 4THIRD,486020,Service level agreements E486,02/05/2019,3583564-PIG_1776,"10,219.04",COMMUNITY INTEGRATED CARE LTD.
Adult and Health Services,Head of Adults,Supplies and Services,338042,Services,02/05/2019,3583587-339472/INVSRG80,"1,500.00",DERE STREET BARRISTERS.
Adult and Health Services,Head of Adults,Supplies and Services,338042,Services,02/05/2019,3583587-346388/INVSRG82,665.00,DERE STREET BARRISTERS.
Adult and Health Services,Head of Adults,Third Party Payments 4THIRD,472101,Purchase of Care,02/05/2019,3583752-0000039664,852.50,NORTH EAST AUTISM SOCIETY.
Adult and Health Services,Head of Adults,Third Party Payments 4THIRD,474101,Purchase of Care,02/05/2019,3583799-18/12/18,"3,392.85",RENAL HEALTH LTD.
Adult and Health Services,Public Health CC0450,Third Party Payments 4THIRD,460803,Contract Payments,02/05/2019,3583825-2507B,"123,500.00",SOLUTIONS 4 HEALTH LTD.
Children and Young Peoples Services,Head of Education and Skills,Transport,230008,Contract Hire,02/05/2019,3583476-07/19A,880.00,ADVANCE TRAVEL.
Children and Young Peoples Services,Head of Education and Skills,Transport,230006,Contract Hire,02/05/2019,3583507-6-APRIL,500.00,BELMONT TAXIS.
Children and Young Peoples Services,Head of Education and Skills,Transport,230007,Contract Hire,02/05/2019,3583513-22231,"1,568.00",BLUELINE TAXIS.
Children and Young Peoples Services,Head of Education and Skills,Transport,230007,Contract Hire,02/05/2019,3583513-22232,"1,308.00",BLUELINE TAXIS.
Children and Young Peoples Services,Head of Education and Skills,Transport,230007,Contract Hire,02/05/2019,3583513-22233,"1,188.00",BLUELINE TAXIS.
Children and Young Peoples Services,Head of Education and Skills,Transport,230008,Contract Hire,02/05/2019,3583553-INV-028,890.00,CLARE LYNSEY STEWART T/A K&C TAXIS.
Children and Young Peoples Services,Head of Childrens Social Care,Supplies and Services,338043,Services,02/05/2019,3583554-18D755,573.48,CLARK WILLIS LAW FIRM.
Children and Young Peoples Services,Head of Education and Skills,Transfer Payments,510027,School Children,02/05/2019,3583643-INV07847,783.00,GREAT AYCLIFFE TOWN COUNCIL.
Children and Young Peoples Services,Head of Education and Skills,Third Party Payments 4THIRD,440999,Other third party payments E440,02/05/2019,3583650-0000013129,"2,837.64",GROUNDWORK NORTH EAST.
Children and Young Peoples Services,Head of Education and Skills,Transport,230007,Contract Hire,02/05/2019,3583658-15561,"1,809.78",HODGSONS COACH OPERATORS LTD.
Children and Young Peoples Services,Head of Education and Skills,Transport,230007,Contract Hire,02/05/2019,3583658-15563,"2,036.16",HODGSONS COACH OPERATORS LTD.
Children and Young Peoples Services,Head of Education and Skills,Transport,230007,Contract Hire,02/05/2019,3583658-15564,"3,127.95",HODGSONS COACH OPERATORS LTD.
Children and Young Peoples Services,Head of Education and Skills,Transport,230007,Contract Hire,02/05/2019,3583658-15565,"3,167.22",HODGSONS COACH OPERATORS LTD.
Children and Young Peoples Services,Head of Education and Skills,Transport,230007,Contract Hire,02/05/2019,3583658-15566,"3,081.12",HODGSONS COACH OPERATORS LTD.
Children and Young Peoples Services,Head of Education and Skills,Transport,230007,Contract Hire,02/05/2019,3583658-15567,"1,712.97",HODGSONS COACH OPERATORS LTD.
Children and Young Peoples Services,Head of Education and Skills,Transport,230007,Contract Hire,02/05/2019,3583658-15568,"1,695.54",HODGSONS COACH OPERATORS LTD.
Children and Young Peoples Services,Head of Education and Skills,Transport,230007,Contract Hire,02/05/2019,3583658-15569,"2,370.06",HODGSONS COACH OPERATORS LTD.
Children and Young Peoples Services,Head of Education and Skills,Transport,230007,Contract Hire,02/05/2019,3583658-15570,851.13,HODGSONS COACH OPERATORS LTD.
Children and Young Peoples Services,Head of Education and Skills,Transport,230007,Contract Hire,02/05/2019,3583658-15571,"2,141.58",HODGSONS COACH OPERATORS LTD.
Children and Young Peoples Services,Head of Education and Skills,Transport,230007,Contract Hire,02/05/2019,3583658-15572,"1,024.59",HODGSONS COACH OPERATORS LTD.
Children and Young Peoples Services,Head of Education and Skills,Transport,230007,Contract Hire,02/05/2019,3583658-15573,950.25,HODGSONS COACH OPERATORS LTD.
Children and Young Peoples Services,Head of Education and Skills,Transport,230007,Contract Hire,02/05/2019,3583658-15574,"1,282.05",HODGSONS COACH OPERATORS LTD.
Children and Young Peoples Services,Head of Education and Skills,Transport,230007,Contract Hire,02/05/2019,3583658-15575,"1,631.40",HODGSONS COACH OPERATORS LTD.
Children and Young Peoples Services,Head of Education and Skills,Transport,230003,Contract Hire,02/05/2019,3583705-6756-4017,"1,734.00",LEE`S COACHES LTD.
Children and Young Peoples Services,Head of Education and Skills,Transport,230003,Contract Hire,02/05/2019,3583705-6756-4020,"1,512.00",LEE`S COACHES LTD.
Children and Young Peoples Services,Head of Education and Skills,Supplies and Services,384199,Miscellaneous Expenses,02/05/2019,3583705-6729,"1,898.00",LEE`S COACHES LTD.
Children and Young Peoples Services,Head of Education and Skills,Transport,230008,Contract Hire,02/05/2019,3583727-INV171,572.00,MICHAEL COBB T/A HAIL TAXIS.
Children and Young Peoples Services,Head of Education and Skills,Transport,230008,Contract Hire,02/05/2019,3583735-66,565.00,MR PAUL BOWMAN.
Children and Young Peoples Services,Head of Education and Skills,Transport,230007,Contract Hire,02/05/2019,3583753-5778,"1,416.00",NORTH EAST COACHWAYS LTD.
Children and Young Peoples Services,Head of Education and Skills,Transport,230007,Contract Hire,02/05/2019,3583753-5781,"1,320.00",NORTH EAST COACHWAYS LTD.
Children and Young Peoples Services,Head of Education and Skills,Transport,230007,Contract Hire,02/05/2019,3583753-5782,"1,824.00",NORTH EAST COACHWAYS LTD.
Children and Young Peoples Services,Head of Education and Skills,Transport,230003,Contract Hire,02/05/2019,3583753-5777,"1,500.00",NORTH EAST COACHWAYS LTD.
Children and Young Peoples Services,Head of Education and Skills,Transport,230013,Contract Hire,02/05/2019,3583806-ROXDCC77,"1,800.00",ROXBYS BUS HIRE.
Children and Young Peoples Services,Head of Education and Skills,Transport,230008,Contract Hire,02/05/2019,3583835-070,"1,470.00",STEPHEN BALL T/A ABBIE`S TAXIS..
Children and Young Peoples Services,Head of Education and Skills,Supplies and Services,384302,Miscellaneous Expenses,02/05/2019,3583843-9411,728.58,SUPPORTIVE SRC LTD.
Children and Young Peoples Services,Head of Education and Skills,Transport,230008,Contract Hire,02/05/2019,3583850-B986,"2,100.00",TALBOTS TRAVEL LTD.
Children and Young Peoples Services,Head of Education and Skills,Transport,230008,Contract Hire,02/05/2019,3583875-114,"1,050.00",TRIDENT TAXIS.
Regeneration and Local Services,Technical Services CM0300,Supplies and Services,304221,Equipment and Materials,02/05/2019,3583478-28085101,"3,995.04",AGGREGATE INDUSTRIES UK LTD.
Regeneration and Local Services,Technical Services CM0300,Supplies and Services,304221,Equipment and Materials,02/05/2019,3583478-28085103,795.70,AGGREGATE INDUSTRIES UK LTD.
Regeneration and Local Services,Technical Services CM0300,Supplies and Services,304221,Equipment and Materials,02/05/2019,3583478-28085104,"2,169.20",AGGREGATE INDUSTRIES UK LTD.
Regeneration and Local Services,Culture & Sport,Supplies and Services,384199,Miscellaneous Expenses,02/05/2019,3583484-6783,"4,800.00",ALROSE PRODUCTIONS.
Regeneration and Local Services,Business Durham CL0850,Supplies and Services,384071,Miscellaneous Expenses,02/05/2019,3583497-INV-000000334,"1,350.00",ARTICHOKE TRUST.
Regeneration and Local Services,Environmental Services,Supplies and Services,304221,Equipment and Materials,02/05/2019,3583503-97532233,559.71,BALL COLEGRAVE LTD.
Regeneration and Local Services,Environmental Services,Supplies and Services,304221,Equipment and Materials,02/05/2019,3583503-97532234,"1,844.17",BALL COLEGRAVE LTD.
Regeneration and Local Services,Environmental Services,Supplies and Services,304221,Equipment and Materials,02/05/2019,3583503-97532236,"1,479.87",BALL COLEGRAVE LTD.
Regeneration and Local Services,Environmental Services,Supplies and Services,304221,Equipment and Materials,02/05/2019,3583503-97532238,"1,179.44",BALL COLEGRAVE LTD.
Regeneration and Local Services,Technical Services CM0300,Supplies and Services,304221,Equipment and Materials,02/05/2019,3583511-BMPR/247/LW,983.50,BISHOP MIDDLEHAM PLANT & RECYCLING LTD.
Regeneration and Local Services,Business Durham CL0850,Supplies and Services,338066,Services,02/05/2019,3583525-200,"2,175.00",BRYAN LATTY (FREELANCE CONSULTANT).
Regeneration and Local Services,Transport and Contracted Services,Construction work A908,908105,Construction work,02/05/2019,3583528-25572,"2,733.48",BUS SHELTERS LTD.
Regeneration and Local Services,Environmental Services,Supplies and Services,304259,Equipment and Materials,02/05/2019,3583537-403482,914.00,CARRS BILLINGTON AGRICULTURE.
Regeneration and Local Services,Corporate Property and Land,Third Party Payments 4THIRD,430100,Rendered by Private Contractors,02/05/2019,3583539-5801,"1,146.10",CATHEDRAL LOCK & SAFE SERVICES LTD.
Regeneration and Local Services,Technical Services CM0300,Supplies and Services,304358,Equipment and Materials,02/05/2019,3583543-1702,"4,382.60",CG SIMPSON & SON.
Regeneration and Local Services,Technical Services CM0300,Third Party Payments 4THIRD,430100,Rendered by Private Contractors,02/05/2019,3583583-16107,"12,355.00",DCM PREMIER PLAY SURFACES.
Regeneration and Local Services,Environmental Services,Supplies and Services,304221,Equipment and Materials,02/05/2019,3583599-0000029330,"3,780.00",EAST RIDING HORTICULTURE LTD.
Regeneration and Local Services,Corporate Property and Land,Supplies and Services,304245,Equipment and Materials,02/05/2019,3583603-059-242514,776.92,EDMUNDSON ELECTRICAL LTD.
Regeneration and Local Services,Business Durham CL0850,Supplies and Services,352001,Conference Expenses,02/05/2019,3583612-CWC085,"6,000.00",ENGLAND & WALES CRICKET BOARD LTD.
Regeneration and Local Services,Technical Services CM0300,Supplies and Services,304358,Equipment and Materials,02/05/2019,3583613-SI-167,"2,497.50",ENVIROROD LTD.
Regeneration and Local Services,Technical Services CM0300,Supplies and Services,304358,Equipment and Materials,02/05/2019,3583613-SI-215,"1,998.00",ENVIROROD LTD.
Regeneration and Local Services,Transport and Contracted Services,Supplies and Services,338080,Services,02/05/2019,3583616-816,"1,358.50",ESP SYSTEX LTD.
Regeneration and Local Services,Corporate Property and Land,Supplies and Services,304221,Equipment and Materials,02/05/2019,3583627-1904-192359,590.30,FLAME HEATING SPARES LTD.
Regeneration and Local Services,Culture & Sport,Premises,145023,Cleaning and Domestic Supplies,02/05/2019,3583646-06/794233,719.66,GREENHAM TRADING LTD.
Regeneration and Local Services,Culture & Sport,Supplies and Services,304259,Equipment and Materials,02/05/2019,3583651-INV0174665,"1,300.00",GV MULTIMEDIA LTD.
Regeneration and Local Services,Environmental Services,Supplies and Services,304221,Equipment and Materials,02/05/2019,3583657-105096,"3,079.80",HEXHAM MACHINERY CENTRE LTD.
Regeneration and Local Services,Technical Services CM0300,Stock A926,926900,Stock in hand-Inventory system,02/05/2019,3583667-678616,831.60,INSTARMAC GROUP PLC.
Regeneration and Local Services,Technical Services CM0300,Stock A926,926900,Stock in hand-Inventory system,02/05/2019,3583667-678669,"2,366.00",INSTARMAC GROUP PLC.
Regeneration and Local Services,Corporate Property and Land,Supplies and Services,304221,Equipment and Materials,02/05/2019,3583668-30298,"1,470.00",INTERPLAN SIGN SYSTEMS LTD.
Regeneration and Local Services,Culture & Sport,Supplies and Services,338047,Services,02/05/2019,3583677-MH/7524,"1,200.00",JANET PLATER MANAGEMENT LTD.
Regeneration and Local Services,Business Durham CL0850,Supplies and Services,377015,County Durham Development,02/05/2019,3583679-175,"4,800.00",JENNIFER ROBSON.
Regeneration and Local Services,Corporate Property and Land,Supplies and Services,304221,Equipment and Materials,02/05/2019,3583685-GOI1574/D,"3,923.40",JT DOVE LTD.
Regeneration and Local Services,Environmental Services,Cap Exp on Grants & Other Financial Assistance (REFCUS),918501,Exp assets not owned by authority,02/05/2019,3583686-1074,"12,977.60",JW BAINBRIDGE CONTRACTORS LTD.
Regeneration and Local Services,Technical Services CM0300,Third Party Payments 4THIRD,430100,Rendered by Private Contractors,02/05/2019,3583687-38025,595.00,KAEFER LTD.
Regeneration and Local Services,Technical Services CM0300,Third Party Payments 4THIRD,430100,Rendered by Private Contractors,02/05/2019,3583698-2040,"34,394.34",L & G PLANT HIRE & SALES LTD.
Regeneration and Local Services,Business Durham CL0850,Supplies and Services,336005,Advertising E336,02/05/2019,3583703-PBP2019001,"2,495.00",LEC CONSULTANCY LTD.
Regeneration and Local Services,Technical Services CM0300,Supplies and Services,304358,Equipment and Materials,02/05/2019,3583719-MS1551,"1,386.45",M SPENCE SURFACING LTD.
Regeneration and Local Services,Technical Services CM0300,Supplies and Services,304358,Equipment and Materials,02/05/2019,3583719-MS1552,994.28,M SPENCE SURFACING LTD.
Regeneration and Local Services,Development and Housing,Supplies and Services,384700,Miscellaneous Expenses,02/05/2019,3583741-DCC1901,"9,873.00",NE FIRST CREDIT UNION FOR DURHAM COUNTY & GATESHEAD.
Regeneration and Local Services,Culture & Sport,Supplies and Services,338047,Services,02/05/2019,3583742-LR/3080,"1,200.00",NELSON BROWNE MANAGEMENT LTD.
Regeneration and Local Services,Culture & Sport,Supplies and Services,338047,Services,02/05/2019,3583742-SB/3076,"1,200.00",NELSON BROWNE MANAGEMENT LTD.
Regeneration and Local Services,Environmental Services,Supplies and Services,304221,Equipment and Materials,02/05/2019,3583745-064504,"1,666.66",NEW ROW FARM NURSERIES.
Regeneration and Local Services,Culture & Sport,Supplies and Services,338047,Services,02/05/2019,3583748-4100649248-2,"1,138.00",NICHOLA J REILLY (STAGE MANAGER).
Regeneration and Local Services,Environmental Services,Transport,215022,Running Costs of Vehicles,02/05/2019,3583759-415531,755.30,OIL NRG LTD.
Regeneration and Local Services,Environmental Services,Transport,215022,Running Costs of Vehicles,02/05/2019,3583759-417335,682.77,OIL NRG LTD.
Regeneration and Local Services,Environmental Services,Transport,215022,Running Costs of Vehicles,02/05/2019,3583759-417514,"13,230.86",OIL NRG LTD.
Regeneration and Local Services,Environmental Services,Transport,215022,Running Costs of Vehicles,02/05/2019,3583759-417515,"2,775.94",OIL NRG LTD.
Regeneration and Local Services,Corporate Property and Land,Third Party Payments 4THIRD,430100,Rendered by Private Contractors,02/05/2019,3583762-4550,"16,531.68",ORA PROPERTY SERVICES LTD.
Regeneration and Local Services,Technical Services CM0300,Stock A926,926900,Stock in hand-Inventory system,02/05/2019,3583768-XL238622,"2,950.00",PARK ELECTRICAL DISTRIBUTORS LTD.
Regeneration and Local Services,Corporate Property and Land,Supplies and Services,304221,Equipment and Materials,02/05/2019,3583786-73032,"1,124.55",POLLOCK LIFTS.
Regeneration and Local Services,Environmental Services,Supplies and Services,304221,Equipment and Materials,02/05/2019,3583788-158369,900.00,PREMIER TRAFFIC MANAGEMENT LTD.
Regeneration and Local Services,Technical Services CM0300,Supplies and Services,304221,Equipment and Materials,02/05/2019,3583790-119784,550.00,PROTECTOR SECURITY GROUP LTD.
Regeneration and Local Services,Technical Services CM0300,Third Party Payments 4THIRD,430100,Rendered by Private Contractors,02/05/2019,3583790-119782,550.00,PROTECTOR SECURITY GROUP LTD.
Regeneration and Local Services,Technical Services CM0300,Third Party Payments 4THIRD,430100,Rendered by Private Contractors,02/05/2019,3583793-11755,"22,625.44",QUANTUM POWER CONNECTIONS LTD.
Regeneration and Local Services,Development and Housing,Supplies and Services,384199,Miscellaneous Expenses,02/05/2019,3583822-INV-0082,"1,032.22",SINGLE HOMELESS ACTION INITIATIVE IN DURHAM LTD.
Regeneration and Local Services,Environmental Services,Transport,210057,Repair and Maintenance of Vehicles,02/05/2019,3583824-105/19/9784,"3,860.00",SOCIETE GENERALE EQUIPMENT FINANCE LTD.
Regeneration and Local Services,Technical Services CM0300,Stock A926,926900,Stock in hand-Inventory system,02/05/2019,3583827-270224624,545.72,SOVEREIGN CHEMICALS LTD.
Regeneration and Local Services,Environmental Services,Supplies and Services,338066,Services,02/05/2019,3583837-15,600.00,STEVEN LIPSCOMBE.
Regeneration and Local Services,Corporate Property and Land,Supplies and Services,304221,Equipment and Materials,02/05/2019,3583848-142331,508.45,T CROSSLING & CO LTD.
Regeneration and Local Services,Corporate Property and Land,Supplies and Services,304221,Equipment and Materials,02/05/2019,3583848-143749,768.40,T CROSSLING & CO LTD.
Regeneration and Local Services,Environmental Services,Third Party Payments 4THIRD,430103,Rendered by Private Contractors,02/05/2019,3583856-NEI-EXP-04-2019-013,"13,869.98",TEESDALE CONSERVATION VOLUNTEERS.
Regeneration and Local Services,Environmental Services,Supplies and Services,304221,Equipment and Materials,02/05/2019,3583879-58122,"1,400.00",TURF CARE SPECIALISTS LTD.
Regeneration and Local Services,Environmental Services,Supplies and Services,304259,Equipment and Materials,02/05/2019,3583892-0005001949,"2,700.00",VISION TECHNIQUES (UK) LTD.
Regeneration and Local Services,Environmental Services,Supplies and Services,304259,Equipment and Materials,02/05/2019,3583892-0005002012,"2,700.00",VISION TECHNIQUES (UK) LTD.
Regeneration and Local Services,Environmental Services,Supplies and Services,304259,Equipment and Materials,02/05/2019,3583892-0005002013,"2,700.00",VISION TECHNIQUES (UK) LTD.
Regeneration and Local Services,Technical Services CM0300,Third Party Payments 4THIRD,430100,Rendered by Private Contractors,02/05/2019,3583902-74,875.00,WHORLTON LAND SURVEYS LTD.
Regeneration and Local Services,Environmental Services,Supplies and Services,384899,Miscellaneous Expenses,02/05/2019,3583914-SIN003390,"15,167.57",YORKSHIRE WILDLIFE TRUST.
Resources BK0010,Digital and Customer Services,Stock A926,926900,Stock in hand-Inventory system,02/05/2019,3583586-7402521280,524.34,DELL COMPUTER CORPORATION LTD.
Resources BK0010,Digital and Customer Services,Stock A926,926900,Stock in hand-Inventory system,02/05/2019,3583586-7402521547,"6,024.00",DELL COMPUTER CORPORATION LTD.
Resources BK0010,Digital and Customer Services,Supplies and Services,304303,Equipment and Materials,02/05/2019,3583651-INV0174716,638.00,GV MULTIMEDIA LTD.
Resources BK0010,Digital and Customer Services,Supplies and Services,344131,Telephones,02/05/2019,3583721-12327147,585.00,MAINTEL EUROPE LTD.
Resources BK0010,Digital and Customer Services,Supplies and Services,304337,Equipment and Materials,02/05/2019,3583909-KQ65494,977.37,XMA LTD.
Resources BK0010,Digital and Customer Services,Stock A926,926900,Stock in hand-Inventory system,02/05/2019,3583909-KQ64440,"2,000.00",XMA LTD.
Transformation and Partnerships,Partnerships & Community Engagement Div.,Supplies and Services,384540,Miscellaneous Expenses,02/05/2019,3583711-3105474,"4,855.00",LITEWHITE LTD T/A BLUMILK.
Transformation and Partnerships,Partnerships & Community Engagement Div.,Supplies and Services,384086,Miscellaneous Expenses,02/05/2019,3583863-VOUCHERKELB06-18,500.00,THE ROTARY CLUB OF DURHAM ELVET.
Adult and Health Services,Head of Adults,Transport,230005,Contract Hire,03/05/2019,3584027-1533,840.00,CONNORS MINI BUSES.*
Adult and Health Services,Head of Adults,Transport,230005,Contract Hire,03/05/2019,3584047-THOR0419,737.10,D IRVING T/A BJ TAXIS.
Adult and Health Services,Head of Adults,Supplies and Services,338066,Services,03/05/2019,3584065-2903201903052019,"2,343.15",DR DAVID NEILL T/A NOBAS LTD.
Adult and Health Services,Head of Adults,Supplies and Services,338066,Services,03/05/2019,3584066-2903201903052019,"1,257.90",DR IPSITA MITRA T/A AIT MITRA LTD.
Adult and Health Services,Head of Adults,Supplies and Services,338066,Services,03/05/2019,3584067-2903201903052019,715.51,DR RASHEED ABUZEID.
Adult and Health Services,Head of Adults,Supplies and Services,338066,Services,03/05/2019,3584068-2903201903052019,"5,058.39",DR STEPHEN WILKINSON.
Adult and Health Services,Head of Adults,Transport,230005,Contract Hire,03/05/2019,3584090-2018/0159,590.00,ELLIOTTS OF TRIMDON.
Adult and Health Services,Head of Adults,Transport,230005,Contract Hire,03/05/2019,3584250-EDB104-19,561.99,MR CT WALKER T/A CW TAXIS.
Adult and Health Services,Public Health CC0450,Third Party Payments 4THIRD,460803,Contract Payments,03/05/2019,3584321-16491/14,"5,462.93",PIONEERING CARE PARTNERSHIP.
Adult and Health Services,Head of Adults,Supplies and Services,338066,Services,03/05/2019,3584336-2903201903052019,"1,233.46",PSYCH ONE LTD.
Adult and Health Services,Head of Adults,Supplies and Services,338066,Services,03/05/2019,3584377-2903201903052019,525.00,SHAN MEDICAL SERVICES LTD.
Adult and Health Services,Head of Adults,Transport,230005,Contract Hire,03/05/2019,3584384-1341,656.00,SIMONS TAXIS.
Adult and Health Services,Head of Adults,Transport,230005,Contract Hire,03/05/2019,3584440-0002063,"1,045.00",TONY RIDLEY T/A COLORS TAXIS LTD.
Adult and Health Services,Head of Adults,Supplies and Services,338045,Services,03/05/2019,3584467-722258,"2,399.00",WARD HADAWAY.
Adult and Health Services,Head of Adults,Supplies and Services,338066,Services,03/05/2019,3584490-2903201903052019,"1,400.00",ZM MEDICAL CONSULTANTS LIMITED.
Children and Young Peoples Services,Head of Education and Skills,Transport,230006,Contract Hire,03/05/2019,3583925-HA220810,507.90,A MURRAY TRAVEL.
Children and Young Peoples Services,Head of Education and Skills,Transport,230008,Contract Hire,03/05/2019,3583925-A220808,690.00,A MURRAY TRAVEL.
Children and Young Peoples Services,Head of Education and Skills,Transport,230008,Contract Hire,03/05/2019,3583925-GC018,558.69,A MURRAY TRAVEL.
Children and Young Peoples Services,Head of Childrens Social Care,Third Party Payments 4THIRD,425021,Rendered by Voluntary Organisations,03/05/2019,3583927-1904/01,"12,857.14",ACORN CARE (UK) LTD T/A ACORN RESIDENTIAL SERVICES.
Children and Young Peoples Services,Head of Childrens Social Care,Third Party Payments 4THIRD,440038,Other third party payments E440,03/05/2019,3583930-INV-1040,"4,897.57",ADVOCATE RECRUITMENT LTD.
Children and Young Peoples Services,Head of Childrens Social Care,Third Party Payments 4THIRD,440038,Other third party payments E440,03/05/2019,3583930-INV-1055,"4,761.97",ADVOCATE RECRUITMENT LTD.
Children and Young Peoples Services,Head of Childrens Social Care,Third Party Payments 4THIRD,440038,Other third party payments E440,03/05/2019,3583930-INV-1072,969.84,ADVOCATE RECRUITMENT LTD.
Children and Young Peoples Services,Head of Education and Skills,Transport,230008,Contract Hire,03/05/2019,3583934-38895875,892.70,ALAN SOUTHERN T/A ALANS TAXIS PELTON FELL.
Children and Young Peoples Services,Head of Education and Skills,Transport,230008,Contract Hire,03/05/2019,3583945-4392-APRIL,990.00,ANDREW PYGALL T/A ARP TAXIS.
Children and Young Peoples Services,Head of Education and Skills,Transport,230008,Contract Hire,03/05/2019,3583961-30419,800.00,AVALON TAXIS.
Children and Young Peoples Services,Head of Childrens Social Care,Third Party Payments 4THIRD,425021,Rendered by Voluntary Organisations,03/05/2019,3583968-L0002,"26,876.10",BDT CARE SOLUTIONS LTD.
Children and Young Peoples Services,Head of Education and Skills,Transport,230008,Contract Hire,03/05/2019,3583970-SMITH1/APRIL19,"1,104.38",BEELINE PRIVATE HIRE.
Children and Young Peoples Services,Head of Childrens Social Care,Supplies and Services,338066,Services,03/05/2019,3583977-SIN006570,"54,947.91",BLOOM PROCUREMENT SERVICES LTD (FORMERLY NEPRO LTD).
Children and Young Peoples Services,Head of Education and Skills,Transport,230013,Contract Hire,03/05/2019,3583980-003-2071,800.00,BOWBURN TAXIS.
Children and Young Peoples Services,Head of Education and Skills,Transfer Payments,510027,School Children,03/05/2019,3583988-1722,"1,404.00",BUDDIES CHILDCARE CENTRE.
Children and Young Peoples Services,Head of Early Help Inclusion & Vulnerable Children.,Employees,080025,Agency Staff,03/05/2019,3584005-04045158,945.00,CER (A DIVISION OF AFFINITY WORKFORCE SOL LTD).
Children and Young Peoples Services,Head of Education and Skills,Transport,230007,Contract Hire,03/05/2019,3584008-30,660.00,CHAPMAN TRAVEL.
Children and Young Peoples Services,Head of Education and Skills,Transport,230007,Contract Hire,03/05/2019,3584015-5254/03,554.40,CHRISTOPHER MADDISON (TAXI).
Children and Young Peoples Services,Head of Education and Skills,Transport,230006,Contract Hire,03/05/2019,3584015-F763/08,704.00,CHRISTOPHER MADDISON (TAXI).
Children and Young Peoples Services,Head of Education and Skills,Transport,230008,Contract Hire,03/05/2019,3584021-020-APRIL,"1,749.00",CJ COACHES.
Children and Young Peoples Services,Head of Education and Skills,Transport,230007,Contract Hire,03/05/2019,3584022-1107,567.16,CLIVE HUBERY.
Children and Young Peoples Services,Head of Education and Skills,Transport,230008,Contract Hire,03/05/2019,3584027-1529,"1,038.29",CONNORS MINI BUSES.*
Children and Young Peoples Services,Head of Education and Skills,Transport,230008,Contract Hire,03/05/2019,3584027-1530,"1,106.05",CONNORS MINI BUSES.*
Children and Young Peoples Services,Head of Education and Skills,Transport,230008,Contract Hire,03/05/2019,3584027-1531,"1,060.84",CONNORS MINI BUSES.*
Children and Young Peoples Services,Head of Education and Skills,Transport,230008,Contract Hire,03/05/2019,3584027-1532,"1,354.32",CONNORS MINI BUSES.*
Children and Young Peoples Services,Head of Education and Skills,Supplies and Services,336005,Advertising E336,03/05/2019,3584041-2818,710.00,CURIOUS 12 LTD.
Children and Young Peoples Services,Head of Education and Skills,Transport,230008,Contract Hire,03/05/2019,3584042-45,835.12,CUTHBERT CABS.
Children and Young Peoples Services,Head of Education and Skills,Transport,230008,Contract Hire,03/05/2019,3584047-HOW0419,834.80,D IRVING T/A BJ TAXIS.
Children and Young Peoples Services,Head of Education and Skills,Transport,230007,Contract Hire,03/05/2019,3584049-SCEAPR1901,"1,100.00",DALELINK PRIVATE HIRE.
Children and Young Peoples Services,Head of Education and Skills,Transport,230009,Contract Hire,03/05/2019,3584050-3427,550.00,DAVES MINIBUSES.
Children and Young Peoples Services,Head of Education and Skills,Transport,230008,Contract Hire,03/05/2019,3584050-3428,959.31,DAVES MINIBUSES.
Children and Young Peoples Services,Head of Education and Skills,Transport,230008,Contract Hire,03/05/2019,3584050-3429,"1,388.20",DAVES MINIBUSES.
Children and Young Peoples Services,Head of Education and Skills,Transport,230008,Contract Hire,03/05/2019,3584050-3430,935.00,DAVES MINIBUSES.
Children and Young Peoples Services,Head of Education and Skills,Transport,230008,Contract Hire,03/05/2019,3584050-3431,"1,100.00",DAVES MINIBUSES.
Children and Young Peoples Services,Head of Education and Skills,Transport,230008,Contract Hire,03/05/2019,3584050-3432,"1,100.00",DAVES MINIBUSES.
Children and Young Peoples Services,Head of Early Help Inclusion & Vulnerable Children.,Supplies and Services,384899,Miscellaneous Expenses,03/05/2019,3584058-3961547,"1,160.53",DEPARTMENT FOR WORK & PENSIONS.
Children and Young Peoples Services,Head of Education and Skills,Transport,230012,Contract Hire,03/05/2019,3584060-011,955.57,DEXTERS PRIVATE HIRE.
Children and Young Peoples Services,Head of Education and Skills,Transport,230003,Contract Hire,03/05/2019,3584070-27883,"1,523.61",DURHAM CITY COACHES.
Children and Young Peoples Services,Head of Education and Skills,Transport,230003,Contract Hire,03/05/2019,3584070-7612-4015,"1,626.00",DURHAM CITY COACHES.
Children and Young Peoples Services,Head of Education and Skills,Transport,230003,Contract Hire,03/05/2019,3584070-7612-4019,"1,926.00",DURHAM CITY COACHES.
Children and Young Peoples Services,Head of Education and Skills,Transport,230003,Contract Hire,03/05/2019,3584070-7612-4023,"1,554.00",DURHAM CITY COACHES.
Children and Young Peoples Services,Head of Childrens Social Care,Third Party Payments 4THIRD,425021,Rendered by Voluntary Organisations,03/05/2019,3584077-AM0007,"14,528.58",DUTY OF CARE LTD.
Children and Young Peoples Services,Head of Childrens Social Care,Third Party Payments 4THIRD,425021,Rendered by Voluntary Organisations,03/05/2019,3584077-CD021,"20,357.14",DUTY OF CARE LTD.
Children and Young Peoples Services,Head of Childrens Social Care,Third Party Payments 4THIRD,425021,Rendered by Voluntary Organisations,03/05/2019,3584077-MP027,"18,428.57",DUTY OF CARE LTD.
Children and Young Peoples Services,Head of Childrens Social Care,Third Party Payments 4THIRD,440038,Other third party payments E440,03/05/2019,3584115-547,"14,880.00",FOREVER CARE LTD.
Children and Young Peoples Services,Head of Childrens Social Care,Third Party Payments 4THIRD,440038,Other third party payments E440,03/05/2019,3584115-549,"6,800.00",FOREVER CARE LTD.
Children and Young Peoples Services,Head of Childrens Social Care,Third Party Payments 4THIRD,440038,Other third party payments E440,03/05/2019,3584115-554,"14,040.00",FOREVER CARE LTD.
Children and Young Peoples Services,Head of Education and Skills,Transport,230008,Contract Hire,03/05/2019,3584123-BW007,"1,225.00",GAVIN ELLIOTT T/A LOCATION TAXIS.
Children and Young Peoples Services,Head of Education and Skills,Transport,230006,Contract Hire,03/05/2019,3584140-008-F724,585.00,GUY`S TAXIS.
Children and Young Peoples Services,Head of Education and Skills,Transport,230009,Contract Hire,03/05/2019,3584144-07,869.00,HARDIP SINGH MAHIL T/A AMBER CARS.
Children and Young Peoples Services,Head of Education and Skills,Transport,230006,Contract Hire,03/05/2019,3584144-29,759.00,HARDIP SINGH MAHIL T/A AMBER CARS.
Children and Young Peoples Services,Head of Childrens Social Care,Third Party Payments 4THIRD,425021,Rendered by Voluntary Organisations,03/05/2019,3584148-217,"24,822.64",HENNESSY GROUP.
Children and Young Peoples Services,Head of Education and Skills,Transport,230007,Contract Hire,03/05/2019,3584190-59-30/4/19,990.00,JOHN CRAKE & SONS MINI BUSES LTD.
Children and Young Peoples Services,Head of Education and Skills,Transport,230016,Contract Hire,03/05/2019,3584228-179,"1,890.00",MACS TAXIS LTD.
Children and Young Peoples Services,Head of Education and Skills,Transport,230008,Contract Hire,03/05/2019,3584229-51,902.88,MALCOLM CARR T/A CARLY CABS.
Children and Young Peoples Services,Head of Education and Skills,Transport,230008,Contract Hire,03/05/2019,3584233-0011,765.00,MARK WATSON T/A MARK`S TAXIS.
Children and Young Peoples Services,Head of Education and Skills,Transport,230006,Contract Hire,03/05/2019,3584250-COLL04-19,818.40,MR CT WALKER T/A CW TAXIS.
Children and Young Peoples Services,Head of Education and Skills,Transport,230012,Contract Hire,03/05/2019,3584250-CHPK04-19,"1,082.40",MR CT WALKER T/A CW TAXIS.
Children and Young Peoples Services,Head of Education and Skills,Transport,230007,Contract Hire,03/05/2019,3584251-106,575.63,MR JOHN ALLINSON T/A AALPHA TAXIS.
Children and Young Peoples Services,Head of Education and Skills,Transport,230006,Contract Hire,03/05/2019,3584251-105,846.00,MR JOHN ALLINSON T/A AALPHA TAXIS.
Children and Young Peoples Services,Head of Education and Skills,Supplies and Services,338027,Services,03/05/2019,3584256-0012,"1,750.00",MRS NATALIE ANNE DALTON (EDUCATIONAL CONSULTANT).
Children and Young Peoples Services,Head of Education and Skills,Transport,230008,Contract Hire,03/05/2019,3584264-52,904.93,NEIL PASSMOOR T/A NEIL`S TAXI.
Children and Young Peoples Services,Head of Education and Skills,Transport,230008,Contract Hire,03/05/2019,3584266-243,880.00,NEVILLE FORBES T/A FORBES TAXIS.
Children and Young Peoples Services,Head of Childrens Social Care,Third Party Payments 4THIRD,425021,Rendered by Voluntary Organisations,03/05/2019,3584288-146859,"25,885.00",NORTHUMBERLAND COUNTY COUNCIL.
Children and Young Peoples Services,Head of Education and Skills,Transport,230006,Contract Hire,03/05/2019,3584305-72-73,970.00,PAUL B TAXIS.
Children and Young Peoples Services,Head of Education and Skills,Transport,230007,Contract Hire,03/05/2019,3584306-4309-APRIL,550.00,PAUL GREEN T/A GREEN TAXIS.
Children and Young Peoples Services,Head of Childrens Social Care,Third Party Payments 4THIRD,425021,Rendered by Voluntary Organisations,03/05/2019,3584311-291220,"14,549.49",PEARTREE PROJECTS LTD.
Children and Young Peoples Services,Head of Childrens Social Care,Third Party Payments 4THIRD,425021,Rendered by Voluntary Organisations,03/05/2019,3584311-291221,"16,209.04",PEARTREE PROJECTS LTD.
Children and Young Peoples Services,Head of Education and Skills,Transport,230008,Contract Hire,03/05/2019,3584316-12A,760.00,PHILS TAXIS.
Children and Young Peoples Services,Head of Education and Skills,Transport,230012,Contract Hire,03/05/2019,3584324-1315,699.71,PODA TAXIS LTD.
Children and Young Peoples Services,Head of Education and Skills,Transport,230008,Contract Hire,03/05/2019,3584324-1313,"1,515.03",PODA TAXIS LTD.
Children and Young Peoples Services,Head of Childrens Social Care,Third Party Payments 4THIRD,425021,Rendered by Voluntary Organisations,03/05/2019,3584339-0000010296,"3,950.00",QUALITY TIME CARE LTD T/A HIGHCROFT SCHOOL.
Children and Young Peoples Services,Head of Childrens Social Care,Third Party Payments 4THIRD,425021,Rendered by Voluntary Organisations,03/05/2019,3584339-0000010300,"17,492.86",QUALITY TIME CARE LTD T/A HIGHCROFT SCHOOL.
Children and Young Peoples Services,Head of Childrens Social Care,Supplies and Services,384302,Miscellaneous Expenses,03/05/2019,3584342-420,"1,205.47",RAB OUTDOOR EDUCATION LTD.
Children and Young Peoples Services,Head of Early Help Inclusion & Vulnerable Children.,Premises,108099,Service Repairs and Maintenance,03/05/2019,3584352-211045,"3,062.32",RIELLO UPS LTD.
Children and Young Peoples Services,Head of Childrens Social Care,Third Party Payments 4THIRD,425021,Rendered by Voluntary Organisations,03/05/2019,3584354-30915,"19,600.00",RIGHT-TRAK LTD.
Children and Young Peoples Services,Head of Childrens Social Care,Third Party Payments 4THIRD,440038,Other third party payments E440,03/05/2019,3584359-4865,550.00,ROC FAMILY SUPPORT LTD.
Children and Young Peoples Services,Head of Childrens Social Care,Third Party Payments 4THIRD,440038,Other third party payments E440,03/05/2019,3584359-4875,"19,175.54",ROC FAMILY SUPPORT LTD.
Children and Young Peoples Services,Head of Education and Skills,Transport,230008,Contract Hire,03/05/2019,3584379-75102,888.00,SHOTTON PRIVATE HIRE.
Children and Young Peoples Services,Head of Education and Skills,Transport,230012,Contract Hire,03/05/2019,3584384-1339,936.73,SIMONS TAXIS.
Children and Young Peoples Services,Head of Education and Skills,Transport,230008,Contract Hire,03/05/2019,3584384-1340,"1,012.00",SIMONS TAXIS.
Children and Young Peoples Services,Head of Education and Skills,Transport,230006,Contract Hire,03/05/2019,3584403-072,"1,077.30",STEPHEN BALL T/A ABBIE`S TAXIS..
Children and Young Peoples Services,Head of Education and Skills,Transport,230012,Contract Hire,03/05/2019,3584403-069,"1,400.49",STEPHEN BALL T/A ABBIE`S TAXIS..
Children and Young Peoples Services,Head of Education and Skills,Transport,230008,Contract Hire,03/05/2019,3584403-071,"1,292.76",STEPHEN BALL T/A ABBIE`S TAXIS..
Children and Young Peoples Services,Head of Education and Skills,Transport,230008,Contract Hire,03/05/2019,3584403-073,900.00,STEPHEN BALL T/A ABBIE`S TAXIS..
Children and Young Peoples Services,Head of Education and Skills,Transport,230008,Contract Hire,03/05/2019,3584403-074,"2,763.22",STEPHEN BALL T/A ABBIE`S TAXIS..
Children and Young Peoples Services,Head of Early Help Inclusion & Vulnerable Children.,Supplies and Services,344033,Telephones,03/05/2019,3584456-205440,572.70,UNIFY BUSINESS SOLUTIONS LTD.
Children and Young Peoples Services,Head of Childrens Social Care,Third Party Payments 4THIRD,425021,Rendered by Voluntary Organisations,03/05/2019,3584471-INV-0666,611.28,WE CARE RECRUITMENT SOLUTIONS LTD.
Children and Young Peoples Services,Head of Childrens Social Care,Third Party Payments 4THIRD,425021,Rendered by Voluntary Organisations,03/05/2019,3584471-INV-0668,"4,397.74",WE CARE RECRUITMENT SOLUTIONS LTD.
Children and Young Peoples Services,Head of Childrens Social Care,Third Party Payments 4THIRD,425021,Rendered by Voluntary Organisations,03/05/2019,3584471-INV10697,"4,397.74",WE CARE RECRUITMENT SOLUTIONS LTD.
Children and Young Peoples Services,Head of Early Help Inclusion & Vulnerable Children.,Supplies and Services,308011,Furniture,03/05/2019,3584486-491861179,"1,306.14",YORKSHIRE PURCHASING ORGANISATION.
Children and Young Peoples Services,Head of Childrens Social Care,Third Party Payments 4THIRD,425021,Rendered by Voluntary Organisations,03/05/2019,3584487-04886,"15,000.00",YOUNG FOUNDATIONS LTD.
Dedicated Schools Grant BG0015,DSG High Needs Block,Transport,230010,Contract Hire,03/05/2019,3583945-B011-APRIL,693.00,ANDREW PYGALL T/A ARP TAXIS.
Dedicated Schools Grant BG0015,DSG High Needs Block,Transport,230010,Contract Hire,03/05/2019,3584062-19/58,"1,198.90",DMG PRIVATE HIRE.
Dedicated Schools Grant BG0015,DSG High Needs Block,Supplies and Services,384199,Miscellaneous Expenses,03/05/2019,3584094-82,"1,912.50",EMILY BACKES T/A TALKINDALES.
Dedicated Schools Grant BG0015,DSG High Needs Block,Transport,230010,Contract Hire,03/05/2019,3584140-002-B023,900.00,GUY`S TAXIS.
Dedicated Schools Grant BG0015,DSG High Needs Block,Third Party Payments 4THIRD,425005,Rendered by Voluntary Organisations,03/05/2019,3584157-4959,"3,520.00",HOWARD HOUSE CARE LTD.
Dedicated Schools Grant BG0015,DSG High Needs Block,Third Party Payments 4THIRD,425005,Rendered by Voluntary Organisations,03/05/2019,3584157-4969,"3,520.00",HOWARD HOUSE CARE LTD.
Dedicated Schools Grant BG0015,DSG High Needs Block,Third Party Payments 4THIRD,425005,Rendered by Voluntary Organisations,03/05/2019,3584157-4983,"3,520.00",HOWARD HOUSE CARE LTD.
Dedicated Schools Grant BG0015,DSG High Needs Block,Third Party Payments 4THIRD,425005,Rendered by Voluntary Organisations,03/05/2019,3584157-4993,"3,520.00",HOWARD HOUSE CARE LTD.
Dedicated Schools Grant BG0015,DSG High Needs Block,Third Party Payments 4THIRD,425005,Rendered by Voluntary Organisations,03/05/2019,3584157-5001,"3,520.00",HOWARD HOUSE CARE LTD.
Dedicated Schools Grant BG0015,DSG High Needs Block,Transport,230010,Contract Hire,03/05/2019,3584165-WOOD008,"1,349.00",IAN SOULSBY.
Regeneration and Local Services,Technical Services CM0300,Supplies and Services,304221,Equipment and Materials,03/05/2019,3583931-28091923,"1,015.26",AGGREGATE INDUSTRIES UK LTD.
Regeneration and Local Services,Technical Services CM0300,Supplies and Services,304221,Equipment and Materials,03/05/2019,3583931-28091925,643.52,AGGREGATE INDUSTRIES UK LTD.
Regeneration and Local Services,Technical Services CM0300,Supplies and Services,304221,Equipment and Materials,03/05/2019,3583931-28091926,"1,490.32",AGGREGATE INDUSTRIES UK LTD.
Regeneration and Local Services,Technical Services CM0300,Supplies and Services,304221,Equipment and Materials,03/05/2019,3583931-28091929,686.52,AGGREGATE INDUSTRIES UK LTD.
Regeneration and Local Services,Technical Services CM0300,Supplies and Services,304221,Equipment and Materials,03/05/2019,3583931-28091930,688.64,AGGREGATE INDUSTRIES UK LTD.
Regeneration and Local Services,Environmental Services,Third Party Payments 4THIRD,430100,Rendered by Private Contractors,03/05/2019,3583933-112R/18/91721,"1,144.00",ALAN M RANSON FUNERAL SERVICE.
Regeneration and Local Services,Environmental Services,Third Party Payments 4THIRD,430100,Rendered by Private Contractors,03/05/2019,3583933-124R/18/91722,980.00,ALAN M RANSON FUNERAL SERVICE.
Regeneration and Local Services,Environmental Services,Third Party Payments 4THIRD,430100,Rendered by Private Contractors,03/05/2019,3583933-148R/19/91719,"1,044.00",ALAN M RANSON FUNERAL SERVICE.
Regeneration and Local Services,Environmental Services,Third Party Payments 4THIRD,430100,Rendered by Private Contractors,03/05/2019,3583933-154R/19/91723,980.00,ALAN M RANSON FUNERAL SERVICE.
Regeneration and Local Services,Environmental Services,Third Party Payments 4THIRD,430100,Rendered by Private Contractors,03/05/2019,3583933-181R/19/91724,"1,244.00",ALAN M RANSON FUNERAL SERVICE.
Regeneration and Local Services,Environmental Services,Third Party Payments 4THIRD,430100,Rendered by Private Contractors,03/05/2019,3583933-186R/19/91725,"1,220.00",ALAN M RANSON FUNERAL SERVICE.
Regeneration and Local Services,Environmental Services,Third Party Payments 4THIRD,430100,Rendered by Private Contractors,03/05/2019,3583933-84R/18/91720,"1,120.00",ALAN M RANSON FUNERAL SERVICE.
Regeneration and Local Services,Corporate Property and Land,Premises,120037,Energy Costs,03/05/2019,3583942-370402,588.85,AMP CLEAN ENERGY.
Regeneration and Local Services,Technical Services CM0300,Supplies and Services,384199,Miscellaneous Expenses,03/05/2019,3583943-14291,"16,666.67",ANALYTICS ENGINES LTD.
Regeneration and Local Services,Business Durham CL0850,Premises,120009,Energy Costs,03/05/2019,3583986-711659543,555.74,BRITISH GAS BUSINESS.
Regeneration and Local Services,Business Durham CL0850,Third Party Payments 4THIRD,460305,Contract Payments,03/05/2019,3583990-13292,"39,087.50",BUSINESS & ENTERPRISE COMMERCIAL LTD T/A BE GROUP.
Regeneration and Local Services,Business Durham CL0850,Third Party Payments 4THIRD,460305,Contract Payments,03/05/2019,3583990-13333,"39,087.50",BUSINESS & ENTERPRISE COMMERCIAL LTD T/A BE GROUP.
Regeneration and Local Services,Culture & Sport,Premises,145023,Cleaning and Domestic Supplies,03/05/2019,3583993-CN19888554,624.52,CANNON HYGIENE LTD.
Regeneration and Local Services,Culture & Sport,Premises,145050,Cleaning and Domestic Supplies,03/05/2019,3583993-CN19888563,"3,264.00",CANNON HYGIENE LTD.
Regeneration and Local Services,Corporate Property and Land,Supplies and Services,304259,Equipment and Materials,03/05/2019,3583993-CN19888559,"1,095.36",CANNON HYGIENE LTD.
Regeneration and Local Services,Corporate Property and Land,Supplies and Services,304259,Equipment and Materials,03/05/2019,3583993-CN19888561,"1,043.64",CANNON HYGIENE LTD.
Regeneration and Local Services,Corporate Property and Land,Supplies and Services,338366,Services,03/05/2019,3583996-57885,"1,018.25",CARE ABILITY HEALTHCARE LTD.
Regeneration and Local Services,Development and Housing,Supplies and Services,384999,Miscellaneous Expenses,03/05/2019,3584010-9,500.00,CHARLOTTE JOHNSON T/A FJ LETTINGS.
Regeneration and Local Services,Culture & Sport,Third Party Payments 4THIRD,430100,Rendered by Private Contractors,03/05/2019,3584026-INV03939,863.20,COMPETITION LINE UK LTD T/A LIFESTYLE FITNESS.
Regeneration and Local Services,Culture & Sport,Third Party Payments 4THIRD,430100,Rendered by Private Contractors,03/05/2019,3584026-INV03940,763.75,COMPETITION LINE UK LTD T/A LIFESTYLE FITNESS.
Regeneration and Local Services,Corporate Property and Land,Supplies and Services,304221,Equipment and Materials,03/05/2019,3584073-14808,720.29,DURHAM LIFTING LTD.
Regeneration and Local Services,Corporate Property and Land,Premises,108099,Service Repairs and Maintenance,03/05/2019,3584087-79996,731.00,EIAT UK LTD.
Regeneration and Local Services,Development and Housing,Supplies and Services,384700,Miscellaneous Expenses,03/05/2019,3584089-RED-05-2019-012,"1,000.00",ELLE HAIR & BEAUTY.
Regeneration and Local Services,Environmental Services,Supplies and Services,304221,Equipment and Materials,03/05/2019,3584099-6838386,"9,680.00",ESE WORLD LTD.
Regeneration and Local Services,Environmental Services,Supplies and Services,304221,Equipment and Materials,03/05/2019,3584099-6838387,"9,680.00",ESE WORLD LTD.
Regeneration and Local Services,Environmental Services,Supplies and Services,304221,Equipment and Materials,03/05/2019,3584099-6838438,"8,228.00",ESE WORLD LTD.
Regeneration and Local Services,Environmental Services,Supplies and Services,304221,Equipment and Materials,03/05/2019,3584099-6838556,"1,452.00",ESE WORLD LTD.
Regeneration and Local Services,Culture & Sport,Premises,106080,Centrally Controlled Rep and Maint,03/05/2019,3584121-14442,500.00,FT LEISURE LTD.
Regeneration and Local Services,Culture & Sport,Premises,106080,Centrally Controlled Rep and Maint,03/05/2019,3584121-14443,500.00,FT LEISURE LTD.
Regeneration and Local Services,Corporate Property and Land,Supplies and Services,304221,Equipment and Materials,03/05/2019,3584130-192984,"4,739.00",GLOBAL LIFT EQUIPMENT LTD.
Regeneration and Local Services,Environmental Services,Vehicles Equipment Furniture and Fittings,912529,Purchase-equipment,03/05/2019,3584142-064238,"49,750.00",HAGS-SMP LTD.
Regeneration and Local Services,Culture & Sport,Supplies and Services,304259,Equipment and Materials,03/05/2019,3584192-932037,726.75,JP LENNARD LTD.
Regeneration and Local Services,Development and Housing,Supplies and Services,384700,Miscellaneous Expenses,03/05/2019,3584195-RED-05-2019-013,"2,000.00",JT LEWIS LTD.
Regeneration and Local Services,Culture & Sport,Supplies and Services,338047,Services,03/05/2019,3584197-KENDAL-0168,"1,800.00",KENDAL MOUNTAIN EVENTS LTD.
Regeneration and Local Services,Technical Services CM0300,Supplies and Services,304221,Equipment and Materials,03/05/2019,3584213-CINV-075015,501.98,LIMELIGHT SIGNS LTD.
Regeneration and Local Services,Culture & Sport,Supplies and Services,336005,Advertising E336,03/05/2019,3584224-585,"1,800.00",LUNA CREATIVE LTD.
Regeneration and Local Services,Culture & Sport,Supplies and Services,384199,Miscellaneous Expenses,03/05/2019,3584214-151,600.00,MATT JAMES SMITH T/A LINTELFILM.
Regeneration and Local Services,Culture & Sport,Supplies and Services,324001,Provisions E324,03/05/2019,3584247-905159856,"2,674.20",MOLSON COORS BREWING COMPANY (UK) LTD.
Regeneration and Local Services,Culture & Sport,Supplies and Services,384199,Miscellaneous Expenses,03/05/2019,3584265-000301,"1,651.20",NERAMS LTD.
Regeneration and Local Services,Transport and Contracted Services,Supplies and Services,336005,Advertising E336,03/05/2019,3584272-28996473,671.76,NEWSQUEST (YORKSHIRE & NORTH EAST) LTD.
Regeneration and Local Services,Technical Services CM0300,Supplies and Services,304221,Equipment and Materials,03/05/2019,3584280-184007,561.60,NORTH EAST CONCRETE LTD.
Regeneration and Local Services,Environmental Services,Supplies and Services,304337,Equipment and Materials,03/05/2019,3584285-77348,567.37,NORTHERN HERITAGE SERVICES LTD.
Regeneration and Local Services,Technical Services CM0300,Third Party Payments 4THIRD,430100,Rendered by Private Contractors,03/05/2019,3584313-3693,"4,995.00",PELL & BALDWIN FABRICATION LTD.
Regeneration and Local Services,Culture & Sport,Supplies and Services,372009,Subscriptions E372,03/05/2019,3584340-8422,"1,450.00",QUEST & NBS.
Regeneration and Local Services,Environmental Services,Supplies and Services,304259,Equipment and Materials,03/05/2019,3584353-RSIN0295673,530.00,RIGBY TAYLOR LTD.
Regeneration and Local Services,Corporate Property and Land,Premises,108099,Service Repairs and Maintenance,03/05/2019,3584370-0006046916,"1,375.00",SAV SYSTEMS.
Regeneration and Local Services,Corporate Property and Land,Third Party Payments 4THIRD,430100,Rendered by Private Contractors,03/05/2019,3584391-IN004178,"1,030.00",SPAANS BABCOCK LTD.
Regeneration and Local Services,Transport and Contracted Services,Supplies and Services,338045,Services,03/05/2019,3584405-608734,"1,140.47",STOCKTON ON TEES BOROUGH COUNCIL.
Regeneration and Local Services,Culture & Sport,Premises,106082,Centrally Controlled Rep and Maint,03/05/2019,3584406-13368,"1,220.00",STONE TECHNICAL SERVICES LTD.
Regeneration and Local Services,Culture & Sport,Premises,106082,Centrally Controlled Rep and Maint,03/05/2019,3584406-13369,820.00,STONE TECHNICAL SERVICES LTD.
Regeneration and Local Services,Culture & Sport,Supplies and Services,338047,Services,03/05/2019,3584417-1519,905.10,TALEGATE THEATRE PRODUCTIONS.
Regeneration and Local Services,Technical Services CM0300,Stock A926,926900,Stock in hand-Inventory system,03/05/2019,3584436-NSIN00010405,"1,906.00",THOMAS OWEN & SONS (NEWCASTLE) LTD.
Regeneration and Local Services,Technical Services CM0300,Stock A926,926900,Stock in hand-Inventory system,03/05/2019,3584436-NSIN00010406,624.18,THOMAS OWEN & SONS (NEWCASTLE) LTD.
Regeneration and Local Services,Corporate Property and Land,Premises,106082,Centrally Controlled Rep and Maint,03/05/2019,3584451-DL948321,"1,665.66",TYCO FIRE & INTEGRATED SOLUTIONS (UK) LTD.
Regeneration and Local Services,Corporate Property and Land,Premises,108099,Service Repairs and Maintenance,03/05/2019,3584451-DL947944,550.00,TYCO FIRE & INTEGRATED SOLUTIONS (UK) LTD.
Regeneration and Local Services,Technical Services CM0300,Supplies and Services,342215,Computers and Communications,03/05/2019,3584455-42372,"3,657.60",UK TELEMATICS LTD.
Regeneration and Local Services,Technical Services CM0300,Supplies and Services,342215,Computers and Communications,03/05/2019,3584455-42375,"3,498.25",UK TELEMATICS LTD.
Regeneration and Local Services,Corporate Property and Land,Third Party Payments 4THIRD,430105,Rendered by Private Contractors,03/05/2019,3584461-8541170816,"1,294.10",VEOLIA ENVIRONMENTAL SERVICES ES (UK) LTD.
Regeneration and Local Services,Corporate Property and Land,Supplies and Services,304221,Equipment and Materials,03/05/2019,3584106-5188,"2,485.00",WARREN (ELECTRICAL) LTD.
Regeneration and Local Services,Culture & Sport,Supplies and Services,312013,Newspapers books and periodicals E312,03/05/2019,3584475-253340,"4,861.12",WF HOWES LTD.
Regeneration and Local Services,Technical Services CM0300,Supplies and Services,384199,Miscellaneous Expenses,03/05/2019,3584478-806,"16,666.67",WILSON PYM MAY LTD.
Regeneration and Local Services,Culture & Sport,Supplies and Services,304259,Equipment and Materials,03/05/2019,3584486-491861183,606.74,YORKSHIRE PURCHASING ORGANISATION.
Resources BK0010,Digital and Customer Services,Vehicles Equipment Furniture and Fittings,912701,Computer equipment,03/05/2019,3584055-7402521629,568.32,DELL COMPUTER CORPORATION LTD.
Resources BK0010,Digital and Customer Services,Supplies and Services,304639,Equipment and Materials,03/05/2019,3584061-147209699,"1,127.29",DIVERSEY LTD.
Resources BK0010,Corporate Finance & Commercial Services,Supplies and Services,342051,Computers and Communications,03/05/2019,3584103-HEX67000668763,"3,075.00",EXPERIAN LTD.
Resources BK0010,Legal & Democratic Services,Supplies and Services,340001,Postages E340,03/05/2019,3584270-H0315897,"6,045.00",NEWCASTLE UPON TYNE HOSPITALS NHS FOUNDATION TRUST.
Resources BK0010,Legal & Democratic Services,Supplies and Services,338057,Services,03/05/2019,3584270-H0315857,"3,460.00",NEWCASTLE UPON TYNE HOSPITALS NHS FOUNDATION TRUST.
Resources BK0010,Legal & Democratic Services,Supplies and Services,338057,Services,03/05/2019,3584270-H0315899,"3,845.00",NEWCASTLE UPON TYNE HOSPITALS NHS FOUNDATION TRUST.
Resources BK0010,Legal & Democratic Services,Supplies and Services,384199,Miscellaneous Expenses,03/05/2019,3584283-22089567,"6,372.57",NORTH TYNESIDE COUNCIL.
Resources BK0010,Digital and Customer Services,Premises,120009,Energy Costs,03/05/2019,3584410-282X022548,"8,153.06",SUNDERLAND CITY COUNCIL.
Transformation and Partnerships,Communications Management,Supplies and Services,384956,Miscellaneous Expenses,03/05/2019,3584297-14623,"4,857.00",OXFORD COMPUTER CONSULTANTS LTD.
Transformation and Partnerships,Communications Management,Supplies and Services,384956,Miscellaneous Expenses,03/05/2019,3584297-14624,"2,870.00",OXFORD COMPUTER CONSULTANTS LTD.
Transformation and Partnerships,Partnerships & Community Engagement Div.,Supplies and Services,338094,Services,03/05/2019,3584344-INV56580,"3,133.33",RAMSIDE HALL HOTEL & GOLF CLUB.*
Adult and Health Services,Head of Adults,Third Party Payments 4THIRD,470101,Purchase of Care,07/05/2019,3584510-2545830,"3,502.79",ALBANY CARE HOMES LTD.
Adult and Health Services,Head of Adults,Third Party Payments 4THIRD,478151,Purchase of Care,07/05/2019,3584605-INV-0058,"1,545.90",DEACONSTAR LTD.
Adult and Health Services,Head of Adults,Third Party Payments 4THIRD,478151,Purchase of Care,07/05/2019,3584605-INV-0059,"2,266.54",DEACONSTAR LTD.
Adult and Health Services,Commissioning inc Supporting People,Supplies and Services,338089,Services,07/05/2019,3584625-4800,"1,175.00",EDGE TRAINING & CONSULTANCY LTD.
Adult and Health Services,Head of Adults,Transport,230005,Contract Hire,07/05/2019,3584650-101220,"1,226.15",G & P JOHNSON LTD T/A NIGHTINGALE COACHES.
Adult and Health Services,Head of Adults,Transport,230005,Contract Hire,07/05/2019,3584650-101221,800.20,G & P JOHNSON LTD T/A NIGHTINGALE COACHES.
Adult and Health Services,Head of Adults,Transport,230005,Contract Hire,07/05/2019,3584650-101223,"1,160.00",G & P JOHNSON LTD T/A NIGHTINGALE COACHES.
Adult and Health Services,Head of Adults,Transport,230005,Contract Hire,07/05/2019,3584650-101235,"1,120.00",G & P JOHNSON LTD T/A NIGHTINGALE COACHES.
Adult and Health Services,Head of Adults,Transport,230005,Contract Hire,07/05/2019,3584650-101236,835.12,G & P JOHNSON LTD T/A NIGHTINGALE COACHES.
Adult and Health Services,Head of Adults,Transport,230005,Contract Hire,07/05/2019,3584650-101237,"1,241.40",G & P JOHNSON LTD T/A NIGHTINGALE COACHES.
Adult and Health Services,Commissioning inc Supporting People,Third Party Payments 4THIRD,442002,Supporting People E442,07/05/2019,3584676-1969084,"113,942.68",HOME GROUP LTD FORMERLY STONHAM HOUSING ASSOCIATION LTD.
Adult and Health Services,Head of Adults,Transport,230005,Contract Hire,07/05/2019,3584756-201915,564.30,MR JR FORT T/A JRF TAXIS.
Adult and Health Services,Head of Adults,Transport,230005,Contract Hire,07/05/2019,3584756-201916,560.00,MR JR FORT T/A JRF TAXIS.
Adult and Health Services,Head of Adults,Third Party Payments 4THIRD,478151,Purchase of Care,07/05/2019,3584886-NTX-INV-0000000025,856.80,THERA NORTH TRADING LTD.
Adult and Health Services,Head of Adults,Third Party Payments 4THIRD,478151,Purchase of Care,07/05/2019,3584886-NTX-INV-0000000031,856.80,THERA NORTH TRADING LTD.
Adult and Health Services,Head of Adults,Third Party Payments 4THIRD,478151,Purchase of Care,07/05/2019,3584886-NTX-INV-0000000048,856.80,THERA NORTH TRADING LTD.
Adult and Health Services,Head of Adults,Third Party Payments 4THIRD,478151,Purchase of Care,07/05/2019,3584886-NTX-INV-0000000051,856.80,THERA NORTH TRADING LTD.
Adult and Health Services,Head of Adults,Third Party Payments 4THIRD,478151,Purchase of Care,07/05/2019,3584886-NTX-INV-0000000058,856.80,THERA NORTH TRADING LTD.
Adult and Health Services,Head of Adults,Third Party Payments 4THIRD,478151,Purchase of Care,07/05/2019,3584886-NTX-INV-0000000063,856.80,THERA NORTH TRADING LTD.
Adult and Health Services,Head of Adults,Third Party Payments 4THIRD,478151,Purchase of Care,07/05/2019,3584886-NTX-INV-0000000072,856.80,THERA NORTH TRADING LTD.
Children and Young Peoples Services,Head of Education and Skills,Transport,230007,Contract Hire,07/05/2019,3584498-41901,880.00,24/7 TAXI SERVICES LTD.
Children and Young Peoples Services,Head of Early Help Inclusion & Vulnerable Children.,Supplies and Services,384199,Miscellaneous Expenses,07/05/2019,3584507-4100651140,981.00,ADVANCED DECORATING.
Children and Young Peoples Services,Head of Early Help Inclusion & Vulnerable Children.,Supplies and Services,308011,Furniture,07/05/2019,3584511-165407,"2,120.00",ALBANY OFFICE EQUIPMENT (WHOLESALE) LTD.
Children and Young Peoples Services,Head of Childrens Social Care,Third Party Payments 4THIRD,425041,Rendered by Voluntary Organisations,07/05/2019,3584537-146524315,"31,000.00",BARNARDOS BELIEVE IN CHILDREN.
Children and Young Peoples Services,Head of Education and Skills,Transport,230003,Contract Hire,07/05/2019,3584574-46675,"1,681.57",CHRISTOPHER JAMES GRIERSON T/A GRIERSONS COACHES.
Children and Young Peoples Services,Head of Education and Skills,Transport,230003,Contract Hire,07/05/2019,3584574-46678,"4,198.37",CHRISTOPHER JAMES GRIERSON T/A GRIERSONS COACHES.
Children and Young Peoples Services,Head of Education and Skills,Transport,230003,Contract Hire,07/05/2019,3584574-46679,"1,580.04",CHRISTOPHER JAMES GRIERSON T/A GRIERSONS COACHES.
Children and Young Peoples Services,Head of Education and Skills,Transport,230003,Contract Hire,07/05/2019,3584574-46680,"1,467.18",CHRISTOPHER JAMES GRIERSON T/A GRIERSONS COACHES.
Children and Young Peoples Services,Central Charges (CYPS),Supplies and Services,372009,Subscriptions E372,07/05/2019,3584579-SUBS009112,"8,398.40",CLEAPSS.
Children and Young Peoples Services,Head of Education and Skills,Transport,230007,Contract Hire,07/05/2019,3584583-013,638.00,COLIN HOLMES T/A VIGO LANE MINI COACHES.
Children and Young Peoples Services,Head of Education and Skills,Transport,230008,Contract Hire,07/05/2019,3584646-0458,912.12,FMR SILVA PITA.
Children and Young Peoples Services,Head of Education and Skills,Transport,230007,Contract Hire,07/05/2019,3584650-101233,572.00,G & P JOHNSON LTD T/A NIGHTINGALE COACHES.
Children and Young Peoples Services,Head of Childrens Social Care,Third Party Payments 4THIRD,425021,Rendered by Voluntary Organisations,07/05/2019,3584669-204,"25,650.06",HENNESSY GROUP.
Children and Young Peoples Services,Head of Education and Skills,Transport,230016,Contract Hire,07/05/2019,3584682-IR1904003,"1,072.17",I & R EXECUTIVE TRAVEL.
Children and Young Peoples Services,Head of Education and Skills,Transport,230008,Contract Hire,07/05/2019,3584682-IR1904001,"1,044.10",I & R EXECUTIVE TRAVEL.
Children and Young Peoples Services,Head of Education and Skills,Transport,230008,Contract Hire,07/05/2019,3584682-IR1904002,920.00,I & R EXECUTIVE TRAVEL.
Children and Young Peoples Services,Head of Education and Skills,Third Party Payments 4THIRD,440999,Other third party payments E440,07/05/2019,3584690-JDA/DCC/1756,"1,932.90",JACK DRUM ARTS LTD.
Children and Young Peoples Services,Head of Education and Skills,Third Party Payments 4THIRD,440999,Other third party payments E440,07/05/2019,3584690-JDA/DCC/1757,805.50,JACK DRUM ARTS LTD.
Children and Young Peoples Services,Head of Education and Skills,Transport,230009,Contract Hire,07/05/2019,3584701-723128,"1,019.31",JOVIAL PRIVATE HIRE.
Children and Young Peoples Services,Head of Education and Skills,Transport,230008,Contract Hire,07/05/2019,3584701-M00920,843.59,JOVIAL PRIVATE HIRE.
Children and Young Peoples Services,Head of Education and Skills,Transport,230008,Contract Hire,07/05/2019,3584701-M01519,665.83,JOVIAL PRIVATE HIRE.
Children and Young Peoples Services,Head of Education and Skills,Transport,230008,Contract Hire,07/05/2019,3584709-E055APRIL,"2,079.00",K & R TAXIS (STANLEY).
Children and Young Peoples Services,Head of Education and Skills,Transport,230008,Contract Hire,07/05/2019,3584709-N307-APRIL,"1,726.30",K & R TAXIS (STANLEY).
Children and Young Peoples Services,Head of Education and Skills,Transport,230006,Contract Hire,07/05/2019,3584713-2123,503.90,KEN HINDS.
Children and Young Peoples Services,Head of Education and Skills,Supplies and Services,372009,Subscriptions E372,07/05/2019,3584717-1676,"17,680.00",KINETIC INSIGHT LTD.
Children and Young Peoples Services,Head of Education and Skills,Transport,230007,Contract Hire,07/05/2019,3584728-3973,"2,134.05",LINCAB TAXIS.
Children and Young Peoples Services,Head of Education and Skills,Transport,230007,Contract Hire,07/05/2019,3584728-3998,636.90,LINCAB TAXIS.
Children and Young Peoples Services,Head of Education and Skills,Transport,230008,Contract Hire,07/05/2019,3584728-3996,"1,175.46",LINCAB TAXIS.
Children and Young Peoples Services,Head of Education and Skills,Transport,230007,Contract Hire,07/05/2019,3584737-INV04/1913,814.00,MARK & JOHN CHISHOLM T/A (CHEVRON).
Children and Young Peoples Services,Head of Education and Skills,Transport,230016,Contract Hire,07/05/2019,3584737-INV04/1917,825.00,MARK & JOHN CHISHOLM T/A (CHEVRON).
Children and Young Peoples Services,Head of Education and Skills,Transport,230008,Contract Hire,07/05/2019,3584737-INV04/1906,"1,060.84",MARK & JOHN CHISHOLM T/A (CHEVRON).
Children and Young Peoples Services,Head of Education and Skills,Transport,230008,Contract Hire,07/05/2019,3584737-INV04/1907,"1,640.32",MARK & JOHN CHISHOLM T/A (CHEVRON).
Children and Young Peoples Services,Head of Education and Skills,Transport,230008,Contract Hire,07/05/2019,3584737-INV04/1908,927.60,MARK & JOHN CHISHOLM T/A (CHEVRON).
Children and Young Peoples Services,Head of Education and Skills,Transport,230012,Contract Hire,07/05/2019,3584750-KDC-010419,"1,242.89",MJ TIMNEY T/A KDC & C&M TAXIS.
Children and Young Peoples Services,Head of Education and Skills,Transport,230008,Contract Hire,07/05/2019,3584753-A088JAPRIL,790.02,MR DAVID P BRACE T/A JAFFAS TAXIS.
Children and Young Peoples Services,Head of Education and Skills,Transport,230008,Contract Hire,07/05/2019,3584754-OC/04/19,609.40,MR J AGAR T/A PARK TAXIS.
Children and Young Peoples Services,Head of Education and Skills,Transport,230008,Contract Hire,07/05/2019,3584754-SFB/04/19,947.98,MR J AGAR T/A PARK TAXIS.
Children and Young Peoples Services,Head of Education and Skills,Transport,230007,Contract Hire,07/05/2019,3584762-1APRIL2019,660.00,NC TAXI`S.
Children and Young Peoples Services,Head of Education and Skills,Transport,230007,Contract Hire,07/05/2019,3584777-INV-5779,"1,331.00",NORTH EAST COACHWAYS LTD.
Children and Young Peoples Services,Head of Education and Skills,Transport,230006,Contract Hire,07/05/2019,3584792-F721APRIL19,925.00,PETER`S TAXIS.
Children and Young Peoples Services,Head of Childrens Social Care,Third Party Payments 4THIRD,440038,Other third party payments E440,07/05/2019,3584813-4837,"15,125.77",REACH OUT CARE LTD.
Children and Young Peoples Services,Head of Education and Skills,Transport,230007,Contract Hire,07/05/2019,3584821-1152,"1,295.03",ROBERTS TOURS.
Children and Young Peoples Services,Head of Education and Skills,Transport,230007,Contract Hire,07/05/2019,3584821-1153,"1,636.47",ROBERTS TOURS.
Children and Young Peoples Services,Head of Education and Skills,Transfer Payments,510026,School Children,07/05/2019,3584836-ISABELLEHARPER18/3-29/3/19,"1,147.50",SEAHAM HOUSE DAY NURSERY.
Children and Young Peoples Services,Head of Education and Skills,Transfer Payments,510026,School Children,07/05/2019,3584836-ROBYNIANSON18/3-29/3/19,"1,147.50",SEAHAM HOUSE DAY NURSERY.
Children and Young Peoples Services,Head of Education and Skills,Transport,230008,Contract Hire,07/05/2019,3584855-1904000,"1,015.74",STEVEN PRATT T/A PTL TAXIS DURHAM.
Children and Young Peoples Services,Childrens Services Operational Support CG0080,Supplies and Services,338066,Services,07/05/2019,3584857-01008000852429,"5,760.00",STHREE PARTNERSHIP LLP T/A PROGRESSIVE.
Children and Young Peoples Services,Head of Education and Skills,Transfer Payments,510027,School Children,07/05/2019,3584880-DCATCHFUNDINGFORSUMMERTERM2019,"1,082.25",THE LAURELS CHILD CARE COMPANY LTD.
Children and Young Peoples Services,Head of Education and Skills,Transfer Payments,510027,School Children,07/05/2019,3584880-DCATCHFUNDINGFORSUMMERTERM2019REII,"1,803.75",THE LAURELS CHILD CARE COMPANY LTD.
Children and Young Peoples Services,Head of Education and Skills,Transport,230004,Contract Hire,07/05/2019,3584887-F735APRIL,715.00,THOMAS GLEN.
Children and Young Peoples Services,Childrens Services Operational Support CG0080,Supplies and Services,338089,Services,07/05/2019,3584893-1020,"1,229.35",TRACEY HILL TRAINING & CONSULTANCY LTD.
Children and Young Peoples Services,Childrens Services Operational Support CG0080,Supplies and Services,338089,Services,07/05/2019,3584893-1021,"2,179.65",TRACEY HILL TRAINING & CONSULTANCY LTD.
Children and Young Peoples Services,Head of Education and Skills,Transport,230008,Contract Hire,07/05/2019,3584899-03-APRIL,"1,240.00",TRIDENT TAXIS.
Children and Young Peoples Services,Head of Education and Skills,Transport,230007,Contract Hire,07/05/2019,3584923-15066-3177,"2,134.00",WEARDALE MOTOR SERVICES LTD.
Children and Young Peoples Services,Head of Education and Skills,Transport,230007,Contract Hire,07/05/2019,3584923-15066-4361,649.00,WEARDALE MOTOR SERVICES LTD.
Children and Young Peoples Services,Head of Education and Skills,Transport,230003,Contract Hire,07/05/2019,3584923-15066-3223,"3,137.53",WEARDALE MOTOR SERVICES LTD.
Children and Young Peoples Services,Head of Education and Skills,Transport,230003,Contract Hire,07/05/2019,3584923-15066-3262,"1,568.71",WEARDALE MOTOR SERVICES LTD.
Dedicated Schools Grant BG0015,DSG High Needs Block,Transport,230010,Contract Hire,07/05/2019,3584737-INV04/1914,"1,100.00",MARK & JOHN CHISHOLM T/A (CHEVRON).
Dedicated Schools Grant BG0015,DSG High Needs Block,Supplies and Services,384199,Miscellaneous Expenses,07/05/2019,3584847-SP005825,"3,466.00",SPEECH LINK MULTIMEDIA LTD.
Regeneration and Local Services,Environmental Services,Third Party Payments 4THIRD,430115,Rendered by Private Contractors,07/05/2019,3584504-0073,"1,984.40",A WILLEY T/A GREENTECH RECYCLING.
Regeneration and Local Services,Technical Services CM0300,Supplies and Services,304221,Equipment and Materials,07/05/2019,3584509-28099142,802.36,AGGREGATE INDUSTRIES UK LTD.
Regeneration and Local Services,Technical Services CM0300,Supplies and Services,304221,Equipment and Materials,07/05/2019,3584509-28099143,587.02,AGGREGATE INDUSTRIES UK LTD.
Regeneration and Local Services,Technical Services CM0300,Supplies and Services,304221,Equipment and Materials,07/05/2019,3584509-28099144,645.44,AGGREGATE INDUSTRIES UK LTD.
Regeneration and Local Services,Technical Services CM0300,Supplies and Services,304221,Equipment and Materials,07/05/2019,3584509-28099146,"1,764.36",AGGREGATE INDUSTRIES UK LTD.
Regeneration and Local Services,Technical Services CM0300,Supplies and Services,304221,Equipment and Materials,07/05/2019,3584509-28099149,"1,056.76",AGGREGATE INDUSTRIES UK LTD.
Regeneration and Local Services,Technical Services CM0300,Supplies and Services,304221,Equipment and Materials,07/05/2019,3584509-28107432,880.64,AGGREGATE INDUSTRIES UK LTD.
Regeneration and Local Services,Corporate Property and Land,Third Party Payments 4THIRD,430100,Rendered by Private Contractors,07/05/2019,3584511-165369,"23,500.00",ALBANY OFFICE EQUIPMENT (WHOLESALE) LTD.
Regeneration and Local Services,EnvironmentHealth & Consumer Protection,Supplies and Services,336005,Advertising E336,07/05/2019,3584513-62347,886.00,ALLWAG PROMOTIONS LTD.
Regeneration and Local Services,Environmental Services,Supplies and Services,304252,Equipment and Materials,07/05/2019,3584530-3860,"2,400.00",AUTOMATIC FLARE SYSTEMS LTD.
Regeneration and Local Services,Technical Services CM0300,Supplies and Services,304221,Equipment and Materials,07/05/2019,3584551-605000,"1,017.00",BLUEBAY BUILDING PRODUCTS LTD.
Regeneration and Local Services,Culture & Sport,Premises,145023,Cleaning and Domestic Supplies,07/05/2019,3584554-22SI2247447,"1,001.48",BRENNTAG UK LTD.
Regeneration and Local Services,Culture & Sport,Premises,145023,Cleaning and Domestic Supplies,07/05/2019,3584554-22SI2247520,603.84,BRENNTAG UK LTD.
Regeneration and Local Services,Transport and Contracted Services,Supplies and Services,304245,Equipment and Materials,07/05/2019,3584557-55291,"1,800.00",BUDDI.
Regeneration and Local Services,Corporate Property and Land,Supplies and Services,338366,Services,07/05/2019,3584563-58093,"2,410.20",CARE ABILITY HEALTHCARE LTD.
Regeneration and Local Services,Corporate Property and Land,Supplies and Services,338366,Services,07/05/2019,3584563-58094,"2,819.00",CARE ABILITY HEALTHCARE LTD.
Regeneration and Local Services,Environmental Services,Supplies and Services,304259,Equipment and Materials,07/05/2019,3584566-403531,520.00,CARRS BILLINGTON AGRICULTURE.
Regeneration and Local Services,Development and Housing,Supplies and Services,338035,Services,07/05/2019,3584575-805173150,601.20,CITY & GUILDS OF LONDON INSTITUTE.
Regeneration and Local Services,Culture & Sport,Third Party Payments 4THIRD,430100,Rendered by Private Contractors,07/05/2019,3584584-PSINV03941,"32,656.46",COMPETITION LINE UK LTD T/A LIFESTYLE FITNESS.
Regeneration and Local Services,Culture & Sport,Third Party Payments 4THIRD,430100,Rendered by Private Contractors,07/05/2019,3584584-PSINV03942,"10,094.21",COMPETITION LINE UK LTD T/A LIFESTYLE FITNESS.
Regeneration and Local Services,Culture & Sport,Third Party Payments 4THIRD,430100,Rendered by Private Contractors,07/05/2019,3584584-PSINV03946,"26,177.27",COMPETITION LINE UK LTD T/A LIFESTYLE FITNESS.
Regeneration and Local Services,Culture & Sport,Supplies and Services,384199,Miscellaneous Expenses,07/05/2019,3584597-4100655260,"1,000.00",CRABSTOCK FESTIVALS LTD.
Regeneration and Local Services,Technical Services CM0300,Third Party Payments 4THIRD,430127,Rendered by Private Contractors,07/05/2019,3584601-024,"1,644.00",D & L HOPPS.
Regeneration and Local Services,Culture & Sport,Supplies and Services,338099,Services,07/05/2019,3584614-015,500.00,DURHAM CITY SHOPMOBILITY.
Regeneration and Local Services,Business Durham CL0850,Supplies and Services,384899,Miscellaneous Expenses,07/05/2019,3584634-15019,"2,000.00",ENTREPRENEURS FORUM.
Regeneration and Local Services,Corporate Property and Land,Third Party Payments 4THIRD,430100,Rendered by Private Contractors,07/05/2019,3584635-158174,"179,899.57",ESH CONSTRUCTION LTD FORMERLY LUMSDEN & CARROLL CONSTRUCTION LTD.
Regeneration and Local Services,Corporate Property and Land,Supplies and Services,338027,Services,07/05/2019,3584639-132062/01,850.00,FAIRHURST (CONSULTING ENGINEERS).
Regeneration and Local Services,Environmental Services,Third Party Payments 4THIRD,430100,Rendered by Private Contractors,07/05/2019,3584654-90018634,"2,270.04",GEESINK NORBA LTD.
Regeneration and Local Services,Environmental Services,Transport,210057,Repair and Maintenance of Vehicles,07/05/2019,3584654-90019738,525.61,GEESINK NORBA LTD.
Regeneration and Local Services,Culture & Sport,Supplies and Services,338047,Services,07/05/2019,3584657-ABBA03042019,"1,276.00",GLK PROMOTIONS.
Regeneration and Local Services,Culture & Sport,Premises,145023,Cleaning and Domestic Supplies,07/05/2019,3584659-06/795084,"1,093.18",GREENHAM TRADING LTD.
Regeneration and Local Services,Technical Services CM0300,Third Party Payments 4THIRD,430100,Rendered by Private Contractors,07/05/2019,3584662-1904\010,"4,949.91",HALL CONSTRUCTION SERVICES LTD.
Regeneration and Local Services,Technical Services CM0300,Third Party Payments 4THIRD,430100,Rendered by Private Contractors,07/05/2019,3584662-1904\011,"14,759.65",HALL CONSTRUCTION SERVICES LTD.
Regeneration and Local Services,Environmental Services,Supplies and Services,304259,Equipment and Materials,07/05/2019,3584671-9358,799.10,HILLCREST AUTO ELECTRICS.
Regeneration and Local Services,Environmental Services,Third Party Payments 4THIRD,430100,Rendered by Private Contractors,07/05/2019,3584675-77541,834.24,HOGARTH COACHWORKS LTD.
Regeneration and Local Services,Environmental Services,Third Party Payments 4THIRD,430100,Rendered by Private Contractors,07/05/2019,3584675-77548,"1,475.87",HOGARTH COACHWORKS LTD.
Regeneration and Local Services,Environmental Services,Third Party Payments 4THIRD,430100,Rendered by Private Contractors,07/05/2019,3584675-77549,"2,528.10",HOGARTH COACHWORKS LTD.
Regeneration and Local Services,Environmental Services,Third Party Payments 4THIRD,430100,Rendered by Private Contractors,07/05/2019,3584675-77550,949.96,HOGARTH COACHWORKS LTD.
Regeneration and Local Services,Corporate Property and Land,Supplies and Services,304221,Equipment and Materials,07/05/2019,3584681-A38/0104401,"1,207.96",HOWDENS JOINERY LTD.
Regeneration and Local Services,Environmental Services,Third Party Payments 4THIRD,430100,Rendered by Private Contractors,07/05/2019,3584683-2637,780.00,IAN C LIDDLE.
Regeneration and Local Services,Technical Services CM0300,Stock A926,926900,Stock in hand-Inventory system,07/05/2019,3584686-678997,"2,366.00",INSTARMAC GROUP PLC.
Regeneration and Local Services,Technical Services CM0300,Construction work A908,908105,Construction work,07/05/2019,3584689-22841,867.96,JACK COUPE & SONS LTD T/A COUPE LINE.
Regeneration and Local Services,Technical Services CM0300,Construction work A908,908105,Construction work,07/05/2019,3584689-22842,790.98,JACK COUPE & SONS LTD T/A COUPE LINE.
Regeneration and Local Services,Technical Services CM0300,Supplies and Services,304358,Equipment and Materials,07/05/2019,3584698-29434,"1,591.00",JOHN R BUTTERFIELD LTD.
Regeneration and Local Services,Technical Services CM0300,Supplies and Services,304358,Equipment and Materials,07/05/2019,3584698-29435,574.00,JOHN R BUTTERFIELD LTD.
Regeneration and Local Services,Technical Services CM0300,Supplies and Services,304358,Equipment and Materials,07/05/2019,3584698-29439,"1,458.00",JOHN R BUTTERFIELD LTD.
Regeneration and Local Services,Environmental Services,Supplies and Services,304358,Equipment and Materials,07/05/2019,3584698-29459,742.00,JOHN R BUTTERFIELD LTD.
Regeneration and Local Services,Environmental Services,Supplies and Services,304358,Equipment and Materials,07/05/2019,3584698-29464,645.00,JOHN R BUTTERFIELD LTD.
Regeneration and Local Services,Environmental Services,Supplies and Services,304358,Equipment and Materials,07/05/2019,3584698-29471,905.00,JOHN R BUTTERFIELD LTD.
Regeneration and Local Services,Technical Services CM0300,Supplies and Services,304358,Equipment and Materials,07/05/2019,3584698-29497,"1,270.50",JOHN R BUTTERFIELD LTD.
Regeneration and Local Services,Technical Services CM0300,Supplies and Services,304221,Equipment and Materials,07/05/2019,3584705-BII283399,613.20,JT DOVE LTD.
Regeneration and Local Services,Corporate Property and Land,Third Party Payments 4THIRD,430100,Rendered by Private Contractors,07/05/2019,3584706-2MAR2019,880.00,JTL SCAFFOLDING LTD.
Regeneration and Local Services,Technical Services CM0300,Supplies and Services,304358,Equipment and Materials,07/05/2019,3584715-2741,884.00,KEVIN SNOWDON GROUNDWORKS LTD.
Regeneration and Local Services,Technical Services CM0300,Supplies and Services,304358,Equipment and Materials,07/05/2019,3584715-2744,"1,114.00",KEVIN SNOWDON GROUNDWORKS LTD.
Regeneration and Local Services,Technical Services CM0300,Supplies and Services,304358,Equipment and Materials,07/05/2019,3584715-2745,"1,299.75",KEVIN SNOWDON GROUNDWORKS LTD.
Regeneration and Local Services,Technical Services CM0300,Supplies and Services,304358,Equipment and Materials,07/05/2019,3584715-2749,998.50,KEVIN SNOWDON GROUNDWORKS LTD.
Regeneration and Local Services,Technical Services CM0300,Supplies and Services,304358,Equipment and Materials,07/05/2019,3584715-2755,716.25,KEVIN SNOWDON GROUNDWORKS LTD.
Regeneration and Local Services,Technical Services CM0300,Supplies and Services,304358,Equipment and Materials,07/05/2019,3584732-MS1508,"1,465.65",M SPENCE SURFACING LTD.
Regeneration and Local Services,Technical Services CM0300,Supplies and Services,304358,Equipment and Materials,07/05/2019,3584732-MS1509,"1,092.15",M SPENCE SURFACING LTD.
Regeneration and Local Services,Technical Services CM0300,Supplies and Services,304358,Equipment and Materials,07/05/2019,3584732-MS1526,"1,465.65",M SPENCE SURFACING LTD.
Regeneration and Local Services,Technical Services CM0300,Supplies and Services,304358,Equipment and Materials,07/05/2019,3584732-MS1527,"1,092.15",M SPENCE SURFACING LTD.
Regeneration and Local Services,Technical Services CM0300,Third Party Payments 4THIRD,430100,Rendered by Private Contractors,07/05/2019,3584734-5735,"4,800.00",MAKEPEACE MOTORS.
Regeneration and Local Services,Business Durham CL0850,Supplies and Services,338027,Services,07/05/2019,3584735-4100654191,800.00,MANDY SMITH (CONSULTANT).
Regeneration and Local Services,Culture & Sport,Supplies and Services,324117,Provisions E324,07/05/2019,3584738-207071,607.12,MARK TONEY & CO LTD.
Regeneration and Local Services,Culture & Sport,Supplies and Services,324117,Provisions E324,07/05/2019,3584752-905167541,"1,860.63",MOLSON COORS BREWING COMPANY (UK) LTD.
Regeneration and Local Services,Technical Services CM0300,Supplies and Services,304358,Equipment and Materials,07/05/2019,3584765-NC/074/BW,"2,420.00",NEDCO CONTRACTS (NE) LTD.
Regeneration and Local Services,Technical Services CM0300,Other expenses A914,914002,Capital - Advertisments,07/05/2019,3584772-29016161,938.39,NEWSQUEST (YORKSHIRE & NORTH EAST) LTD.
Regeneration and Local Services,Environmental Services,Premises,145023,Cleaning and Domestic Supplies,07/05/2019,3584774-SI/04414212,"2,463.00",NOMIX ENVIRO LTD.
Regeneration and Local Services,Technical Services CM0300,Supplies and Services,304358,Equipment and Materials,07/05/2019,3584775-NPSL890,"28,500.00",NORDIC PRODUCTS & SERVICES LTD.
Regeneration and Local Services,Environmental Services,Supplies and Services,384199,Miscellaneous Expenses,07/05/2019,3584779-1317,"2,592.00",NORTH EAST ENVIRONMENT NETWORK LTD T/A (OASES).
Regeneration and Local Services,Environmental Services,Transport,210057,Repair and Maintenance of Vehicles,07/05/2019,3584780-28125963,521.02,NORTH EAST TRUCK & VAN LTD.
Regeneration and Local Services,Corporate Property and Land,Third Party Payments 4THIRD,430100,Rendered by Private Contractors,07/05/2019,3584783-9722-26,"1,093.13",OPUS BUILDING SERVICES LTD.
Regeneration and Local Services,Corporate Property and Land,Third Party Payments 4THIRD,430100,Rendered by Private Contractors,07/05/2019,3584783-9722-27,"1,069.50",OPUS BUILDING SERVICES LTD.
Regeneration and Local Services,Corporate Property and Land,Third Party Payments 4THIRD,430100,Rendered by Private Contractors,07/05/2019,3584783-9722-28,"1,031.25",OPUS BUILDING SERVICES LTD.
Regeneration and Local Services,Corporate Property and Land,Third Party Payments 4THIRD,430100,Rendered by Private Contractors,07/05/2019,3584783-9722-29,"1,093.13",OPUS BUILDING SERVICES LTD.
Regeneration and Local Services,Corporate Property and Land,Third Party Payments 4THIRD,430100,Rendered by Private Contractors,07/05/2019,3584783-9722-31,517.15,OPUS BUILDING SERVICES LTD.
Regeneration and Local Services,Corporate Property and Land,Supplies and Services,304221,Equipment and Materials,07/05/2019,3584787-XL238694,"14,043.44",PARK ELECTRICAL DISTRIBUTORS LTD.
Regeneration and Local Services,Technical Services CM0300,Stock A926,926900,Stock in hand-Inventory system,07/05/2019,3584787-XL238689,912.00,PARK ELECTRICAL DISTRIBUTORS LTD.
Regeneration and Local Services,Technical Services CM0300,Stock A926,926900,Stock in hand-Inventory system,07/05/2019,3584787-XL238690,"3,689.30",PARK ELECTRICAL DISTRIBUTORS LTD.
Regeneration and Local Services,Technical Services CM0300,Stock A926,926900,Stock in hand-Inventory system,07/05/2019,3584787-XL238691,"1,100.00",PARK ELECTRICAL DISTRIBUTORS LTD.
Regeneration and Local Services,Technical Services CM0300,Stock A926,926900,Stock in hand-Inventory system,07/05/2019,3584787-XL238744,665.55,PARK ELECTRICAL DISTRIBUTORS LTD.
Regeneration and Local Services,Technical Services CM0300,Stock A926,926900,Stock in hand-Inventory system,07/05/2019,3584787-XL238768,"2,604.40",PARK ELECTRICAL DISTRIBUTORS LTD.
Regeneration and Local Services,Technical Services CM0300,Third Party Payments 4THIRD,430100,Rendered by Private Contractors,07/05/2019,3584805-18075,600.00,PRM FABRICATIONS LTD.
Regeneration and Local Services,Environmental Services,Third Party Payments 4THIRD,430100,Rendered by Private Contractors,07/05/2019,3584834-2019.1000009533,"1,083.81",SCARAB SWEEPERS LTD.
Regeneration and Local Services,Culture & Sport,Supplies and Services,384199,Miscellaneous Expenses,07/05/2019,3584874-323,"1,686.88",TERESA BOVEY (DEMONSTRATOR).
Regeneration and Local Services,Technical Services CM0300,Stock A926,926900,Stock in hand-Inventory system,07/05/2019,3584888-NSIN00010587,595.30,THOMAS OWEN & SONS (NEWCASTLE) LTD.
Regeneration and Local Services,Technical Services CM0300,Supplies and Services,304358,Equipment and Materials,07/05/2019,3584890-33162,"1,050.00",TODDS HIGHWAY MAINTENANCE LTD.
Regeneration and Local Services,Corporate Property and Land,Supplies and Services,304221,Equipment and Materials,07/05/2019,3584900-GB1010874,"1,162.18",TROX UK LTD.
Regeneration and Local Services,Technical Services CM0300,Supplies and Services,304221,Equipment and Materials,07/05/2019,3584904-198608,839.90,TYNEDALE ROADSTONE LTD.
Regeneration and Local Services,Technical Services CM0300,Supplies and Services,304221,Equipment and Materials,07/05/2019,3584904-198609,543.16,TYNEDALE ROADSTONE LTD.
Regeneration and Local Services,Technical Services CM0300,Supplies and Services,304221,Equipment and Materials,07/05/2019,3584904-198610,"1,086.80",TYNEDALE ROADSTONE LTD.
Regeneration and Local Services,Technical Services CM0300,Supplies and Services,304221,Equipment and Materials,07/05/2019,3584904-198661,"1,021.76",TYNEDALE ROADSTONE LTD.
Regeneration and Local Services,Culture & Sport,Supplies and Services,384199,Miscellaneous Expenses,07/05/2019,3584908-4100647881,"1,100.00",URBAN ASSOCIATES PUBLIC RELATIONS LTD.
Regeneration and Local Services,Transport and Contracted Services,Vehicles Equipment Furniture and Fittings,912529,Purchase-equipment,07/05/2019,3584915-0005002228,"4,959.00",VISION TECHNIQUES (UK) LTD.
Regeneration and Local Services,Technical Services CM0300,Supplies and Services,304221,Equipment and Materials,07/05/2019,3584931-0000008793,"9,284.04",WYBONE LTD.
Regeneration and Local Services,Technical Services CM0300,Supplies and Services,304358,Equipment and Materials,07/05/2019,3584934-7645,"2,240.00",YOULL CONSTRUCTION LTD.
Regeneration and Local Services,Environmental Services,Third Party Payments 4THIRD,430100,Rendered by Private Contractors,07/05/2019,3584936-121527,"1,205.50",ZOELLER WASTE SYSTEMS LTD.
Resources BK0010,Legal & Democratic Services,Supplies and Services,338057,Services,07/05/2019,3584512-0000033071,905.00,ALERE FORENSICS.
Resources BK0010,Digital and Customer Services,Supplies and Services,304252,Equipment and Materials,07/05/2019,3584515-9801,"1,990.00",ALPHATEC 2000 LTD.
Resources BK0010,Digital and Customer Services,Vehicles Equipment Furniture and Fittings,912701,Computer equipment,07/05/2019,3584606-7402522313,"19,182.36",DELL COMPUTER CORPORATION LTD.
Resources BK0010,Digital and Customer Services,Vehicles Equipment Furniture and Fittings,912701,Computer equipment,07/05/2019,3584606-7402522668,"12,595.66",DELL COMPUTER CORPORATION LTD.
Resources BK0010,Legal & Democratic Services,Supplies and Services,338042,Services,07/05/2019,3584609-335764/INVMM379,"2,400.00",DERE STREET BARRISTERS.
Resources BK0010,Legal & Democratic Services,Supplies and Services,338042,Services,07/05/2019,3584609-342186/INVSW704,"2,700.00",DERE STREET BARRISTERS.
Resources BK0010,Legal & Democratic Services,Supplies and Services,338042,Services,07/05/2019,3584609-344198/INVNC342,"1,800.00",DERE STREET BARRISTERS.
Resources BK0010,Legal & Democratic Services,Supplies and Services,338042,Services,07/05/2019,3584609-344984/INVSW714,900.00,DERE STREET BARRISTERS.
Resources BK0010,Legal & Democratic Services,Supplies and Services,338042,Services,07/05/2019,3584609-345464/INVMM389,900.00,DERE STREET BARRISTERS.
Resources BK0010,Legal & Democratic Services,Supplies and Services,338042,Services,07/05/2019,3584609-346774/INVCSM415,550.00,DERE STREET BARRISTERS.
Resources BK0010,Legal & Democratic Services,Supplies and Services,338042,Services,07/05/2019,3584609-347628/INVMM397,750.00,DERE STREET BARRISTERS.
Resources BK0010,Legal & Democratic Services,Supplies and Services,338042,Services,07/05/2019,3584609-348049/INVSW722,550.00,DERE STREET BARRISTERS.
Resources BK0010,Legal & Democratic Services,Supplies and Services,338042,Services,07/05/2019,3584609-348156/INVTD652,850.00,DERE STREET BARRISTERS.
Resources BK0010,Digital and Customer Services,Supplies and Services,344111,Telephones,07/05/2019,3584768-202703,"4,833.00",NETWORKS 2 BUSINESS LTD.
Resources BK0010,Digital and Customer Services,Supplies and Services,342051,Computers and Communications,07/05/2019,3584845-INV02208396,673.04,SOFTCAT LTD.
Resources BK0010,Finance & Transactional Services,Intangible Assets,917003,Software capitalised implementation fees,07/05/2019,3584935-94566365,"1,095.00",ZELLIS UK LTD.
Transformation and Partnerships,Partnerships & Community Engagement Div.,Supplies and Services,384086,Miscellaneous Expenses,07/05/2019,3584889-VOUCHER18NB-4TOG020,"1,000.00",THRISLINGTON BANNER GROUP.
Adult and Health Services,Head of Adults,Transport,230005,Contract Hire,08/05/2019,3585500-Y11/SMAPRIL,"1,661.80",AABAT TAXIS.
Adult and Health Services,Commissioning inc Supporting People,Third Party Payments 4THIRD,442002,Supporting People E442,08/05/2019,3585547-1969119,"16,448.04",BID SERVICES.
Adult and Health Services,Public Health CC0450,Third Party Payments 4THIRD,460803,Contract Payments,08/05/2019,3585594-A83011/QTR418-19/AS,787.78,CLAYPATH & UNIVERSITY MEDICAL GROUP.
Adult and Health Services,Commissioning inc Supporting People,Third Party Payments 4THIRD,442002,Supporting People E442,08/05/2019,3585614-1969086,"19,868.48",CREATIVE SUPPORT LTD.
Adult and Health Services,Head of Adults,Transport,230005,Contract Hire,08/05/2019,3585631-DCL017,"1,150.00",DAVES TAXIS (BLACKHALL).
Adult and Health Services,Commissioning inc Supporting People,Third Party Payments 4THIRD,441001,Supporting People E441,08/05/2019,3585657-1969137,"20,819.76",DURHAM ACTION ON SINGLE HOUSING LTD.
Adult and Health Services,Commissioning inc Supporting People,Third Party Payments 4THIRD,443001,Supporting People E443,08/05/2019,3585657-1969140,"4,427.76",DURHAM ACTION ON SINGLE HOUSING LTD.
Adult and Health Services,Commissioning inc Supporting People,Third Party Payments 4THIRD,441001,Supporting People E441,08/05/2019,3585664-1969117,"5,483.40",EAST DURHAM COMMUNITY INITIATIVES LTD.
Adult and Health Services,Commissioning inc Supporting People,Third Party Payments 4THIRD,442002,Supporting People E442,08/05/2019,3585696-1969136,"19,776.44",FOUNDATION.
Adult and Health Services,Commissioning inc Supporting People,Third Party Payments 4THIRD,442002,Supporting People E442,08/05/2019,3585696-1969158,"3,567.12",FOUNDATION.
Adult and Health Services,Head of Adults,Transport,230005,Contract Hire,08/05/2019,3585700-101225,864.80,G & P JOHNSON LTD T/A NIGHTINGALE COACHES.
Adult and Health Services,Commissioning inc Supporting People,Third Party Payments 4THIRD,442002,Supporting People E442,08/05/2019,3585734-1969146,"3,297.48",HANOVER HOUSING ASSOCIATION.
Adult and Health Services,Commissioning inc Supporting People,Third Party Payments 4THIRD,441001,Supporting People E441,08/05/2019,3585735-1969087,"18,082.80",HARBOUR SUPPORT SERVICES.
Adult and Health Services,Commissioning inc Supporting People,Third Party Payments 4THIRD,441001,Supporting People E441,08/05/2019,3585754-1969133,"54,465.72",HOME GROUP LTD FORMERLY STONHAM HOUSING ASSOCIATION LTD.
Adult and Health Services,Commissioning inc Supporting People,Third Party Payments 4THIRD,441001,Supporting People E441,08/05/2019,3585754-1969156,"15,342.48",HOME GROUP LTD FORMERLY STONHAM HOUSING ASSOCIATION LTD.
Adult and Health Services,Commissioning inc Supporting People,Third Party Payments 4THIRD,442002,Supporting People E442,08/05/2019,3585754-1969155,"27,962.72",HOME GROUP LTD FORMERLY STONHAM HOUSING ASSOCIATION LTD.
Adult and Health Services,Commissioning inc Supporting People,Third Party Payments 4THIRD,443001,Supporting People E443,08/05/2019,3585754-1969091,707.52,HOME GROUP LTD FORMERLY STONHAM HOUSING ASSOCIATION LTD.
Adult and Health Services,Commissioning inc Supporting People,Third Party Payments 4THIRD,443001,Supporting People E443,08/05/2019,3585754-1969154,"11,506.84",HOME GROUP LTD FORMERLY STONHAM HOUSING ASSOCIATION LTD.
Adult and Health Services,Commissioning inc Supporting People,Third Party Payments 4THIRD,442002,Supporting People E442,08/05/2019,3585758-1969085,"5,668.48",HUMANKIND CHARITY.
Adult and Health Services,Commissioning inc Supporting People,Third Party Payments 4THIRD,442002,Supporting People E442,08/05/2019,3585758-1969135,"27,885.68",HUMANKIND CHARITY.
Adult and Health Services,Head of Adults,Transport,230005,Contract Hire,08/05/2019,312204-PEACO008,720.00,LETS TRAVEL.
Adult and Health Services,Commissioning inc Supporting People,Third Party Payments 4THIRD,442002,Supporting People E442,08/05/2019,3585865-1969088,"5,469.72",MENTAL HEALTH MATTERS.
Adult and Health Services,Commissioning inc Supporting People,Third Party Payments 4THIRD,442002,Supporting People E442,08/05/2019,3585884-1969147,"2,620.48",MOVING ON.
Adult and Health Services,Head of Adults,Transport,230005,Contract Hire,08/05/2019,3585975-014,550.00,ND TAXIS.
Adult and Health Services,Commissioning inc Supporting People,Third Party Payments 4THIRD,441001,Supporting People E441,08/05/2019,3586050-1969116,"9,423.88",RICHMOND FELLOWSHIP.
Adult and Health Services,Commissioning inc Supporting People,Third Party Payments 4THIRD,442002,Supporting People E442,08/05/2019,3586050-1969090,"7,356.72",RICHMOND FELLOWSHIP.
Adult and Health Services,Commissioning inc Supporting People,Third Party Payments 4THIRD,444002,Supporting People E444,08/05/2019,3586050-1969104,"4,438.08",RICHMOND FELLOWSHIP.
Adult and Health Services,Commissioning inc Supporting People,Third Party Payments 4THIRD,442002,Supporting People E442,08/05/2019,3586099-1969132,"6,331.08",SINGLE HOMELESS ACTION INITIATIVE IN DURHAM LTD.
Adult and Health Services,Commissioning inc Supporting People,Third Party Payments 4THIRD,441001,Supporting People E441,08/05/2019,3586150-1969120,"19,231.20",THE CYRENIANS LTD T/A CHANGING LIVES.
Adult and Health Services,Head of Adults,Transport,230005,Contract Hire,08/05/2019,3586157-202,878.28,THE TAXI COMPANY (MURTON) LTD.
Adult and Health Services,Commissioning inc Supporting People,Third Party Payments 4THIRD,441001,Supporting People E441,08/05/2019,3586160-1969123,"7,776.68",THIRTEEN HOUSING GROUP LTD.
Adult and Health Services,Commissioning inc Supporting People,Third Party Payments 4THIRD,441001,Supporting People E441,08/05/2019,3586160-1969124,"22,933.96",THIRTEEN HOUSING GROUP LTD.
Adult and Health Services,Commissioning inc Supporting People,Third Party Payments 4THIRD,442002,Supporting People E442,08/05/2019,3586160-1969122,"5,088.84",THIRTEEN HOUSING GROUP LTD.
Adult and Health Services,Commissioning inc Supporting People,Third Party Payments 4THIRD,441001,Supporting People E441,08/05/2019,3586201-1969118,"2,367.20",WADDINGTON STREET CENTRE LTD.
Adult and Health Services,Commissioning inc Supporting People,Third Party Payments 4THIRD,441001,Supporting People E441,08/05/2019,3586207-1969089,"7,157.00",WEAR VALLEY WOMENS AID LTD.
Children and Young Peoples Services,Head of Education and Skills,Transport,230006,Contract Hire,08/05/2019,3585494-41912,806.00,24/7 TAXI SERVICES LTD.
Children and Young Peoples Services,Head of Education and Skills,Transport,230006,Contract Hire,08/05/2019,3585494-41913,935.00,24/7 TAXI SERVICES LTD.
Children and Young Peoples Services,Head of Education and Skills,Transport,230008,Contract Hire,08/05/2019,3585494-41905,890.00,24/7 TAXI SERVICES LTD.
Children and Young Peoples Services,Head of Education and Skills,Transport,230008,Contract Hire,08/05/2019,3585494-41907,"1,984.48",24/7 TAXI SERVICES LTD.
Children and Young Peoples Services,Head of Education and Skills,Transport,230008,Contract Hire,08/05/2019,3585494-41910,"1,660.00",24/7 TAXI SERVICES LTD.
Children and Young Peoples Services,Head of Education and Skills,Transport,230008,Contract Hire,08/05/2019,3585494-41915,"1,340.35",24/7 TAXI SERVICES LTD.
Children and Young Peoples Services,Head of Education and Skills,Transport,230008,Contract Hire,08/05/2019,3585500-Y10/SLW158,987.35,AABAT TAXIS.
Children and Young Peoples Services,Head of Education and Skills,Transport,230008,Contract Hire,08/05/2019,3585500-Y7/SH,820.80,AABAT TAXIS.
Children and Young Peoples Services,Head of Education and Skills,Transport,230012,Contract Hire,08/05/2019,3585501-1/04/19,790.02,ABA TAXIS.
Children and Young Peoples Services,Head of Childrens Social Care,Supplies and Services,384534,Miscellaneous Expenses,08/05/2019,3585528-ARC1819-253,"2,946.05",ARC ADOPTION NORTH EAST.
Children and Young Peoples Services,Head of Childrens Social Care,Third Party Payments 4THIRD,425041,Rendered by Voluntary Organisations,08/05/2019,3585528-ARC1920-285,860.00,ARC ADOPTION NORTH EAST.
Children and Young Peoples Services,Head of Education and Skills,Transport,230008,Contract Hire,08/05/2019,3585553-7082-30/4/19,"1,482.17",BOBBY DOVE PRIVATE HIRE.
Children and Young Peoples Services,Head of Education and Skills,Transport,230008,Contract Hire,08/05/2019,3585555-DC08,"1,296.00",BOWES TRAVEL.
Children and Young Peoples Services,Head of Education and Skills,Transport,230008,Contract Hire,08/05/2019,3585623-DI201904,642.20,D&I TAXIS.
Children and Young Peoples Services,Head of Education and Skills,Transport,230008,Contract Hire,08/05/2019,3585625-337,711.04,DA TRAVEL.
Children and Young Peoples Services,Head of Education and Skills,Transport,230008,Contract Hire,08/05/2019,3585625-339,636.10,DA TRAVEL.
Children and Young Peoples Services,Head of Education and Skills,Transport,230008,Contract Hire,08/05/2019,3585634-A100,974.70,DAVID FOREMAN T/A DAVES TAXIS.
Children and Young Peoples Services,Head of Education and Skills,Transport,230008,Contract Hire,08/05/2019,3585634-A101,733.59,DAVID FOREMAN T/A DAVES TAXIS.
Children and Young Peoples Services,Head of Education and Skills,Transport,230007,Contract Hire,08/05/2019,312196-58,880.00,DAVID WILKINSON...
Children and Young Peoples Services,Head of Education and Skills,Transport,230008,Contract Hire,08/05/2019,3585639-0419-001,"1,000.00",DCM TAXIS.
Children and Young Peoples Services,Head of Education and Skills,Transport,230008,Contract Hire,08/05/2019,3585665-01052019/1,"1,140.00",EAST DURHAM TAXIS.
Children and Young Peoples Services,Head of Education and Skills,Transport,230008,Contract Hire,08/05/2019,3585665-01052019/2,"1,240.00",EAST DURHAM TAXIS.
Children and Young Peoples Services,Head of Education and Skills,Transport,230008,Contract Hire,08/05/2019,3585665-01052019/6,"1,573.00",EAST DURHAM TAXIS.
Children and Young Peoples Services,Head of Education and Skills,Transport,230008,Contract Hire,08/05/2019,3585665-1052019/4,"1,584.00",EAST DURHAM TAXIS.
Children and Young Peoples Services,Head of Education and Skills,Transport,230007,Contract Hire,08/05/2019,3585709-1234-EW02,572.00,GARY JACKSON PRIVATE HIRE.
Children and Young Peoples Services,Head of Education and Skills,Transport,230008,Contract Hire,08/05/2019,3585720-02,"1,200.00",GRAHAM WILLIAMS T/A BUS 2 MINIBUS HIRE.
Children and Young Peoples Services,Head of Childrens Social Care,Third Party Payments 4THIRD,440038,Other third party payments E440,08/05/2019,3585779-53,"13,000.00",JIGSAW RECOVERY PROJECT CIC.
Children and Young Peoples Services,Head of Childrens Social Care,Third Party Payments 4THIRD,425020,Rendered by Voluntary Organisations,08/05/2019,3585779-52,"4,000.00",JIGSAW RECOVERY PROJECT CIC.
Children and Young Peoples Services,Head of Childrens Social Care,Third Party Payments 4THIRD,425020,Rendered by Voluntary Organisations,08/05/2019,3585779-56,"1,800.00",JIGSAW RECOVERY PROJECT CIC.
Children and Young Peoples Services,Head of Childrens Social Care,Third Party Payments 4THIRD,425020,Rendered by Voluntary Organisations,08/05/2019,3585779-58,"1,039.29",JIGSAW RECOVERY PROJECT CIC.
Children and Young Peoples Services,Head of Education and Skills,Transport,230008,Contract Hire,08/05/2019,3585784-21,"1,920.00",JOHN GARLAND.
Children and Young Peoples Services,Head of Education and Skills,Transport,230008,Contract Hire,08/05/2019,3585790-N30108,"1,093.08",JOVIAL PRIVATE HIRE.
Children and Young Peoples Services,Head of Education and Skills,Transport,230007,Contract Hire,08/05/2019,3585830-3991,"1,595.55",LINCAB TAXIS.
Children and Young Peoples Services,Head of Education and Skills,Transport,230008,Contract Hire,08/05/2019,3585835-APRA071,"1,430.00",LION CABS.
Children and Young Peoples Services,Head of Education and Skills,Transport,230008,Contract Hire,08/05/2019,3585853-29,"1,129.20",M&C`S CABS LTD.
Children and Young Peoples Services,Head of Education and Skills,Transport,230008,Contract Hire,08/05/2019,3585856-INV04/1909,780.00,MARK & JOHN CHISHOLM T/A (CHEVRON).
Children and Young Peoples Services,Head of Education and Skills,Transport,230008,Contract Hire,08/05/2019,3585856-INV04/1910,"1,067.00",MARK & JOHN CHISHOLM T/A (CHEVRON).
Children and Young Peoples Services,Head of Education and Skills,Transport,230008,Contract Hire,08/05/2019,3585886-W028-19,677.16,MR BW YOUNG T/A ESH TAXIS.
Children and Young Peoples Services,Head of Education and Skills,Transport,230008,Contract Hire,08/05/2019,3585890-175-2348,745.00,MR GS ANDERSON.
Children and Young Peoples Services,Head of Education and Skills,Transport,230008,Contract Hire,08/05/2019,3585890-1762449,743.90,MR GS ANDERSON.
Children and Young Peoples Services,Head of Education and Skills,Transport,230008,Contract Hire,08/05/2019,3585891-KDK/APR19,700.00,MR IAN KELSEY T/A KDK TAXIS.
Children and Young Peoples Services,Head of Education and Skills,Transport,230012,Contract Hire,08/05/2019,3585895-035,820.00,MR NEIL LEONARD T/A LENNY`S TAXIS.
Children and Young Peoples Services,Head of Education and Skills,Transport,230008,Contract Hire,08/05/2019,3585895-036,570.00,MR NEIL LEONARD T/A LENNY`S TAXIS.
Children and Young Peoples Services,Head of Education and Skills,Transport,230008,Contract Hire,08/05/2019,3585899-18B-N043,902.88,MR RAYMOND RENWICK T/A RAY`S TAXIS & MINIBUSES.
Children and Young Peoples Services,Head of Education and Skills,Transport,230006,Contract Hire,08/05/2019,3585902-3079,810.00,MR S BOWERS T/A DH7 TAXIS.
Children and Young Peoples Services,Head of Education and Skills,Transport,230008,Contract Hire,08/05/2019,3585902-3076,"1,056.00",MR S BOWERS T/A DH7 TAXIS.
Children and Young Peoples Services,Head of Education and Skills,Transport,230008,Contract Hire,08/05/2019,3585902-3078,"1,155.00",MR S BOWERS T/A DH7 TAXIS.
Children and Young Peoples Services,Head of Education and Skills,Transport,230007,Contract Hire,08/05/2019,3585974-2APRIL2019,770.00,NC TAXI`S.
Children and Young Peoples Services,Head of Education and Skills,Transport,230003,Contract Hire,08/05/2019,3585987-INV-5780,"1,320.00",NORTH EAST COACHWAYS LTD.
Children and Young Peoples Services,Head of Education and Skills,Transport,230007,Contract Hire,08/05/2019,3586061-1151,"1,991.88",ROBERTS TOURS.
Children and Young Peoples Services,Head of Education and Skills,Transport,230008,Contract Hire,08/05/2019,3586067-008,"1,121.00",RONS TAXI (CHESTER LE ST).
Children and Young Peoples Services,Head of Childrens Social Care,Supplies and Services,384534,Miscellaneous Expenses,08/05/2019,3586083-1601,700.00,SCS TRAINING & THERAPY LTD.
Children and Young Peoples Services,Head of Early Help Inclusion & Vulnerable Children.,Premises,120009,Energy Costs,08/05/2019,3586084-47166,"2,395.08",SEAHAM HARBOUR DOCK CO.
Children and Young Peoples Services,Head of Education and Skills,Transport,230008,Contract Hire,08/05/2019,3586094-75105,"1,320.00",SHOTTON PRIVATE HIRE.
Children and Young Peoples Services,Head of Education and Skills,Transport,230008,Contract Hire,08/05/2019,3586094-75106,"1,430.00",SHOTTON PRIVATE HIRE.
Children and Young Peoples Services,Head of Education and Skills,Transport,230008,Contract Hire,08/05/2019,3586094-75110,"1,715.20",SHOTTON PRIVATE HIRE.
Children and Young Peoples Services,Head of Education and Skills,Supplies and Services,338027,Services,08/05/2019,3586107-EPINAY-246,"1,524.84",SOUTH TYNESIDE COUNCIL.
Children and Young Peoples Services,Head of Education and Skills,Transport,230003,Contract Hire,08/05/2019,3586114-52994,724.24,STANLEY TRAVEL (NORTH EAST) LTD.
Children and Young Peoples Services,Head of Education and Skills,Transport,230003,Contract Hire,08/05/2019,3586114-52995,"1,389.30",STANLEY TRAVEL (NORTH EAST) LTD.
Children and Young Peoples Services,Head of Education and Skills,Transport,230003,Contract Hire,08/05/2019,3586114-52996,"1,389.30",STANLEY TRAVEL (NORTH EAST) LTD.
Children and Young Peoples Services,Head of Education and Skills,Transport,230003,Contract Hire,08/05/2019,3586114-52997,934.12,STANLEY TRAVEL (NORTH EAST) LTD.
Children and Young Peoples Services,Head of Education and Skills,Transport,230003,Contract Hire,08/05/2019,3586114-52998,"1,239.92",STANLEY TRAVEL (NORTH EAST) LTD.
Children and Young Peoples Services,Head of Education and Skills,Transport,230003,Contract Hire,08/05/2019,3586114-52999,"1,389.30",STANLEY TRAVEL (NORTH EAST) LTD.
Children and Young Peoples Services,Head of Education and Skills,Transport,230008,Contract Hire,08/05/2019,3586144-02/2019/010,600.00,TARNS TAXIS LTD.
Children and Young Peoples Services,Head of Education and Skills,Transport,230008,Contract Hire,08/05/2019,3586144-03/2019002,900.00,TARNS TAXIS LTD.
Children and Young Peoples Services,Head of Education and Skills,Transport,230008,Contract Hire,08/05/2019,3586144-04/2019/002,500.00,TARNS TAXIS LTD.
Children and Young Peoples Services,Head of Education and Skills,Transport,230008,Contract Hire,08/05/2019,3586144-04/2019/008,738.71,TARNS TAXIS LTD.
Children and Young Peoples Services,Head of Education and Skills,Supplies and Services,384199,Miscellaneous Expenses,08/05/2019,3586152-JANUARY-APRIL2019,525.00,THE JOANNE BANKS DANCERS.
Children and Young Peoples Services,Head of Education and Skills,Transport,230006,Contract Hire,08/05/2019,3586161-F755-APRIL,660.00,THOMAS GLEN.
Children and Young Peoples Services,Head of Education and Skills,Transport,230008,Contract Hire,08/05/2019,3586165-0002064,"1,265.00",TONY RIDLEY T/A COLORS TAXIS LTD.
Children and Young Peoples Services,Childrens Services Operational Support CG0080,Supplies and Services,338089,Services,08/05/2019,3586169-1023,"2,168.59",TRACEY HILL TRAINING & CONSULTANCY LTD.
Children and Young Peoples Services,Childrens Services Operational Support CG0080,Supplies and Services,338089,Services,08/05/2019,3586169-1024,"2,168.59",TRACEY HILL TRAINING & CONSULTANCY LTD.
Children and Young Peoples Services,Head of Education and Skills,Transport,230008,Contract Hire,08/05/2019,3586179-05-S004,506.00,TRIDENT TAXIS.
Children and Young Peoples Services,Head of Education and Skills,Transport,230008,Contract Hire,08/05/2019,3586179-8,848.00,TRIDENT TAXIS.
Children and Young Peoples Services,Head of Childrens Social Care,Supplies and Services,384534,Miscellaneous Expenses,08/05/2019,3586193-DUR2017/18/19,"4,020.00",UPSOAR 3 CIRCLES LTD.
Children and Young Peoples Services,Head of Childrens Social Care,Third Party Payments 4THIRD,440038,Other third party payments E440,08/05/2019,3586206-INV-6660,"1,072.10",WE CARE RECRUITMENT SOLUTIONS LTD.
Children and Young Peoples Services,Head of Childrens Social Care,Third Party Payments 4THIRD,425021,Rendered by Voluntary Organisations,08/05/2019,3586206-INV-0531,"2,662.36",WE CARE RECRUITMENT SOLUTIONS LTD.
Children and Young Peoples Services,Head of Childrens Social Care,Third Party Payments 4THIRD,425021,Rendered by Voluntary Organisations,08/05/2019,3586206-INV-0532,610.43,WE CARE RECRUITMENT SOLUTIONS LTD.
Children and Young Peoples Services,Head of Childrens Social Care,Third Party Payments 4THIRD,425021,Rendered by Voluntary Organisations,08/05/2019,3586206-INV-0648,"5,030.13",WE CARE RECRUITMENT SOLUTIONS LTD.
Children and Young Peoples Services,Head of Childrens Social Care,Third Party Payments 4THIRD,425021,Rendered by Voluntary Organisations,08/05/2019,3586206-INV-0650,"6,388.02",WE CARE RECRUITMENT SOLUTIONS LTD.
Dedicated Schools Grant BG0015,DSG High Needs Block,Transport,230009,Contract Hire,08/05/2019,3585494-41914,"1,400.00",24/7 TAXI SERVICES LTD.
Dedicated Schools Grant BG0015,DSG High Needs Block,Transport,230008,Contract Hire,08/05/2019,3585494-41906,800.00,24/7 TAXI SERVICES LTD.
Dedicated Schools Grant BG0015,DSG High Needs Block,Third Party Payments 4THIRD,440080,Other third party payments E440,08/05/2019,3585628-SLINV/00002416,"1,416.60",DARLINGTON COLLEGE.
Dedicated Schools Grant BG0015,DSG High Needs Block,Third Party Payments 4THIRD,440080,Other third party payments E440,08/05/2019,3585628-SLINV/00002474,"1,416.60",DARLINGTON COLLEGE.
Dedicated Schools Grant BG0015,DSG High Needs Block,Third Party Payments 4THIRD,440080,Other third party payments E440,08/05/2019,3585663-0000045355,"268,460.70",EAST DURHAM COLLEGE.
Dedicated Schools Grant BG0015,DSG High Needs Block,Transport,230010,Contract Hire,08/05/2019,3585665-01052019/5,"2,343.00",EAST DURHAM TAXIS.
Dedicated Schools Grant BG0015,DSG High Needs Block,Transport,230010,Contract Hire,08/05/2019,3585784-22,"1,320.00",JOHN GARLAND.
Dedicated Schools Grant BG0015,DSG High Needs Block,Transport,230010,Contract Hire,08/05/2019,3585856-INV04/1901,"1,974.00",MARK & JOHN CHISHOLM T/A (CHEVRON).
Dedicated Schools Grant BG0015,DSG High Needs Block,Transport,230010,Contract Hire,08/05/2019,3585856-INV04/1902,"1,419.00",MARK & JOHN CHISHOLM T/A (CHEVRON).
Dedicated Schools Grant BG0015,DSG High Needs Block,Transport,230010,Contract Hire,08/05/2019,3585856-INV04/1903,"1,350.00",MARK & JOHN CHISHOLM T/A (CHEVRON).
Dedicated Schools Grant BG0015,DSG High Needs Block,Transport,230010,Contract Hire,08/05/2019,3585856-INV04/1904,"1,548.00",MARK & JOHN CHISHOLM T/A (CHEVRON).
Dedicated Schools Grant BG0015,DSG High Needs Block,Transport,230010,Contract Hire,08/05/2019,3585856-INV04/1905,"1,665.00",MARK & JOHN CHISHOLM T/A (CHEVRON).
Dedicated Schools Grant BG0015,DSG High Needs Block,Transport,230010,Contract Hire,08/05/2019,3585856-INV04/1919,"1,560.00",MARK & JOHN CHISHOLM T/A (CHEVRON).
Dedicated Schools Grant BG0015,DSG High Needs Block,Transport,230010,Contract Hire,08/05/2019,3586094-75103,"1,430.00",SHOTTON PRIVATE HIRE.
Regeneration and Local Services,Technical Services CM0300,Third Party Payments 4THIRD,430100,Rendered by Private Contractors,08/05/2019,3585498-001755,571.20,A PARRY MOBILE WELDING & FABRICATION.
Regeneration and Local Services,Culture & Sport,Supplies and Services,384199,Miscellaneous Expenses,08/05/2019,3585502-ATL110,"3,000.00",ACORN T-STATS LTD.
Regeneration and Local Services,Technical Services CM0300,Supplies and Services,304221,Equipment and Materials,08/05/2019,3585505-28116417,"1,025.48",AGGREGATE INDUSTRIES UK LTD.
Regeneration and Local Services,Technical Services CM0300,Supplies and Services,304221,Equipment and Materials,08/05/2019,3585505-28116420,763.56,AGGREGATE INDUSTRIES UK LTD.
Regeneration and Local Services,Technical Services CM0300,Supplies and Services,304221,Equipment and Materials,08/05/2019,3585505-28116421,579.08,AGGREGATE INDUSTRIES UK LTD.
Regeneration and Local Services,Transport and Contracted Services,Third Party Payments 4THIRD,430100,Rendered by Private Contractors,08/05/2019,3585530-CONCFAREPAY19-1APRV1,"681,049.00",ARRIVA DURHAM COUNTY LTD.
Regeneration and Local Services,Transport and Contracted Services,Third Party Payments 4THIRD,430107,Rendered by Private Contractors,08/05/2019,3585531-CONCFAREPAY19-1APRV1,"3,120.23",ARRIVA RAIL NORTH LTD T/A NORTHERN.
Regeneration and Local Services,Transport and Contracted Services,Fees,901002,Professional fees,08/05/2019,3585534-19016008,"1,050.00",ATKINS GLOBAL.
Regeneration and Local Services,Corporate Property and Land,Third Party Payments 4THIRD,430100,Rendered by Private Contractors,08/05/2019,3585535-6894,"4,510.00",ATLAS WASHROOM SYSTEMS LTD.
Regeneration and Local Services,Environmental Services,Supplies and Services,304221,Equipment and Materials,08/05/2019,3585539-97544710,"1,529.17",BALL COLEGRAVE LTD.
Regeneration and Local Services,Environmental Services,Transport,210057,Repair and Maintenance of Vehicles,08/05/2019,3585544-35164037,"1,876.10",BELL TRUCK SALES LTD T/A BELL TRUCK & VAN.
Regeneration and Local Services,Corporate Property and Land,Supplies and Services,304245,Equipment and Materials,08/05/2019,3585566-58135,"2,295.00",CARE ABILITY HEALTHCARE LTD.
Regeneration and Local Services,Environmental Services,Transport,210057,Repair and Maintenance of Vehicles,08/05/2019,3585571-232301,727.84,CARRS BILLINGTON AGRICULTURE.
Regeneration and Local Services,EnvironmentHealth & Consumer Protection,Intangible Assets,917003,Software capitalised implementation fees,08/05/2019,3585590-C/HR177272,"1,000.00",CIVICA UK LTD.
Regeneration and Local Services,Business Durham CL0850,Premises,120021,Energy Costs,08/05/2019,3585607-13952646,542.48,CORONA ENERGY RETAIL 2 LTD.
Regeneration and Local Services,Business Durham CL0850,Premises,120021,Energy Costs,08/05/2019,3585608-13952486,"1,003.05",CORONA ENERGY RETAIL 2 LTD.
Regeneration and Local Services,Business Durham CL0850,Premises,120021,Energy Costs,08/05/2019,3585608-13952647,992.06,CORONA ENERGY RETAIL 2 LTD.
Regeneration and Local Services,Business Durham CL0850,Premises,120021,Energy Costs,08/05/2019,3585608-13952684,554.59,CORONA ENERGY RETAIL 2 LTD.
Regeneration and Local Services,Business Durham CL0850,Premises,120021,Energy Costs,08/05/2019,3585608-13952708,"1,472.99",CORONA ENERGY RETAIL 2 LTD.
Regeneration and Local Services,Corporate Property and Land,Third Party Payments 4THIRD,430100,Rendered by Private Contractors,08/05/2019,3585656-63329,672.00,DUNNINGHAM DECORATORS LTD.
Regeneration and Local Services,Corporate Property and Land,Supplies and Services,304245,Equipment and Materials,08/05/2019,3585666-059-243008,"24,687.90",EDMUNDSON ELECTRICAL LTD.
Regeneration and Local Services,Corporate Property and Land,Supplies and Services,304221,Equipment and Materials,08/05/2019,3585692-1903-180828,609.62,FLAME HEATING SPARES LTD.
Regeneration and Local Services,Corporate Property and Land,Supplies and Services,304221,Equipment and Materials,08/05/2019,3585692-1903-182391,801.16,FLAME HEATING SPARES LTD.
Regeneration and Local Services,Corporate Property and Land,Supplies and Services,304221,Equipment and Materials,08/05/2019,3585692-1903-184895,572.65,FLAME HEATING SPARES LTD.
Regeneration and Local Services,Corporate Property and Land,Third Party Payments 4THIRD,430100,Rendered by Private Contractors,08/05/2019,3585699-10936,"2,660.00",FROSTREE LTD.
Regeneration and Local Services,Business Durham CL0850,Premises,120021,Energy Costs,08/05/2019,3585710-6601682,685.54,GAZPROM MARKETING & TRADING RETAIL LTD T/A GAZPROM ENERGY.
Regeneration and Local Services,Transport and Contracted Services,Third Party Payments 4THIRD,430100,Rendered by Private Contractors,08/05/2019,3585716-CONCFAREPAY19-1APRV1,"701,706.00",GO GATESHEAD LTD.
Regeneration and Local Services,Transport and Contracted Services,Third Party Payments 4THIRD,430100,Rendered by Private Contractors,08/05/2019,3585722-CONCFAREPAY19-1APRV1,589.01,GRAHAMS MOTOR SERVICES LTD.
Regeneration and Local Services,Transport and Contracted Services,Supplies and Services,328041,Clothing uniforms and laundry E328,08/05/2019,3585726-06/793808,532.00,GREENHAM TRADING LTD.
Regeneration and Local Services,Transport and Contracted Services,Third Party Payments 4THIRD,430100,Rendered by Private Contractors,08/05/2019,3585752-CONCFAREPAY19-1APRV1,799.04,HODGSONS COACH OPERATORS LTD.
Regeneration and Local Services,Environmental Services,Third Party Payments 4THIRD,430113,Rendered by Private Contractors,08/05/2019,3585759-W191764,"299,737.69",HW MARTIN HOLDINGS LTD.
Regeneration and Local Services,Environmental Services,Supplies and Services,304221,Equipment and Materials,08/05/2019,3585760-7574,500.00,IBA FABRICATIONS LTD.
Regeneration and Local Services,Corporate Property and Land,Third Party Payments 4THIRD,430100,Rendered by Private Contractors,08/05/2019,3585761-7592,"1,510.00",INGLEFORD SCAFFOLDING LTD.
Regeneration and Local Services,Environmental Services,Supplies and Services,324117,Provisions E324,08/05/2019,3585767-1303,509.94,J MORAN LTD T/A CAFFE VINCI.
Regeneration and Local Services,Technical Services CM0300,Construction work A908,908105,Construction work,08/05/2019,3585768-22810,"1,192.80",JACK COUPE & SONS LTD T/A COUPE LINE.
Regeneration and Local Services,Technical Services CM0300,Construction work A908,908105,Construction work,08/05/2019,3585768-22811,602.66,JACK COUPE & SONS LTD T/A COUPE LINE.
Regeneration and Local Services,Technical Services CM0300,Construction work A908,908105,Construction work,08/05/2019,3585768-22812,"2,844.73",JACK COUPE & SONS LTD T/A COUPE LINE.
Regeneration and Local Services,Technical Services CM0300,Construction work A908,908105,Construction work,08/05/2019,3585768-22820,"1,260.74",JACK COUPE & SONS LTD T/A COUPE LINE.
Regeneration and Local Services,Technical Services CM0300,Construction work A908,908105,Construction work,08/05/2019,3585768-22821,857.69,JACK COUPE & SONS LTD T/A COUPE LINE.
Regeneration and Local Services,Technical Services CM0300,Construction work A908,908105,Construction work,08/05/2019,3585768-22830,"3,955.79",JACK COUPE & SONS LTD T/A COUPE LINE.
Regeneration and Local Services,Technical Services CM0300,Construction work A908,908105,Construction work,08/05/2019,3585768-22831,"1,674.27",JACK COUPE & SONS LTD T/A COUPE LINE.
Regeneration and Local Services,Environmental Services,Supplies and Services,304259,Equipment and Materials,08/05/2019,3585786-1142077,634.75,JOHNSONS OF WHIXLEY LTD.
Regeneration and Local Services,Environmental Services,Supplies and Services,304259,Equipment and Materials,08/05/2019,3585786-1142078,"1,065.00",JOHNSONS OF WHIXLEY LTD.
Regeneration and Local Services,Technical Services CM0300,Stock A926,926900,Stock in hand-Inventory system,08/05/2019,3585795-BII285401,"1,544.00",JT DOVE LTD.
Regeneration and Local Services,Transport and Contracted Services,Supplies and Services,342007,Computers and Communications,08/05/2019,3585841-293,"10,400.00",LOGAN INTERACTIVE LTD.
Regeneration and Local Services,Corporate Property and Land,Supplies and Services,304221,Equipment and Materials,08/05/2019,3585842-4510372,627.90,LONDON GENERAL SALES LTD.
Regeneration and Local Services,Culture & Sport,Supplies and Services,384199,Miscellaneous Expenses,08/05/2019,3585859-4100655395,"2,200.00",MARK IAN THOMPSON.
Regeneration and Local Services,Technical Services CM0300,Construction work A908,908105,Construction work,08/05/2019,3585978-1245700,"155,653.27",NETWORK RAIL.
Regeneration and Local Services,Development and Housing,Supplies and Services,336005,Advertising E336,08/05/2019,3585981-29053143,671.76,NEWSQUEST (YORKSHIRE & NORTH EAST) LTD.
Regeneration and Local Services,Environmental Services,Transport,210057,Repair and Maintenance of Vehicles,08/05/2019,3585986-74240,"1,195.64",NORPLAST LTD.
Regeneration and Local Services,Culture & Sport,Supplies and Services,338047,Services,08/05/2019,3585989-INV0007881,"2,059.68",NORTHERN BALLET THEATRE LTD.
Regeneration and Local Services,Technical Services CM0300,Third Party Payments 4THIRD,430100,Rendered by Private Contractors,08/05/2019,3585990-DI20316381,907.73,NORTHERN POWERGRID (NORTHEAST) LTD.
Regeneration and Local Services,Environmental Services,Premises,135005,Water Services,08/05/2019,3585992-Q111729-C,502.00,NORTHUMBRIAN WATER LTD.
Regeneration and Local Services,Environmental Services,Transport,215005,Running Costs of Vehicles,08/05/2019,3586000-418536,"18,719.52",OIL NRG LTD.
Regeneration and Local Services,Technical Services CM0300,Stock A926,926900,Stock in hand-Inventory system,08/05/2019,3586011-XL238485,"1,822.50",PARK ELECTRICAL DISTRIBUTORS LTD.
Regeneration and Local Services,Environmental Services,Supplies and Services,304221,Equipment and Materials,08/05/2019,3586053-RSIN0295201,"4,994.78",RIGBY TAYLOR LTD.
Regeneration and Local Services,Environmental Services,Transport,210057,Repair and Maintenance of Vehicles,08/05/2019,3586079-2019.1000009606,993.79,SCARAB SWEEPERS LTD.
Regeneration and Local Services,Transport and Contracted Services,Third Party Payments 4THIRD,430100,Rendered by Private Contractors,08/05/2019,3586080-CONCFAREPAY19-1APRV1,"30,190.39",SCARLET BAND BUS & COACH LTD.
Regeneration and Local Services,Culture & Sport,Supplies and Services,304259,Equipment and Materials,08/05/2019,3586113-00358895,"1,104.33",STAGE ELECTRICS PARTNERSHIP LTD.
Regeneration and Local Services,Culture & Sport,Supplies and Services,304259,Equipment and Materials,08/05/2019,3586113-00358896,"1,074.12",STAGE ELECTRICS PARTNERSHIP LTD.
Regeneration and Local Services,Transport and Contracted Services,Third Party Payments 4THIRD,430100,Rendered by Private Contractors,08/05/2019,3586114-CONCFAREPAY19-1APRV1,"6,726.22",STANLEY TRAVEL (NORTH EAST) LTD.
Regeneration and Local Services,Culture & Sport,Supplies and Services,338047,Services,08/05/2019,3586124-60191581,650.81,STUDIOCANAL LTD.
Regeneration and Local Services,Culture & Sport,Third Party Payments 4THIRD,430131,Rendered by Private Contractors,08/05/2019,3586148-TT/083-010419,600.00,TERESA DONNELLAN T/A T TRAINING.
Regeneration and Local Services,Culture & Sport,Supplies and Services,338047,Services,08/05/2019,3586155-SINRNT1005201,671.71,THE ROYAL NATIONAL THEATRE.
Regeneration and Local Services,Transport and Contracted Services,Supplies and Services,304245,Equipment and Materials,08/05/2019,3586186-3IN/10335970,"21,060.30",TUNSTALL HEALTHCARE (UK) LTD.
Regeneration and Local Services,Culture & Sport,Supplies and Services,338047,Services,08/05/2019,3586202-1738865,"1,911.94",WALT DISNEY CO LTD.
Regeneration and Local Services,Culture & Sport,Supplies and Services,338047,Services,08/05/2019,3586202-1738881,"1,911.94",WALT DISNEY CO LTD.
Regeneration and Local Services,Culture & Sport,Supplies and Services,338047,Services,08/05/2019,3586203-1738504,"2,199.79",WALT DISNEY CO LTD.
Regeneration and Local Services,Culture & Sport,Supplies and Services,338047,Services,08/05/2019,3586203-1738510,"1,621.69",WALT DISNEY CO LTD.
Regeneration and Local Services,Transport and Contracted Services,Third Party Payments 4THIRD,430100,Rendered by Private Contractors,08/05/2019,3586208-CONCFAREPAY19-1APRV1,"24,265.87",WEARDALE MOTOR SERVICES LTD.
Regeneration and Local Services,Transport and Contracted Services,Third Party Payments 4THIRD,430100,Rendered by Private Contractors,08/05/2019,3586208-CONCFAREPAY19-1APRV1X21,"1,934.43",WEARDALE MOTOR SERVICES LTD.
Resources BK0010,Legal & Democratic Services,Premises,120021,Energy Costs,08/05/2019,3585556-14007,"1,198.44",BRADLEY HALL LTD.
Resources BK0010,Corporate Finance & Commercial Services,Third Party Payments 4THIRD,479112,Purchase of Care,08/05/2019,3585604-68221,"1,718.75",CONNECT HEALTH LTD.
Resources BK0010,Corporate Finance & Commercial Services,Third Party Payments 4THIRD,479112,Purchase of Care,08/05/2019,3585604-68222,"1,833.13",CONNECT HEALTH LTD.
Resources BK0010,Legal & Democratic Services,Supplies and Services,338042,Services,08/05/2019,3585647-343681/INVAP149,"2,350.00",DERE STREET BARRISTERS.
Resources BK0010,Legal & Democratic Services,Supplies and Services,338042,Services,08/05/2019,312207-413731,"1,000.00",MISS RUTH STOCKLEY.
Resources BK0010,Digital and Customer Services,Supplies and Services,344033,Telephones,08/05/2019,3585979-202704,"1,355.77",NETWORKS 2 BUSINESS LTD.
Resources BK0010,Digital and Customer Services,Supplies and Services,304303,Equipment and Materials,08/05/2019,3586047-INV-2227,600.00,REDWOOD CABLE PROJECTS LTD.
Resources BK0010,Legal & Democratic Services,Supplies and Services,338042,Services,08/05/2019,3586183-260564/INVFP346,500.00,TRINITY CHAMBERS.
Transformation and Partnerships,Partnerships & Community Engagement Div.,Supplies and Services,384086,Miscellaneous Expenses,08/05/2019,3585615-VOUCHER19NB-3TWN002,"1,000.00",CROOK TOWN AFC.
Transformation and Partnerships,Partnerships & Community Engagement Div.,Cap Exp on Grants & Other Financial Assistance (REFCUS),918004,Contributions to other bodies 918004,08/05/2019,3585662-VOUCHER18AB-EDUR008,"6,000.00",EASINGTON PAROCHIAL CHURCH COUNCIL.
Transformation and Partnerships,Partnerships & Community Engagement Div.,Supplies and Services,384073,Miscellaneous Expenses,08/05/2019,3586026-9425,"1,179.16",PETERLEE TOWN COUNCIL.
Transformation and Partnerships,Partnerships & Community Engagement Div.,Supplies and Services,384073,Miscellaneous Expenses,08/05/2019,3586114-52886,530.00,STANLEY TRAVEL (NORTH EAST) LTD.
Transformation and Partnerships,Partnerships & Community Engagement Div.,Supplies and Services,338066,Services,08/05/2019,3586138-DUR1-APRIL2019,500.00,"T-ASC (TRAINING, ADVICE, SOLUTIONS & CONSULTANCY)."
Transformation and Partnerships,Partnerships & Community Engagement Div.,Supplies and Services,384086,Miscellaneous Expenses,08/05/2019,3586164-VOUCHERSMIH02-19,800.00,TOFT HILL HOMING SOCIETY.
Adult and Health Services,Head of Adults,Third Party Payments 4THIRD,478151,Purchase of Care,09/05/2019,3586265-D720002175,"3,949.00",AUTISM CARE UK (4) LTD.
Adult and Health Services,Head of Adults,Third Party Payments 4THIRD,478151,Purchase of Care,09/05/2019,3586378-HLC46/2019,"2,445.00",HIGHLEA CARE LTD.
Children and Young Peoples Services,Head of Education and Skills,Transport,230008,Contract Hire,09/05/2019,3586228-41908,"1,596.00",24/7 TAXI SERVICES LTD.
Children and Young Peoples Services,Head of Education and Skills,Transport,230007,Contract Hire,09/05/2019,3586229-3365MARCH02,"1,100.00",A & P TAXIS.
Children and Young Peoples Services,Head of Education and Skills,Transport,230009,Contract Hire,09/05/2019,3586229-7357MARCH03,550.00,A & P TAXIS.
Children and Young Peoples Services,Head of Education and Skills,Transport,230012,Contract Hire,09/05/2019,3586233-0414,"1,058.64",ABC & OUSTON CABS.
Children and Young Peoples Services,Head of Education and Skills,Transport,230012,Contract Hire,09/05/2019,3586233-0416,"1,499.19",ABC & OUSTON CABS.
Children and Young Peoples Services,Head of Education and Skills,Transport,230008,Contract Hire,09/05/2019,3586233-0415,"1,139.93",ABC & OUSTON CABS.
Children and Young Peoples Services,Head of Education and Skills,Transport,230006,Contract Hire,09/05/2019,3586236-823,890.00,AC TAXIS.
Children and Young Peoples Services,Head of Education and Skills,Transport,230008,Contract Hire,09/05/2019,3586257-APRIL2019-04,687.40,ARMSTRONG`S TAXIS.
Children and Young Peoples Services,Head of Education and Skills,Transport,230009,Contract Hire,09/05/2019,3586315-A102,660.00,DAVID FOREMAN T/A DAVES TAXIS.
Children and Young Peoples Services,Head of Education and Skills,Transport,230003,Contract Hire,09/05/2019,3586360-5041,"1,544.64",GEM TRAVEL.
Children and Young Peoples Services,Head of Education and Skills,Transport,230003,Contract Hire,09/05/2019,3586360-5042,"1,544.64",GEM TRAVEL.
Children and Young Peoples Services,Head of Education and Skills,Transport,230003,Contract Hire,09/05/2019,3586360-5043,898.04,GEM TRAVEL.
Children and Young Peoples Services,Head of Early Help Inclusion & Vulnerable Children.,Employees,080025,Agency Staff,09/05/2019,3586362-2428908,"116,705.45",GEOMETRIC RESULTS INTERNATIONAL.
Children and Young Peoples Services,Head of Childrens Social Care,Supplies and Services,384507,Miscellaneous Expenses,09/05/2019,3586372-INV-0067,550.00,H JOHNSON.
Children and Young Peoples Services,Head of Education and Skills,Transport,230008,Contract Hire,09/05/2019,3586376-W075-29,507.87,HENRY FOREMAN T/A HENRY`S TAXIS.
Children and Young Peoples Services,Head of Education and Skills,Transport,230009,Contract Hire,09/05/2019,3586389-0685,894.71,JACKSON`S TAXI.
Children and Young Peoples Services,Head of Education and Skills,Transport,230009,Contract Hire,09/05/2019,3586389-0688,517.81,JACKSON`S TAXI.
Children and Young Peoples Services,Head of Education and Skills,Transport,230008,Contract Hire,09/05/2019,3586389-0686,"1,505.11",JACKSON`S TAXI.
Children and Young Peoples Services,Head of Education and Skills,Transport,230008,Contract Hire,09/05/2019,3586389-0687,726.00,JACKSON`S TAXI.
Children and Young Peoples Services,Head of Education and Skills,Transport,230007,Contract Hire,09/05/2019,3586394-1506,677.16,JDS PRIVATE HIRE DURHAM.
Children and Young Peoples Services,Head of Education and Skills,Transport,230007,Contract Hire,09/05/2019,3586394-1519,631.95,JDS PRIVATE HIRE DURHAM.
Children and Young Peoples Services,Head of Education and Skills,Transport,230008,Contract Hire,09/05/2019,3586394-1507,"1,161.49",JDS PRIVATE HIRE DURHAM.
Children and Young Peoples Services,Head of Education and Skills,Transport,230008,Contract Hire,09/05/2019,3586394-1512,"1,012.00",JDS PRIVATE HIRE DURHAM.
Children and Young Peoples Services,Head of Education and Skills,Transport,230008,Contract Hire,09/05/2019,3586394-1521,990.00,JDS PRIVATE HIRE DURHAM.
Children and Young Peoples Services,Head of Education and Skills,Transport,230008,Contract Hire,09/05/2019,3586416-3993,"1,137.47",LINCAB TAXIS.
Children and Young Peoples Services,Head of Education and Skills,Transport,230006,Contract Hire,09/05/2019,3586437-003-N220,"1,375.00",MOLLY`S TAXIS LTD.
Children and Young Peoples Services,Head of Education and Skills,Transport,230008,Contract Hire,09/05/2019,3586437-005-A004,"1,485.00",MOLLY`S TAXIS LTD.
Children and Young Peoples Services,Head of Education and Skills,Transport,230008,Contract Hire,09/05/2019,3586437-006-N023,"1,298.00",MOLLY`S TAXIS LTD.
Children and Young Peoples Services,Head of Education and Skills,Transport,230008,Contract Hire,09/05/2019,3586437-007-N018,"1,298.00",MOLLY`S TAXIS LTD.
Children and Young Peoples Services,Head of Education and Skills,Transport,230008,Contract Hire,09/05/2019,3586437-008,"1,265.00",MOLLY`S TAXIS LTD.
Children and Young Peoples Services,Head of Education and Skills,Transport,230008,Contract Hire,09/05/2019,3586437-008-A001,"1,210.00",MOLLY`S TAXIS LTD.
Children and Young Peoples Services,Head of Education and Skills,Transport,230008,Contract Hire,09/05/2019,3586249-158,"1,375.00",MR A MCKENNA T/A ANDY CABS.
Children and Young Peoples Services,Head of Education and Skills,Transport,230007,Contract Hire,09/05/2019,3586439-AT174,660.00,MR AG WILSON T/A ALAN`S TAXIS (DURHAM CITY).
Children and Young Peoples Services,Head of Education and Skills,Transport,230006,Contract Hire,09/05/2019,3586440-208,902.00,MR BRIAN JOHNSON T/A BRYS TAXIS.
Children and Young Peoples Services,Head of Education and Skills,Transport,230008,Contract Hire,09/05/2019,3586443-0304888,718.20,MR GN ROBBINS T/A GNR MINIBUS HIRE.
Children and Young Peoples Services,Head of Education and Skills,Transport,230007,Contract Hire,09/05/2019,3586445-5239-APR,600.00,MR MARK WILE T/A HARRY`S TAXIS.
Children and Young Peoples Services,Head of Education and Skills,Transport,230008,Contract Hire,09/05/2019,3586446-034,940.50,MR NEIL LEONARD T/A LENNY`S TAXIS.
Children and Young Peoples Services,Head of Childrens Social Care,Third Party Payments 4THIRD,425041,Rendered by Voluntary Organisations,09/05/2019,3586463-92275082,"18,000.00",NOTTINGHAMSHIRE COUNTY COUNCIL.
Children and Young Peoples Services,Head of Education and Skills,Transport,230009,Contract Hire,09/05/2019,3586486-29340,704.00,PHOENIX TAXIS T/A PRATT`S TAXIS.
Children and Young Peoples Services,Head of Education and Skills,Transport,230006,Contract Hire,09/05/2019,3586486-29338,"1,435.00",PHOENIX TAXIS T/A PRATT`S TAXIS.
Children and Young Peoples Services,Head of Education and Skills,Transport,230006,Contract Hire,09/05/2019,3586486-29339,"1,540.00",PHOENIX TAXIS T/A PRATT`S TAXIS.
Children and Young Peoples Services,Head of Early Help Inclusion & Vulnerable Children.,Supplies and Services,308011,Furniture,09/05/2019,3586490-SI/60388,"1,671.78",PINEAPPLE CONTRACTS.
Children and Young Peoples Services,Head of Early Help Inclusion & Vulnerable Children.,Supplies and Services,308011,Furniture,09/05/2019,3586490-SI/60396,577.15,PINEAPPLE CONTRACTS.
Children and Young Peoples Services,Head of Childrens Social Care,Third Party Payments 4THIRD,425021,Rendered by Voluntary Organisations,09/05/2019,3586515-4863,"34,544.64",ROC FAMILY SUPPORT LTD.
Children and Young Peoples Services,Head of Education and Skills,Supplies and Services,384302,Miscellaneous Expenses,09/05/2019,3586525-SSES1,"1,275.00",SANDRA STEPHENSON T/A SS ENTERPRISE SOLUTIONS.
Children and Young Peoples Services,Head of Education and Skills,Transport,230008,Contract Hire,09/05/2019,3586535-75104,"1,138.00",SHOTTON PRIVATE HIRE.
Children and Young Peoples Services,Head of Education and Skills,Transport,230008,Contract Hire,09/05/2019,3586572-19-W033,752.57,TW TINKLER T/A TT TAXIS.
Children and Young Peoples Services,Head of Childrens Social Care,Supplies and Services,384534,Miscellaneous Expenses,09/05/2019,3586595-1012,620.00,YORKSHRE PLAY THERAPY.
Dedicated Schools Grant BG0015,DSG High Needs Block,Transport,230010,Contract Hire,09/05/2019,3586355-101226,690.00,G & P JOHNSON LTD T/A NIGHTINGALE COACHES.
Dedicated Schools Grant BG0015,DSG High Needs Block,Transport,230010,Contract Hire,09/05/2019,3586416-3971,"2,832.60",LINCAB TAXIS.
Dedicated Schools Grant BG0015,DSG High Needs Block,Transport,230010,Contract Hire,09/05/2019,3586444-PL005-APRIL,590.00,MR M FARREY T/A TK TAXIS.
Dedicated Schools Grant BG0015,DSG High Needs Block,Transport,230010,Contract Hire,09/05/2019,3586482-616,"1,375.00",PETERLEE EXECUTIVE CARS.
Dedicated Schools Grant BG0015,DSG High Needs Block,Transport,230010,Contract Hire,09/05/2019,3586535-75108,600.00,SHOTTON PRIVATE HIRE.
Regeneration and Local Services,Culture & Sport,Supplies and Services,384199,Miscellaneous Expenses,09/05/2019,3586235-116346138,593.74,AC ENTERTAINMENT TECHNOLOGIES.
Regeneration and Local Services,Culture & Sport,Supplies and Services,304259,Equipment and Materials,09/05/2019,3586252-4817809,535.20,ANGEL SPRINGS LTD T/A WATERLOGIC.*
Regeneration and Local Services,Corporate Property and Land,Third Party Payments 4THIRD,430100,Rendered by Private Contractors,09/05/2019,3586262-14168,"2,617.25",ASTRAL CONTROL SERVICES LTD.
Regeneration and Local Services,Technical Services CM0300,Third Party Payments 4THIRD,430100,Rendered by Private Contractors,09/05/2019,3586263-19016212,"26,453.99",ATKINS GLOBAL.
Regeneration and Local Services,Corporate Property and Land,Third Party Payments 4THIRD,430100,Rendered by Private Contractors,09/05/2019,3586289-5812,"4,351.36",CATHEDRAL LOCK & SAFE SERVICES LTD.
Regeneration and Local Services,Technical Services CM0300,Stock A926,926900,Stock in hand-Inventory system,09/05/2019,3586300-518724,577.50,CMT EQUIPMENT LTD.
Regeneration and Local Services,Technical Services CM0300,Stock A926,926900,Stock in hand-Inventory system,09/05/2019,3586302-224059,"1,967.76",COLAS LTD.
Regeneration and Local Services,Culture & Sport,Supplies and Services,338047,Services,09/05/2019,3586328-SI-301,"3,150.00",DURHAM SCENIC WORKSHOPS LTD.
Regeneration and Local Services,Corporate Property and Land,Supplies and Services,304221,Equipment and Materials,09/05/2019,3586335-059-241266,685.00,EDMUNDSON ELECTRICAL LTD.
Regeneration and Local Services,Corporate Property and Land,Supplies and Services,304221,Equipment and Materials,09/05/2019,3586335-059-241566,"2,465.32",EDMUNDSON ELECTRICAL LTD.
Regeneration and Local Services,Corporate Property and Land,Supplies and Services,304221,Equipment and Materials,09/05/2019,3586335-059-242893,690.00,EDMUNDSON ELECTRICAL LTD.
Regeneration and Local Services,Corporate Property and Land,Third Party Payments 4THIRD,430100,Rendered by Private Contractors,09/05/2019,3586354-10973,"13,850.00",FROSTREE LTD.
Regeneration and Local Services,Culture & Sport,Premises,145023,Cleaning and Domestic Supplies,09/05/2019,3586367-06/795539,"1,263.53",GREENHAM TRADING LTD.
Regeneration and Local Services,Business Durham CL0850,Construction work A908,908105,Construction work,09/05/2019,3586383-132839,"5,000.00",HUTCHINSON ENVIRONMENTAL SOLUTIONS LTD.
Regeneration and Local Services,Technical Services CM0300,Supplies and Services,304221,Equipment and Materials,09/05/2019,3586402-BII284669,"1,056.00",JT DOVE LTD.
Regeneration and Local Services,Technical Services CM0300,Stock A926,926900,Stock in hand-Inventory system,09/05/2019,3586402-BII285562,858.56,JT DOVE LTD.
Regeneration and Local Services,Technical Services CM0300,Third Party Payments 4THIRD,430100,Rendered by Private Contractors,09/05/2019,3586403-38257,"1,305.95",KAEFER LTD.
Regeneration and Local Services,Culture & Sport,Supplies and Services,338047,Services,09/05/2019,3586404-KENDAL-0167,"2,000.00",KENDAL MOUNTAIN EVENTS LTD.
Regeneration and Local Services,Technical Services CM0300,Supplies and Services,304221,Equipment and Materials,09/05/2019,3586426-Z000298072,"1,391.81",MARSHALLS MONO LTD.
Regeneration and Local Services,Corporate Property and Land,Third Party Payments 4THIRD,430100,Rendered by Private Contractors,09/05/2019,3586434-6217,"13,198.99",MELDRUM CONSTRUCTION SERVICES LTD.
Regeneration and Local Services,Transport and Contracted Services,Third Party Payments 4THIRD,430108,Rendered by Private Contractors,09/05/2019,3586449-0000078900,"1,173.32",NAL LTD.
Regeneration and Local Services,Business Durham CL0850,Supplies and Services,340001,Postages E340,09/05/2019,3586455-RED-05-2019-036,"1,000.00",NEOPOST CREDIFON.
Regeneration and Local Services,Technical Services CM0300,Third Party Payments 4THIRD,430100,Rendered by Private Contractors,09/05/2019,3586480-311713,"9,965.00",PEART FENCING LTD.
Regeneration and Local Services,Culture & Sport,Supplies and Services,338047,Services,09/05/2019,3586489-INV08444,833.33,PICTUREHOUSE CINEMAS LTD.
Regeneration and Local Services,Technical Services CM0300,Third Party Payments 4THIRD,430100,Rendered by Private Contractors,09/05/2019,3586499-119785,550.00,PROTECTOR SECURITY GROUP LTD.
Regeneration and Local Services,Technical Services CM0300,Third Party Payments 4THIRD,430100,Rendered by Private Contractors,09/05/2019,3586499-119999,550.00,PROTECTOR SECURITY GROUP LTD.
Regeneration and Local Services,Technical Services CM0300,Third Party Payments 4THIRD,430100,Rendered by Private Contractors,09/05/2019,3586501-11773,802.70,QUANTUM POWER CONNECTIONS LTD.
Regeneration and Local Services,Corporate Property and Land,Third Party Payments 4THIRD,430100,Rendered by Private Contractors,09/05/2019,3586512-51140,"4,375.00",RJ UTILITY SERVICES LTD.
Regeneration and Local Services,Corporate Property and Land,Third Party Payments 4THIRD,430100,Rendered by Private Contractors,09/05/2019,3586523-30422,"3,660.00",S&G ENGINEERING (NE) LTD.
Regeneration and Local Services,Environmental Services,Supplies and Services,304221,Equipment and Materials,09/05/2019,3586534-CD970755374,690.40,SHERRIFF AMENITY.
Regeneration and Local Services,Corporate Property and Land,Supplies and Services,304221,Equipment and Materials,09/05/2019,3586537-2450300506,"1,237.86",SIKA LTD.
Regeneration and Local Services,Corporate Property and Land,Supplies and Services,304221,Equipment and Materials,09/05/2019,3586548-126526,"2,742.48",T CROSSLING & CO LTD.
Regeneration and Local Services,Corporate Property and Land,Supplies and Services,304221,Equipment and Materials,09/05/2019,3586548-141216A,"2,069.62",T CROSSLING & CO LTD.
Regeneration and Local Services,Corporate Property and Land,Supplies and Services,304245,Equipment and Materials,09/05/2019,3586548-147286,521.00,T CROSSLING & CO LTD.
Regeneration and Local Services,Corporate Property and Land,Third Party Payments 4THIRD,430100,Rendered by Private Contractors,09/05/2019,3586554-10973,"3,667.00",TEAMS ROOFING LTD.
Regeneration and Local Services,Business Durham CL0850,Supplies and Services,336005,Advertising E336,09/05/2019,3586557-7952,"2,000.00",TEESDALE DEVELOPMENT COMPANY.
Regeneration and Local Services,Culture & Sport,Supplies and Services,338047,Services,09/05/2019,3586567-330B,800.00,TOM WRIGHT (THEATRE CONTRACTOR)
Regeneration and Local Services,Business Durham CL0850,Supplies and Services,304259,Equipment and Materials,09/05/2019,3586568-49872,720.00,TOMLINSON LONGSTAFF LTD.
Regeneration and Local Services,Culture & Sport,Supplies and Services,384956,Miscellaneous Expenses,09/05/2019,3586575-PPL/TD-006110,"15,939.00",UKACTIVE.
Regeneration and Local Services,Environmental Services,Supplies and Services,338027,Services,09/05/2019,3586592-3376870,"2,446.00",WOMBLE BOND DICKINSON (UK) LLP.
Regeneration and Local Services,Culture & Sport,Supplies and Services,304259,Equipment and Materials,09/05/2019,3586594-491861184,606.74,YORKSHIRE PURCHASING ORGANISATION.
Resources BK0010,Digital and Customer Services,Supplies and Services,304040,Equipment and Materials,09/05/2019,3586292-96312,"4,104.00",CENTRAL POWER SERVICES LTD (CPS).
Resources BK0010,Digital and Customer Services,Stock A926,926900,Stock in hand-Inventory system,09/05/2019,3586318-7402523032,"14,056.00",DELL COMPUTER CORPORATION LTD.
Resources BK0010,Legal & Democratic Services,Supplies and Services,338057,Services,09/05/2019,3586323-POSTMORTEMS28/8-26/9/18,"1,548.80",DR L NAIR.
Resources BK0010,Legal & Democratic Services,Supplies and Services,338042,Services,09/05/2019,3586477-308079,950.00,PARKLANE PLOWDEN CHAMBERS (BARRISTERS).
Resources BK0010,Digital and Customer Services,Supplies and Services,342051,Computers and Communications,09/05/2019,3586506-INV-35343,"1,140.00",REDSTOR LTD.
Resources BK0010,Digital and Customer Services,Supplies and Services,340001,Postages E340,09/05/2019,3586517-9058613448,"12,610.92",ROYAL MAIL GROUP PLC.
Resources BK0010,Digital and Customer Services,Supplies and Services,342215,Computers and Communications,09/05/2019,3586526-I19040041,998.00,SAPPHIRE TECHNOLOGIES LTD.*
Transformation and Partnerships,Communications Management,Supplies and Services,336005,Advertising E336,09/05/2019,3586342-SINV00212860,"15,693.00",EXTERION MEDIA (UK) LTD.
Transformation and Partnerships,Partnerships & Community Engagement Div.,Supplies and Services,352001,Conference Expenses,09/05/2019,3586433-3359,"4,434.00",ME LEARNING LTD.
Transformation and Partnerships,Partnerships & Community Engagement Div.,Supplies and Services,352001,Conference Expenses,09/05/2019,3586433-3450,"4,434.00",ME LEARNING LTD.
Adult and Health Services,Head of Adults,Transport,230005,Contract Hire,10/05/2019,3586624-703,"1,309.00",AT TAXIS LTD.
Adult and Health Services,Head of Adults,Transport,230005,Contract Hire,10/05/2019,3586625-DCC14APR19,990.00,ATLAS TAXIS BISHOP AUCKLAND.
Adult and Health Services,Head of Adults,Transport,230005,Contract Hire,10/05/2019,3586625-DCC2APRIL19,"1,231.20",ATLAS TAXIS BISHOP AUCKLAND.
Adult and Health Services,Head of Adults,Transport,230005,Contract Hire,10/05/2019,3586648-BZ00306,574.60,BREZ`S TAXIS.
Adult and Health Services,Head of Adults,Transport,230005,Contract Hire,10/05/2019,3586793-1517,902.00,JDS PRIVATE HIRE DURHAM.
Adult and Health Services,Head of Adults,Transport,230005,Contract Hire,10/05/2019,3586793-1522,964.44,JDS PRIVATE HIRE DURHAM.
Adult and Health Services,Head of Adults,Transport,230005,Contract Hire,10/05/2019,3586811-1728,"1,400.00",LD TAXIS.
Adult and Health Services,Head of Adults,Transport,230005,Contract Hire,10/05/2019,3586842-MCD37992,830.00,MCDONALD TRAVEL.
Adult and Health Services,Public Health CC0450,Premises,108099,Service Repairs and Maintenance,10/05/2019,3586895-720525,982.00,OPENVIEW SECURITY SOLUTIONS LTD.
Adult and Health Services,Head of Adults,Third Party Payments 4THIRD,470101,Purchase of Care,10/05/2019,3586910-38452,"20,476.12",PERCY HEDLEY FOUNDATION.
Adult and Health Services,Head of Adults,Third Party Payments 4THIRD,470101,Purchase of Care,10/05/2019,3586910-38634,"20,476.12",PERCY HEDLEY FOUNDATION.
Adult and Health Services,Head of Adults,Third Party Payments 4THIRD,470101,Purchase of Care,10/05/2019,3586910-38713,"20,476.12",PERCY HEDLEY FOUNDATION.
Adult and Health Services,Head of Adults,Third Party Payments 4THIRD,470101,Purchase of Care,10/05/2019,3586910-39287,"3,990.93",PERCY HEDLEY FOUNDATION.
Adult and Health Services,Head of Adults,Third Party Payments 4THIRD,470101,Purchase of Care,10/05/2019,3586910-39292,629.88,PERCY HEDLEY FOUNDATION.
Adult and Health Services,Head of Adults,Third Party Payments 4THIRD,470101,Purchase of Care,10/05/2019,3586910-39497,"20,476.12",PERCY HEDLEY FOUNDATION.
Adult and Health Services,Head of Adults,Third Party Payments 4THIRD,470101,Purchase of Care,10/05/2019,3586910-39907,"20,476.12",PERCY HEDLEY FOUNDATION.
Adult and Health Services,Public Health CC0450,Third Party Payments 4THIRD,460803,Contract Payments,10/05/2019,3586932-19205,"30,000.00",RELATE.
Adult and Health Services,Head of Adults,Transport,230005,Contract Hire,10/05/2019,3586944-1783,770.00,RON`S TAXIS (FISHBURN).
Adult and Health Services,Head of Adults,Transport,230005,Contract Hire,10/05/2019,3586948-SED112/08,"1,360.00",S & S TRAVEL LTD.
Adult and Health Services,Head of Adults,Third Party Payments 4THIRD,470101,Purchase of Care,10/05/2019,3586951-0000111334,"39,387.87",SALUTEM LD BIDCO IV LTD T/A AMBITO CARE & EDUCATION.
Children and Young Peoples Services,Head of Childrens Social Care,Transport,230005,Contract Hire,10/05/2019,3586602-Y46/ZA,700.00,AABAT TAXIS.
Children and Young Peoples Services,Head of Childrens Social Care,Transport,230005,Contract Hire,10/05/2019,3586602-Y47/ZB,805.00,AABAT TAXIS.
Children and Young Peoples Services,Head of Childrens Social Care,Transport,230005,Contract Hire,10/05/2019,3586602-Y48/ZC,"1,650.00",AABAT TAXIS.
Children and Young Peoples Services,Head of Childrens Social Care,Transport,230005,Contract Hire,10/05/2019,3586602-Y49/ZD,750.00,AABAT TAXIS.
Children and Young Peoples Services,Head of Childrens Social Care,Transport,230005,Contract Hire,10/05/2019,3586602-Y50/ZE,655.00,AABAT TAXIS.
Children and Young Peoples Services,Head of Childrens Social Care,Transport,230005,Contract Hire,10/05/2019,3586602-Y51/ZF,"1,710.00",AABAT TAXIS.
Children and Young Peoples Services,Head of Childrens Social Care,Transport,230005,Contract Hire,10/05/2019,3586602-Y54/ZK,690.00,AABAT TAXIS.
Children and Young Peoples Services,Head of Childrens Social Care,Transport,230005,Contract Hire,10/05/2019,3586602-Y55/ZL,625.00,AABAT TAXIS.
Children and Young Peoples Services,Head of Childrens Social Care,Transport,230005,Contract Hire,10/05/2019,3586602-Y58/ZX,"1,155.00",AABAT TAXIS.
Children and Young Peoples Services,Head of Childrens Social Care,Transport,230005,Contract Hire,10/05/2019,3586602-Z73/C19,780.00,AABAT TAXIS.
Children and Young Peoples Services,Head of Early Help Inclusion & Vulnerable Children.,Supplies and Services,308011,Furniture,10/05/2019,3586607-165403,580.00,ALBANY OFFICE EQUIPMENT (WHOLESALE) LTD.
Children and Young Peoples Services,Head of Education and Skills,Supplies and Services,336005,Advertising E336,10/05/2019,3586621-041905,"5,000.00",ARTISTIC SOLUTIONS LTD.
Children and Young Peoples Services,Head of Education and Skills,Transport,230007,Contract Hire,10/05/2019,3586624-704,"1,199.00",AT TAXIS LTD.
Children and Young Peoples Services,Head of Education and Skills,Transport,230009,Contract Hire,10/05/2019,3586624-705,690.00,AT TAXIS LTD.
Children and Young Peoples Services,Head of Education and Skills,Transport,230008,Contract Hire,10/05/2019,3586624-701,"1,221.77",AT TAXIS LTD.
Children and Young Peoples Services,Head of Education and Skills,Transport,230008,Contract Hire,10/05/2019,3586624-702,"1,408.00",AT TAXIS LTD.
Children and Young Peoples Services,Head of Education and Skills,Transport,230007,Contract Hire,10/05/2019,3586625-DCC11APRIL19,880.00,ATLAS TAXIS BISHOP AUCKLAND.
Children and Young Peoples Services,Head of Education and Skills,Transport,230008,Contract Hire,10/05/2019,3586625-DCC05APRIL19,"1,066.56",ATLAS TAXIS BISHOP AUCKLAND.
Children and Young Peoples Services,Head of Education and Skills,Transport,230008,Contract Hire,10/05/2019,3586625-DCC10APRIL19,990.96,ATLAS TAXIS BISHOP AUCKLAND.
Children and Young Peoples Services,Head of Education and Skills,Transport,230008,Contract Hire,10/05/2019,3586625-DCC12APR19,657.00,ATLAS TAXIS BISHOP AUCKLAND.
Children and Young Peoples Services,Head of Education and Skills,Transport,230008,Contract Hire,10/05/2019,3586625-DCC13APRIL19,"1,430.00",ATLAS TAXIS BISHOP AUCKLAND.
Children and Young Peoples Services,Head of Education and Skills,Transport,230008,Contract Hire,10/05/2019,3586625-DCC15APRIL19,800.00,ATLAS TAXIS BISHOP AUCKLAND.
Children and Young Peoples Services,Head of Education and Skills,Transport,230008,Contract Hire,10/05/2019,3586625-DCC4APR19,979.00,ATLAS TAXIS BISHOP AUCKLAND.
Children and Young Peoples Services,Head of Education and Skills,Transport,230008,Contract Hire,10/05/2019,3586625-DCC6APR19,"1,320.00",ATLAS TAXIS BISHOP AUCKLAND.
Children and Young Peoples Services,Head of Education and Skills,Transport,230007,Contract Hire,10/05/2019,3586626-03943,"1,027.04",ATLAS TAXIS CONSETT.
Children and Young Peoples Services,Head of Education and Skills,Transport,230007,Contract Hire,10/05/2019,3586626-03948,610.72,ATLAS TAXIS CONSETT.
Children and Young Peoples Services,Head of Education and Skills,Transport,230009,Contract Hire,10/05/2019,3586626-03954,"1,104.30",ATLAS TAXIS CONSETT.
Children and Young Peoples Services,Head of Education and Skills,Transport,230006,Contract Hire,10/05/2019,3586626-03952,866.50,ATLAS TAXIS CONSETT.
Children and Young Peoples Services,Head of Education and Skills,Transport,230006,Contract Hire,10/05/2019,3586626-03953,596.00,ATLAS TAXIS CONSETT.
Children and Young Peoples Services,Head of Education and Skills,Transport,230008,Contract Hire,10/05/2019,3586633-848,768.80,BEELINE MINI BUSES.
Children and Young Peoples Services,Head of Education and Skills,Transport,230008,Contract Hire,10/05/2019,3586638-A017-APRIL,"1,056.00",BIG MAMA`S TAXI.
Children and Young Peoples Services,Head of Education and Skills,Transport,230008,Contract Hire,10/05/2019,3586641-028,"1,540.00",BL CARS.
Children and Young Peoples Services,Head of Education and Skills,Transport,230008,Contract Hire,10/05/2019,3586641-029,"1,120.00",BL CARS.
Children and Young Peoples Services,Head of Education and Skills,Transport,230008,Contract Hire,10/05/2019,3586648-BZ00303,555.30,BREZ`S TAXIS.
Children and Young Peoples Services,Head of Education and Skills,Transport,230008,Contract Hire,10/05/2019,3586648-BZ00304,502.70,BREZ`S TAXIS.
Children and Young Peoples Services,Head of Education and Skills,Transport,230009,Contract Hire,10/05/2019,3586650-BIL0158,560.00,CA MUSGROVE.
Children and Young Peoples Services,Head of Education and Skills,Transport,230008,Contract Hire,10/05/2019,3586650-BIL0157,564.30,CA MUSGROVE.
Children and Young Peoples Services,Head of Early Help Inclusion & Vulnerable Children.,Premises,108099,Service Repairs and Maintenance,10/05/2019,3586657-5819,673.75,CATHEDRAL LOCK & SAFE SERVICES LTD.
Children and Young Peoples Services,Head of Childrens Social Care,Transport,230005,Contract Hire,10/05/2019,3586669-CLUB1915K,660.00,CLUBMAN CABS.
Children and Young Peoples Services,Head of Childrens Social Care,Transport,230005,Contract Hire,10/05/2019,3586669-CLUB1916F,660.00,CLUBMAN CABS.
Children and Young Peoples Services,Head of Childrens Social Care,Transport,230005,Contract Hire,10/05/2019,3586669-CLUB1917I,754.00,CLUBMAN CABS.
Children and Young Peoples Services,Head of Childrens Social Care,Transport,230005,Contract Hire,10/05/2019,3586684-109085,707.75,CROFT BUSINESS SERVICES (UK) LTD T/A CROFT TAXIS.
Children and Young Peoples Services,Head of Childrens Social Care,Transport,230005,Contract Hire,10/05/2019,3586684-109100,547.80,CROFT BUSINESS SERVICES (UK) LTD T/A CROFT TAXIS.
Children and Young Peoples Services,Head of Childrens Social Care,Transport,230005,Contract Hire,10/05/2019,3586684-109101,715.90,CROFT BUSINESS SERVICES (UK) LTD T/A CROFT TAXIS.
Children and Young Peoples Services,Head of Education and Skills,Transport,230008,Contract Hire,10/05/2019,3586695-C008,660.00,DAVID BRIDDICK T/A COUNDONS TAXIS.
Children and Young Peoples Services,Head of Education and Skills,Premises,108099,Service Repairs and Maintenance,10/05/2019,3586728-79943,"1,156.00",EIAT UK LTD.
Children and Young Peoples Services,Head of Education and Skills,Premises,108099,Service Repairs and Maintenance,10/05/2019,3586728-80035,867.00,EIAT UK LTD.
Children and Young Peoples Services,Head of Education and Skills,Supplies and Services,338094,Services,10/05/2019,3586735-5102437,501.15,EXCEL ACADEMY PARTNERSHIP T/A FRAMWELLGATE SCHOOL DURHAM.
Children and Young Peoples Services,Head of Education and Skills,Transport,230008,Contract Hire,10/05/2019,3586748-101234,"1,078.00",G & P JOHNSON LTD T/A NIGHTINGALE COACHES.
Children and Young Peoples Services,Head of Education and Skills,Transport,230007,Contract Hire,10/05/2019,3586754-GT005-3343,550.00,GORDON`S TAXIS.
Children and Young Peoples Services,Head of Childrens Social Care,Third Party Payments 4THIRD,425021,Rendered by Voluntary Organisations,10/05/2019,3586768-DU01/550/0219,"10,811.92",HILLSIDE SCHOOL (ABERDOUR) LTD.
Children and Young Peoples Services,Head of Childrens Social Care,Third Party Payments 4THIRD,425021,Rendered by Voluntary Organisations,10/05/2019,3586768-DU01/550/0319,"11,970.34",HILLSIDE SCHOOL (ABERDOUR) LTD.
Children and Young Peoples Services,Head of Childrens Social Care,Third Party Payments 4THIRD,425023,Rendered by Voluntary Organisations,10/05/2019,3586768-DU01/548/0219,"10,811.92",HILLSIDE SCHOOL (ABERDOUR) LTD.
Children and Young Peoples Services,Head of Childrens Social Care,Third Party Payments 4THIRD,425023,Rendered by Voluntary Organisations,10/05/2019,3586768-DU01/548/0319,"11,970.34",HILLSIDE SCHOOL (ABERDOUR) LTD.
Children and Young Peoples Services,Head of Education and Skills,Transport,230008,Contract Hire,10/05/2019,3586779-5029,880.33,HORNDALE TAXIS LTD.
Children and Young Peoples Services,Head of Early Help Inclusion & Vulnerable Children.,Premises,108099,Service Repairs and Maintenance,10/05/2019,3586782-19142,615.00,HYGIENIC CLEANING COMPANY (UK) LTD.
Children and Young Peoples Services,Head of Education and Skills,Transport,230006,Contract Hire,10/05/2019,3586793-1486,"1,759.95",JDS PRIVATE HIRE DURHAM.
Children and Young Peoples Services,Head of Education and Skills,Transport,230012,Contract Hire,10/05/2019,3586793-1508,756.14,JDS PRIVATE HIRE DURHAM.
Children and Young Peoples Services,Head of Education and Skills,Transport,230008,Contract Hire,10/05/2019,3586793-1485,"1,240.00",JDS PRIVATE HIRE DURHAM.
Children and Young Peoples Services,Head of Education and Skills,Transport,230008,Contract Hire,10/05/2019,3586793-1509,857.78,JDS PRIVATE HIRE DURHAM.
Children and Young Peoples Services,Head of Education and Skills,Transport,230008,Contract Hire,10/05/2019,3586793-1510,638.00,JDS PRIVATE HIRE DURHAM.
Children and Young Peoples Services,Head of Education and Skills,Transport,230008,Contract Hire,10/05/2019,3586793-1513,946.00,JDS PRIVATE HIRE DURHAM.
Children and Young Peoples Services,Head of Education and Skills,Transport,230008,Contract Hire,10/05/2019,3586793-1514,858.00,JDS PRIVATE HIRE DURHAM.
Children and Young Peoples Services,Head of Education and Skills,Transport,230008,Contract Hire,10/05/2019,3586793-1515,660.00,JDS PRIVATE HIRE DURHAM.
Children and Young Peoples Services,Head of Education and Skills,Transport,230008,Contract Hire,10/05/2019,3586793-1516,858.00,JDS PRIVATE HIRE DURHAM.
Children and Young Peoples Services,Head of Education and Skills,Transport,230008,Contract Hire,10/05/2019,3586793-1520,"1,001.00",JDS PRIVATE HIRE DURHAM.
Children and Young Peoples Services,Head of Education and Skills,Transport,230007,Contract Hire,10/05/2019,3586794-2880,"1,060.73",JEFF ANDERSON COACHES LTD.
Children and Young Peoples Services,Head of Education and Skills,Transport,230007,Contract Hire,10/05/2019,3586794-2882,863.39,JEFF ANDERSON COACHES LTD.
Children and Young Peoples Services,Head of Education and Skills,Transport,230008,Contract Hire,10/05/2019,3586794-2877,892.50,JEFF ANDERSON COACHES LTD.
Children and Young Peoples Services,Head of Education and Skills,Transport,230007,Contract Hire,10/05/2019,3586796-30/04/19G,660.00,JL EBDON. T/A DIAL-A-CAB.
Children and Young Peoples Services,Head of Education and Skills,Transport,230012,Contract Hire,10/05/2019,3586796-30/04/19F,615.60,JL EBDON. T/A DIAL-A-CAB.
Children and Young Peoples Services,Head of Education and Skills,Transport,230008,Contract Hire,10/05/2019,3586796-30/04/19B,"1,202.41",JL EBDON. T/A DIAL-A-CAB.
Children and Young Peoples Services,Head of Education and Skills,Transport,230008,Contract Hire,10/05/2019,3586796-30/04/19C,677.16,JL EBDON. T/A DIAL-A-CAB.
Children and Young Peoples Services,Head of Education and Skills,Transport,230008,Contract Hire,10/05/2019,3586796-30/04/19E,993.19,JL EBDON. T/A DIAL-A-CAB.
Children and Young Peoples Services,Head of Education and Skills,Transport,230006,Contract Hire,10/05/2019,3586799-F782-APR,"1,584.00",K & R TAXIS (STANLEY).
Children and Young Peoples Services,Head of Education and Skills,Transport,230008,Contract Hire,10/05/2019,3586799-M053-APR,"1,729.31",K & R TAXIS (STANLEY).
Children and Young Peoples Services,Head of Education and Skills,Transport,230008,Contract Hire,10/05/2019,3586800-N083-8,"1,130.00",KD TAXIS.
Children and Young Peoples Services,Head of Education and Skills,Transport,230008,Contract Hire,10/05/2019,3586802-010419,"1,279.25",KEVIN EDMUNDSON.
Children and Young Peoples Services,Head of Education and Skills,Transport,230009,Contract Hire,10/05/2019,3586804-CTD012/19,515.00,KEVIN WALKER T/A CENTRAL TAXIS.
Children and Young Peoples Services,Head of Education and Skills,Transport,230009,Contract Hire,10/05/2019,3586810-008,814.00,KULDEEP MAHIL T/A KOLARS CAB.
Children and Young Peoples Services,Head of Education and Skills,Transport,230007,Contract Hire,10/05/2019,3586811-1729,880.00,LD TAXIS.
Children and Young Peoples Services,Head of Education and Skills,Transport,230008,Contract Hire,10/05/2019,3586811-1731,"1,385.00",LD TAXIS.
Children and Young Peoples Services,Head of Education and Skills,Transport,230007,Contract Hire,10/05/2019,3586815-6753-4010,"3,385.80",LEE`S COACHES LTD.
Children and Young Peoples Services,Head of Education and Skills,Transport,230007,Contract Hire,10/05/2019,3586815-6753-4226,"2,257.20",LEE`S COACHES LTD.
Children and Young Peoples Services,Head of Education and Skills,Transport,230007,Contract Hire,10/05/2019,3586815-6753-4227,"1,636.47",LEE`S COACHES LTD.
Children and Young Peoples Services,Head of Education and Skills,Transport,230008,Contract Hire,10/05/2019,3586816-257,550.00,LEE`S TAXIS (SACRISTON).
Children and Young Peoples Services,Head of Education and Skills,Transport,230007,Contract Hire,10/05/2019,3586817-3383-HS019,924.00,LEE`S TAXIS..
Children and Young Peoples Services,Head of Education and Skills,Transport,230007,Contract Hire,10/05/2019,3586823-3390,854.26,LINCAB TAXIS.
Children and Young Peoples Services,Head of Childrens Social Care,Third Party Payments 4THIRD,425028,Rendered by Voluntary Organisations,10/05/2019,3586829-7793,"5,052.99",MAIN - TAKING AUTISM PERSONALLY.
Children and Young Peoples Services,Head of Education and Skills,Transport,230007,Contract Hire,10/05/2019,3586834-5256-APRIL,"1,320.00",MARK FOWKES T/A CONSETT TAXIS.
Children and Young Peoples Services,Head of Education and Skills,Transport,230012,Contract Hire,10/05/2019,3586835-000033,"1,067.04",MARK HUSBAND T/A TEAK`S TAXIS.
Children and Young Peoples Services,Head of Education and Skills,Transport,230008,Contract Hire,10/05/2019,3586836-KW943,620.73,MARK O`NEILL T/A KWIK CABS.
Children and Young Peoples Services,Head of Education and Skills,Transport,230008,Contract Hire,10/05/2019,3586836-KW944,564.30,MARK O`NEILL T/A KWIK CABS.
Children and Young Peoples Services,Head of Education and Skills,Transport,230008,Contract Hire,10/05/2019,3586842-MCD37991,951.60,MCDONALD TRAVEL.
Children and Young Peoples Services,Head of Education and Skills,Transport,230008,Contract Hire,10/05/2019,3586845-8A-A138APR19,528.00,MICHAEL A BODDY T/A MBS TAXIS.
Children and Young Peoples Services,Head of Education and Skills,Transport,230008,Contract Hire,10/05/2019,3586847-00982,"1,891.78",MICHAELS TRAVEL.
Children and Young Peoples Services,Head of Education and Skills,Transport,230003,Contract Hire,10/05/2019,3586848-0220,696.00,MICKS TAXIS - MURTON.
Children and Young Peoples Services,Head of Education and Skills,Transport,230006,Contract Hire,10/05/2019,3586848-0218,720.00,MICKS TAXIS - MURTON.
Children and Young Peoples Services,Head of Education and Skills,Transport,230008,Contract Hire,10/05/2019,3586848-0214,810.00,MICKS TAXIS - MURTON.
Children and Young Peoples Services,Head of Education and Skills,Transport,230008,Contract Hire,10/05/2019,3586853-008-A007,"1,210.00",MOLLY`S TAXIS LTD.
Children and Young Peoples Services,Head of Education and Skills,Transport,230008,Contract Hire,10/05/2019,3586853-008-N030,"1,320.00",MOLLY`S TAXIS LTD.
Children and Young Peoples Services,Head of Education and Skills,Transport,230008,Contract Hire,10/05/2019,3586855-CEW509,959.31,MOOR PRIVATE HIRE.
Children and Young Peoples Services,Head of Education and Skills,Transport,230008,Contract Hire,10/05/2019,3586862-JK2727,"1,320.00",MR JOHN KNIGHTON T/A JK TAXIS.
Children and Young Peoples Services,Head of Education and Skills,Transport,230008,Contract Hire,10/05/2019,3586863-0035-N071,"1,320.00",MR PM MULLEN T/A CATHEDRAL TAXIS.
Children and Young Peoples Services,Head of Education and Skills,Supplies and Services,338094,Services,10/05/2019,3586903-050636PROFORMA,547.50,PARK HEAD HOTEL.
Children and Young Peoples Services,Head of Education and Skills,Transport,230008,Contract Hire,10/05/2019,3586907-DCC245,902.88,PAUL`S TAXIS..
Children and Young Peoples Services,Head of Education and Skills,Transport,230008,Contract Hire,10/05/2019,3586907-DCC246,600.00,PAUL`S TAXIS..
Children and Young Peoples Services,Head of Education and Skills,Transport,230008,Contract Hire,10/05/2019,3586907-DCC247,"1,510.90",PAUL`S TAXIS..
Children and Young Peoples Services,Head of Childrens Social Care,Third Party Payments 4THIRD,425023,Rendered by Voluntary Organisations,10/05/2019,3586919-9013679,"73,917.33",PONTVILLE SCHOOL LTD.
Children and Young Peoples Services,Head of Education and Skills,Transport,230007,Contract Hire,10/05/2019,3586930-19A-4005,"2,279.75",RAYNERS COACHES.
Children and Young Peoples Services,Head of Education and Skills,Transport,230007,Contract Hire,10/05/2019,3586930-72A,"1,050.56",RAYNERS COACHES.
Children and Young Peoples Services,Head of Education and Skills,Transport,230007,Contract Hire,10/05/2019,3586930-72C,"1,309.22",RAYNERS COACHES.
Children and Young Peoples Services,Head of Early Help Inclusion & Vulnerable Children.,Premises,108099,Service Repairs and Maintenance,10/05/2019,3586937-211235,"1,185.00",RIELLO UPS LTD.
Children and Young Peoples Services,Head of Education and Skills,Transport,230008,Contract Hire,10/05/2019,3586941-261,691.20,ROBBIE`S PRIVATE HIRE.
Children and Young Peoples Services,Head of Education and Skills,Transport,230008,Contract Hire,10/05/2019,3586941-262,561.00,ROBBIE`S PRIVATE HIRE.
Children and Young Peoples Services,Head of Childrens Social Care,Third Party Payments 4THIRD,440038,Other third party payments E440,10/05/2019,3586943-1457,"1,440.13",ROC SOLID LTD.
Children and Young Peoples Services,Head of Childrens Social Care,Third Party Payments 4THIRD,440038,Other third party payments E440,10/05/2019,3586943-1464,"2,481.83",ROC SOLID LTD.
Children and Young Peoples Services,Head of Education and Skills,Transport,230007,Contract Hire,10/05/2019,3586944-1784,660.00,RON`S TAXIS (FISHBURN).
Children and Young Peoples Services,Head of Education and Skills,Transport,230008,Contract Hire,10/05/2019,3586944-1785,"1,865.00",RON`S TAXIS (FISHBURN).
Children and Young Peoples Services,Head of Education and Skills,Transport,230008,Contract Hire,10/05/2019,3586945-8-S039,660.00,ROUTE 1.
Children and Young Peoples Services,Head of Education and Skills,Transport,230003,Contract Hire,10/05/2019,3586948-3208/30,"1,114.41",S & S TRAVEL LTD.
Children and Young Peoples Services,Head of Education and Skills,Transport,230006,Contract Hire,10/05/2019,3586948-F725/20,"1,080.00",S & S TRAVEL LTD.
Children and Young Peoples Services,Head of Education and Skills,Transport,230008,Contract Hire,10/05/2019,3586948-S020/19,"1,045.00",S & S TRAVEL LTD.
Children and Young Peoples Services,Head of Education and Skills,Transport,230008,Contract Hire,10/05/2019,3586948-W010/05,"1,320.00",S & S TRAVEL LTD.
Children and Young Peoples Services,Head of Education and Skills,Transport,230008,Contract Hire,10/05/2019,3586948-W045/08,550.00,S & S TRAVEL LTD.
Children and Young Peoples Services,Head of Education and Skills,Transport,230008,Contract Hire,10/05/2019,3586948-W047/08,"1,210.00",S & S TRAVEL LTD.
Children and Young Peoples Services,Head of Education and Skills,Transport,230008,Contract Hire,10/05/2019,3586948-W048/30,"1,004.41",S & S TRAVEL LTD.
Children and Young Peoples Services,Head of Education and Skills,Transport,230008,Contract Hire,10/05/2019,3586948-W052/30APRIL,"1,072.17",S & S TRAVEL LTD.
Children and Young Peoples Services,Head of Education and Skills,Transport,230008,Contract Hire,10/05/2019,3586948-W162/02,880.00,S & S TRAVEL LTD.
Children and Young Peoples Services,Head of Childrens Social Care,Transport,230005,Contract Hire,10/05/2019,3586964-75116,667.00,SHOTTON PRIVATE HIRE.
Children and Young Peoples Services,Head of Education and Skills,Transport,230012,Contract Hire,10/05/2019,3586970-752A,"1,352.64",SJ MACKENZIE T/A SCOTTS TAXIS.
Children and Young Peoples Services,Head of Education and Skills,Transport,230008,Contract Hire,10/05/2019,3586970-753A,769.50,SJ MACKENZIE T/A SCOTTS TAXIS.
Children and Young Peoples Services,Head of Education and Skills,Transport,230008,Contract Hire,10/05/2019,3586970-754A,"1,824.77",SJ MACKENZIE T/A SCOTTS TAXIS.
Children and Young Peoples Services,Head of Education and Skills,Transport,230008,Contract Hire,10/05/2019,3586970-755A,620.73,SJ MACKENZIE T/A SCOTTS TAXIS.
Children and Young Peoples Services,Head of Education and Skills,Transport,230008,Contract Hire,10/05/2019,3586970-756A,"1,023.40",SJ MACKENZIE T/A SCOTTS TAXIS.
Children and Young Peoples Services,Head of Education and Skills,Transport,230008,Contract Hire,10/05/2019,3586970-757A,"1,192.68",SJ MACKENZIE T/A SCOTTS TAXIS.
Children and Young Peoples Services,Head of Education and Skills,Transport,230008,Contract Hire,10/05/2019,3586970-758A,846.45,SJ MACKENZIE T/A SCOTTS TAXIS.
Children and Young Peoples Services,Head of Education and Skills,Transport,230008,Contract Hire,10/05/2019,3586970-759A,"1,128.60",SJ MACKENZIE T/A SCOTTS TAXIS.
Children and Young Peoples Services,Head of Education and Skills,Transport,230008,Contract Hire,10/05/2019,3586970-763A,880.00,SJ MACKENZIE T/A SCOTTS TAXIS.
Children and Young Peoples Services,Head of Education and Skills,Transport,230008,Contract Hire,10/05/2019,3586981-BKD5241,"1,300.00",SPENNYMOOR TAXIS.
Children and Young Peoples Services,Head of Education and Skills,Transport,230008,Contract Hire,10/05/2019,3586981-JJD54963,976.14,SPENNYMOOR TAXIS.
Children and Young Peoples Services,Head of Education and Skills,Transport,230008,Contract Hire,10/05/2019,3586981-SACRM54154,880.00,SPENNYMOOR TAXIS.
Children and Young Peoples Services,Head of Childrens Social Care,Third Party Payments 4THIRD,425020,Rendered by Voluntary Organisations,10/05/2019,3586984-7012,"6,035.56",ST OSWALD`S HOSPICE LTD.
Children and Young Peoples Services,Head of Childrens Social Care,Third Party Payments 4THIRD,425020,Rendered by Voluntary Organisations,10/05/2019,3586984-7058,"4,386.47",ST OSWALD`S HOSPICE LTD.
Children and Young Peoples Services,Head of Childrens Social Care,Third Party Payments 4THIRD,425020,Rendered by Voluntary Organisations,10/05/2019,3586984-7104,"4,785.24",ST OSWALD`S HOSPICE LTD.
Children and Young Peoples Services,Head of Childrens Social Care,Third Party Payments 4THIRD,425020,Rendered by Voluntary Organisations,10/05/2019,3586984-7149,"3,987.70",ST OSWALD`S HOSPICE LTD.
Children and Young Peoples Services,Head of Childrens Social Care,Third Party Payments 4THIRD,425020,Rendered by Voluntary Organisations,10/05/2019,3586984-7201,"3,588.93",ST OSWALD`S HOSPICE LTD.
Children and Young Peoples Services,Head of Childrens Social Care,Third Party Payments 4THIRD,425020,Rendered by Voluntary Organisations,10/05/2019,3586984-7252,"5,582.78",ST OSWALD`S HOSPICE LTD.
Children and Young Peoples Services,Head of Childrens Social Care,Third Party Payments 4THIRD,425020,Rendered by Voluntary Organisations,10/05/2019,3586984-7315,"6,380.32",ST OSWALD`S HOSPICE LTD.
Children and Young Peoples Services,Head of Education and Skills,Supplies and Services,384159,Miscellaneous Expenses,10/05/2019,3586986-14199,"9,184.12",STEADFAST SECURITY SYSTEMS LTD.
Children and Young Peoples Services,Head of Childrens Social Care,Transport,230005,Contract Hire,10/05/2019,3586987-076,950.00,STEPHEN BALL T/A ABBIE`S TAXIS..
Children and Young Peoples Services,Head of Education and Skills,Transport,230008,Contract Hire,10/05/2019,3586989-1006,"1,518.00",STEPHEN REED T/A STEVE`S TAXIS.
Children and Young Peoples Services,Head of Childrens Social Care,Transport,230005,Contract Hire,10/05/2019,3586990-1904001,506.00,STEVEN PRATT T/A PTL TAXIS DURHAM.
Children and Young Peoples Services,Head of Childrens Social Care,Transport,230005,Contract Hire,10/05/2019,3586990-1904002,"1,366.00",STEVEN PRATT T/A PTL TAXIS DURHAM.
Children and Young Peoples Services,Head of Childrens Social Care,Transport,230005,Contract Hire,10/05/2019,3586990-1904003,"1,265.00",STEVEN PRATT T/A PTL TAXIS DURHAM.
Children and Young Peoples Services,Head of Childrens Social Care,Transport,230005,Contract Hire,10/05/2019,3586990-1904004,"1,080.00",STEVEN PRATT T/A PTL TAXIS DURHAM.
Children and Young Peoples Services,Head of Childrens Social Care,Transport,230005,Contract Hire,10/05/2019,3586990-1904005,610.00,STEVEN PRATT T/A PTL TAXIS DURHAM.
Children and Young Peoples Services,Head of Childrens Social Care,Transport,230005,Contract Hire,10/05/2019,3586990-1904006,"1,003.50",STEVEN PRATT T/A PTL TAXIS DURHAM.
Children and Young Peoples Services,Head of Early Help Inclusion & Vulnerable Children.,Transport,230005,Contract Hire,10/05/2019,3586990-1904007,"1,213.50",STEVEN PRATT T/A PTL TAXIS DURHAM.
Children and Young Peoples Services,Head of Childrens Social Care,Transport,230005,Contract Hire,10/05/2019,3586990-1904009,"1,133.00",STEVEN PRATT T/A PTL TAXIS DURHAM.
Children and Young Peoples Services,Head of Childrens Social Care,Transport,230005,Contract Hire,10/05/2019,3586990-1904010,"1,250.00",STEVEN PRATT T/A PTL TAXIS DURHAM.
Children and Young Peoples Services,Head of Childrens Social Care,Transport,230005,Contract Hire,10/05/2019,3586990-1904011,979.00,STEVEN PRATT T/A PTL TAXIS DURHAM.
Children and Young Peoples Services,Head of Childrens Social Care,Transport,230005,Contract Hire,10/05/2019,3586990-1904012,803.00,STEVEN PRATT T/A PTL TAXIS DURHAM.
Children and Young Peoples Services,Head of Childrens Social Care,Transport,230005,Contract Hire,10/05/2019,3586990-1904013,594.00,STEVEN PRATT T/A PTL TAXIS DURHAM.
Children and Young Peoples Services,Head of Childrens Social Care,Transport,230005,Contract Hire,10/05/2019,3586990-1904014,997.50,STEVEN PRATT T/A PTL TAXIS DURHAM.
Children and Young Peoples Services,Head of Childrens Social Care,Transport,230005,Contract Hire,10/05/2019,3586990-1904015,745.00,STEVEN PRATT T/A PTL TAXIS DURHAM.
Children and Young Peoples Services,Head of Childrens Social Care,Transport,230005,Contract Hire,10/05/2019,3586990-1904020,"1,311.00",STEVEN PRATT T/A PTL TAXIS DURHAM.
Children and Young Peoples Services,Head of Childrens Social Care,Transport,230005,Contract Hire,10/05/2019,3586990-1904027,645.00,STEVEN PRATT T/A PTL TAXIS DURHAM.
Children and Young Peoples Services,Head of Childrens Social Care,Transport,230005,Contract Hire,10/05/2019,3586990-1904034,590.00,STEVEN PRATT T/A PTL TAXIS DURHAM.
Children and Young Peoples Services,Head of Education and Skills,Transport,230008,Contract Hire,10/05/2019,3587001-020,"1,190.00",TAXZ.
Children and Young Peoples Services,Head of Childrens Social Care,Transport,230005,Contract Hire,10/05/2019,3587021-RESINV512,740.00,TONYS TAXIS (A BIRCH).
Children and Young Peoples Services,Head of Childrens Social Care,Transport,230005,Contract Hire,10/05/2019,3587021-RESINV513,602.00,TONYS TAXIS (A BIRCH).
Children and Young Peoples Services,Head of Education and Skills,Transport,230007,Contract Hire,10/05/2019,3587032-SC10008,660.00,TRAVEL 6.
Children and Young Peoples Services,Head of Education and Skills,Transport,230008,Contract Hire,10/05/2019,3587047-WESTLEA300419,664.85,WESTLEA TAXIS.
Children and Young Peoples Services,Head of Childrens Social Care,Third Party Payments 4THIRD,425021,Rendered by Voluntary Organisations,10/05/2019,3587053-958,"70,609.00",WITHERSLACK GROUP LTD.
Children and Young Peoples Services,Head of Childrens Social Care,Third Party Payments 4THIRD,425021,Rendered by Voluntary Organisations,10/05/2019,3587053-963.,"70,609.00",WITHERSLACK GROUP LTD.
Children and Young Peoples Services,Head of Childrens Social Care,Third Party Payments 4THIRD,425023,Rendered by Voluntary Organisations,10/05/2019,3587053-975.,"87,770.33",WITHERSLACK GROUP LTD.
Dedicated Schools Grant BG0015,DSG High Needs Block,Third Party Payments 4THIRD,440080,Other third party payments E440,10/05/2019,3586646-2361,"20,537.00",BRECKENBROUGH SCHOOL.
Dedicated Schools Grant BG0015,DSG High Needs Block,Third Party Payments 4THIRD,440080,Other third party payments E440,10/05/2019,3586646-2362,"16,667.00",BRECKENBROUGH SCHOOL.
Dedicated Schools Grant BG0015,DSG High Needs Block,Third Party Payments 4THIRD,440080,Other third party payments E440,10/05/2019,3586646-2365,"16,967.00",BRECKENBROUGH SCHOOL.
Dedicated Schools Grant BG0015,DSG High Needs Block,Third Party Payments 4THIRD,425005,Rendered by Voluntary Organisations,10/05/2019,3586646-2360,"17,943.00",BRECKENBROUGH SCHOOL.
Dedicated Schools Grant BG0015,DSG High Needs Block,Third Party Payments 4THIRD,425005,Rendered by Voluntary Organisations,10/05/2019,3586646-2364,"16,000.00",BRECKENBROUGH SCHOOL.
Dedicated Schools Grant BG0015,DSG High Needs Block,Third Party Payments 4THIRD,410037,Rendered by Other Local Authorities,10/05/2019,3586712-9224,"2,665.50",DURHAM SCHOOL.*
Dedicated Schools Grant BG0015,DSG High Needs Block,Third Party Payments 4THIRD,440080,Other third party payments E440,10/05/2019,3586723-9931,"8,556.67",EDUCATION & SERVICES FOR PEOPLE WITH AUTISM (ESPA) LTD.
Dedicated Schools Grant BG0015,DSG High Needs Block,Third Party Payments 4THIRD,440080,Other third party payments E440,10/05/2019,3586723-9932,"5,073.33",EDUCATION & SERVICES FOR PEOPLE WITH AUTISM (ESPA) LTD.
Dedicated Schools Grant BG0015,DSG High Needs Block,Third Party Payments 4THIRD,440080,Other third party payments E440,10/05/2019,3586723-9934,"3,996.67",EDUCATION & SERVICES FOR PEOPLE WITH AUTISM (ESPA) LTD.
Dedicated Schools Grant BG0015,DSG High Needs Block,Third Party Payments 4THIRD,440080,Other third party payments E440,10/05/2019,3586723-9983,"8,556.67",EDUCATION & SERVICES FOR PEOPLE WITH AUTISM (ESPA) LTD.
Dedicated Schools Grant BG0015,DSG High Needs Block,Third Party Payments 4THIRD,440080,Other third party payments E440,10/05/2019,3586765-SIN071587,"33,626.68",HENSHAWS SOCIETY FOR BLIND PEOPLE.
Dedicated Schools Grant BG0015,DSG High Needs Block,Third Party Payments 4THIRD,425005,Rendered by Voluntary Organisations,10/05/2019,3586780-4140000981,"31,471.00",HURWORTH HOUSE PRIORY.
Dedicated Schools Grant BG0015,DSG High Needs Block,Third Party Payments 4THIRD,425005,Rendered by Voluntary Organisations,10/05/2019,3586780-4140000982,"26,587.67",HURWORTH HOUSE PRIORY.
Dedicated Schools Grant BG0015,DSG High Needs Block,Third Party Payments 4THIRD,425005,Rendered by Voluntary Organisations,10/05/2019,3586780-4140000983,"23,901.00",HURWORTH HOUSE PRIORY.
Dedicated Schools Grant BG0015,DSG High Needs Block,Third Party Payments 4THIRD,425005,Rendered by Voluntary Organisations,10/05/2019,3586780-4140000984,"21,367.67",HURWORTH HOUSE PRIORY.
Dedicated Schools Grant BG0015,DSG High Needs Block,Third Party Payments 4THIRD,425005,Rendered by Voluntary Organisations,10/05/2019,3586780-4140000985,"32,258.67",HURWORTH HOUSE PRIORY.
